Workbook

Sheet Title Page
B8: JEN 2027-31 - ACS Standardised Metering Pricing Model
B10: Version | C10: 1.02
B11: Date | C11: 2022-01-14
B14: Status
B16: Notes:
B17: Current model version contains test data.
C19: Locked Sheets Pwd:
B25: Version Summary
B27: Date | C27: Version | D27: Author | E27: Changes
B29: 2022-01-14 | C29: 1.02 | D29: AER | E29: Updates following consultation
B30: 2021-10-25 | C30: 1 | D30: AER | E30: Consultation version (contains anonymised input data)

Sheet Inputs | General
B1: ='Title Page'!B8&" v"&'Title Page'!$C$10 -> JEN 2027-31 - ACS Standardised Metering Pricing Model v1.02 | V1: Worksheet check: | W1: =IF(COUNTA($X$14:$X$46)=COUNTIF($X14:$X47,"OK"),"OK","Check") -> OK
B2: =MID(CELL("filename",A1),FIND("]",CELL("filename",A1))+1,255) -> Inputs | General | I2: Key: | J2: Input | K2: External Link | M2: Internal Link | O2: Jemena modification
B5: 1. Inputs - General
C7: Inputs | D7: Source | E7: Input Format | G7: Value
C8: NSP name | D8: NSP | G8: JEN - ACS
C9: Decision stage | D9: NSP | G9: initial proposal
C11: Forecast regulatory control period, first year | D11: NSP | E11: YYYY-YY | G11: 2026-27
C12: Forecast regulatory control period, last year | D12: NSP | G12: =LEFT(FPFirstYear,4)+4&"-"&RIGHT(FPFirstYear,2)+4 -> 2030-31
C14: Regulatory Period Length, Yrs | G14: =LEFT(G12,4)-LEFT(FPFirstYear,4)+1 -> 5
C16: Model Used For (Price Cap or Vic Exit Fees?) | G16: Exit Fees (Vic)
B21: =LEFT('Inputs | General'!B5,1)+1&". Linked Inputs - Inflation" -> 2. Linked Inputs - Inflation
G24: Base year | H24: Regulatory period
C25: Year | E25: Units | G25: =LEFT(H25,4)-1&"-"&RIGHT(H25,2)-1 -> 2025-26 | H25: =FPFirstYear -> 2026-27 | I25: =LEFT(H25,4)+1&"-"&RIGHT(H25,2)+1 -> 2027-28 | J25: =LEFT(I25,4)+1&"-"&RIGHT(I25,2)+1 -> 2028-29 | K25: =LEFT(J25,4)+1&"-"&RIGHT(J25,2)+1 -> 2029-30 | L25: =LEFT(K25,4)+1&"-"&RIGHT(K25,2)+1 -> 2030-31
C26: Inflation Assumption (CPI % increase) | E26: % | H26: 0.025 | I26: 0.025 | J26: 0.025 | K26: 0.025 | L26: 0.025
C27: Cumulative Inflation Index (CPI end period) | E27: Index | G27: 1 | H27: =G27*(1+H26) -> 1.025 | I27: =H27*(1+I26) -> 1.050625 | J27: =I27*(1+J26) -> 1.076890625 | K27: =J27*(1+K26) -> 1.103812891 | L27: =K27*(1+L26) -> 1.131408213
G30: Base year | H30: Regulatory period
C31: Year | E31: Units | G31: =LEFT(H31,4)-1&"-"&RIGHT(H31,2)-1 -> 2025-26 | H31: =FPFirstYear -> 2026-27 | I31: =LEFT(H31,4)+1&"-"&RIGHT(H31,2)+1 -> 2027-28 | J31: =LEFT(I31,4)+1&"-"&RIGHT(I31,2)+1 -> 2028-29 | K31: =LEFT(J31,4)+1&"-"&RIGHT(J31,2)+1 -> 2029-30 | L31: =LEFT(K31,4)+1&"-"&RIGHT(K31,2)+1 -> 2030-31
C32: Weighted average of Opex Price Change (% increase) | E32: % | H32: 0.005513606441 | I32: 0.004948146532 | J32: 0.006070954395 | K32: 0.007246191346 | L32: 0.006797553002
C33: Real Price index to input year | E33: Index | G33: 1 | H33: =G33*(1+H32) -> 1.005513606 | I33: =H33*(1+I32) -> 1.010489035 | J33: =I33*(1+J32) -> 1.016623668 | K33: =J33*(1+K32) -> 1.023990318 | L33: =K33*(1+L32) -> 1.030950946
B36: =LEFT('Inputs | General'!B21,1)+1&". Linked Inputs - Return and tax assumptions" -> 3. Linked Inputs - Return and tax assumptions
G39: Base year | H39: Regulatory period
C40: Assumption | E40: Units | G40: =LEFT(H40,4)-1&"-"&RIGHT(H40,2)-1 -> 2025-26 | H40: =FPFirstYear -> 2026-27 | I40: =LEFT(H40,4)+1&"-"&RIGHT(H40,2)+1 -> 2027-28 | J40: =LEFT(I40,4)+1&"-"&RIGHT(I40,2)+1 -> 2028-29 | K40: =LEFT(J40,4)+1&"-"&RIGHT(J40,2)+1 -> 2029-30 | L40: =LEFT(K40,4)+1&"-"&RIGHT(K40,2)+1 -> 2030-31
C41: Value of imputation credits | E41: % | G41: 0.585 | H41: 0.57 | I41: 0.57 | J41: 0.57 | K41: 0.57 | L41: 0.57
C42: Corporate tax rate | E42: % | G42: 0.3 | H42: 0.3 | I42: 0.3 | J42: 0.3 | K42: 0.3 | L42: 0.3

Sheet Price Cap > (hidden)

Sheet Inputs | Price Cap (hidden)
B1: ='Title Page'!B8&" v"&'Title Page'!$C$10 -> JEN 2027-31 - ACS Standardised Metering Pricing Model v1.02 | N1: DNSP: | O1: =IF('Inputs | General'!$G$16="Exit Fees (Vic)","NOT USED",NSP) -> NOT USED | U1: Worksheet check: | V1: =IF(COUNTA($W$4:$W$71)=COUNTIF($W4:$W72,"OK"),"OK","Check") -> OK
B2: =MID(CELL("filename",A1),FIND("]",CELL("filename",A1))+1,255) -> Inputs | Price Cap | H2: Key: | I2: Input | J2: External Link | K2: Internal Link
B5: =LEFT('Inputs | General'!B21,1)+1&". Linked Input - Inflation & Discount Rates" -> 3. Linked Input - Inflation & Discount Rates | J5: =IF('Inputs | General'!$G$16="Exit Fees (Vic)","NOT USED","") -> NOT USED
B7: Linked Inputs - Discount Rates | G7: Base year | H7: Regulatory period
C8: Year | E8: Units | G8: =LEFT(H8,4)-1&"-"&RIGHT(H8,2)-1 -> 2025-26 | H8: =FPFirstYear -> 2026-27 | I8: =LEFT(H8,4)+1&"-"&RIGHT(H8,2)+1 -> 2027-28 | J8: =LEFT(I8,4)+1&"-"&RIGHT(I8,2)+1 -> 2028-29 | K8: =LEFT(J8,4)+1&"-"&RIGHT(J8,2)+1 -> 2029-30 | L8: =LEFT(K8,4)+1&"-"&RIGHT(K8,2)+1 -> 2030-31 | N8: Link from PTRM
C9: Nominal Vanilla WACC | E9: % | H9: 0.0591941147 | I9: 0.05996720177 | J9: 0.06071341805 | K9: 0.06176220964 | L9: 0.06349838586
C10: Cumulative Discount Index | E10: Index | G10: 1 | H10: =G10*(1+H9) -> 1.059194115 | I10: =H10*(1+I9) -> 1.122711022 | J10: =I10*(1+J9) -> 1.190874646 | K10: =J10*(1+K9) -> 1.264425695 | L10: =K10*(1+L9) -> 1.344714686
B15: =LEFT(B5,1)+1&". Linked Input - Building Block Revenue Requirements" -> 4. Linked Input - Building Block Revenue Requirements | J15: =IF('Inputs | General'!$G$16="Exit Fees (Vic)","NOT USED","") -> NOT USED
B17: Linked Inputs - Unsmoothed revenue requirement
E19: Units | H19: =FPFirstYear -> 2026-27 | I19: =LEFT(H19,4)+1&"-"&RIGHT(H19,2)+1 -> 2027-28 | J19: =LEFT(I19,4)+1&"-"&RIGHT(I19,2)+1 -> 2028-29 | K19: =LEFT(J19,4)+1&"-"&RIGHT(J19,2)+1 -> 2029-30 | L19: =LEFT(K19,4)+1&"-"&RIGHT(K19,2)+1 -> 2030-31 | N19: Link from PTRM
C20: Return on Capital | E20: $m
C21: Return of Capital (regulatory depreciation) | E21: $m
C22: Operating Expenditure | E22: $m
C23: Revenue Adjustments | E23: $m
C24: Net Tax Allowance | E24: $m
C25: Annual Revenue Requirement (unsmoothed) | E25: $m | H25: =SUM(H20:H24) -> 0 | I25: =SUM(I20:I24) -> 0 | J25: =SUM(J20:J24) -> 0 | K25: =SUM(K20:K24) -> 0 | L25: =SUM(L20:L24) -> 0
C27: Non-Capital Component | E27: $m | H27: =H22 -> 0 | I27: =I22 -> 0 | J27: =J22 -> 0 | K27: =K22 -> 0 | L27: =L22 -> 0
C28: Capital Component | E28: $m | H28: =SUM(H20:H21,H23:H24) -> 0 | I28: =SUM(I20:I21,I23:I24) -> 0 | J28: =SUM(J20:J21,J23:J24) -> 0 | K28: =SUM(K20:K21,K23:K24) -> 0 | L28: =SUM(L20:L21,L23:L24) -> 0
H29: =(H27+H28=H25)/1 -> 1 | I29: =(I27+I28=I25)/1 -> 1 | J29: =(J27+J28=J25)/1 -> 1 | K29: =(K27+K28=K25)/1 -> 1 | L29: =(L27+L28=L25)/1 -> 1
B31: NPV of unsmoothed revenue requirement
E32: Units | G32: NPV
C33: Non-capital | E33: $m | G33: =SUMPRODUCT($H27:$L27,1/$H$10:$L$10) -> 0
C34: Capital | E34: $m | G34: =SUMPRODUCT($H28:$L28,1/$H$10:$L$10) -> 0
C35: Total | E35: $m | G35: =G33+G34 -> 0
B39: =LEFT(B15,1)+1&". Input - Base Year Tariffs, Base Year Volume & Volume Forecast" -> 5. Input - Base Year Tariffs, Base Year Volume & Volume Forecast
H41: =LEFT(J42,4)-1&"-"&RIGHT(J42,2)-1 -> 2025-26 | I41: =LEFT(J42,4)-1&"-"&RIGHT(J42,2)-1 -> 2025-26 | J41: Volume Forecast
A42: ▼ Table Filters | C42: Tariff # | D42: Tariff name | E42: Application | F42: Tariff Code | G42: Other designation | H42: Base year tariff ($/year) | I42: Base year volume | J42: =FPFirstYear -> 2026-27 | K42: =LEFT(J42,4)+1&"-"&RIGHT(J42,2)+1 -> 2027-28 | L42: =LEFT(K42,4)+1&"-"&RIGHT(K42,2)+1 -> 2028-29 | M42: =LEFT(L42,4)+1&"-"&RIGHT(L42,2)+1 -> 2029-30 | N42: =LEFT(M42,4)+1&"-"&RIGHT(M42,2)+1 -> 2030-31
C43: Tariff # | D43: Tariff name | E43: Application | F43: Tariff Code | G43: Other designation | H43: Base year tariff ($/year) | I43: Base year volume | J43: F-RP0 | K43: F-RP+1 | L43: F-RP+2 | M43: F-RP+3 | N43: F-RP+4
C44: 1 | D44: =D45 -> Residential Non ToU | E44: Non-capital | F44: =F45 -> R1 | G44: =G45 -> Primary | J44: =Table4[[#This Row],[Base year volume]]*0.9 -> 0 | K44: =Table4[[#This Row],[F-RP0]]*0.9 -> 0 | L44: =Table4[[#This Row],[F-RP+1]]*0.9 -> 0 | M44: =Table4[[#This Row],[F-RP+2]]*0.9 -> 0 | N44: =Table4[[#This Row],[F-RP+3]]*0.9 -> 0
C45: 1 | D45: =D46 -> Residential Non ToU | E45: Capital | F45: =F46 -> R1 | G45: =G46 -> Primary | J45: =Table4[[#This Row],[Base year volume]] -> 0 | K45: =Table4[[#This Row],[F-RP0]] -> 0 | L45: =Table4[[#This Row],[F-RP+1]] -> 0 | M45: =Table4[[#This Row],[F-RP+2]] -> 0 | N45: =Table4[[#This Row],[F-RP+3]] -> 0
C46: 1 | D46: Residential Non ToU | E46: Total | F46: R1 | G46: Primary | H46: =H44+H45 -> 0
C47: 2 | D47: =D48 -> Residential ToU | E47: Non-capital | F47: =F48 -> R2 | G47: =G48 -> Primary | J47: =Table4[[#This Row],[Base year volume]]*0.9 -> 0 | K47: =Table4[[#This Row],[F-RP0]]*0.9 -> 0 | L47: =Table4[[#This Row],[F-RP+1]]*0.9 -> 0 | M47: =Table4[[#This Row],[F-RP+2]]*0.9 -> 0 | N47: =Table4[[#This Row],[F-RP+3]]*0.9 -> 0
C48: 2 | D48: =D49 -> Residential ToU | E48: Capital | F48: =F49 -> R2 | G48: =G49 -> Primary | J48: =Table4[[#This Row],[Base year volume]] -> 0 | K48: =Table4[[#This Row],[F-RP0]] -> 0 | L48: =Table4[[#This Row],[F-RP+1]] -> 0 | M48: =Table4[[#This Row],[F-RP+2]] -> 0 | N48: =Table4[[#This Row],[F-RP+3]] -> 0
C49: 2 | D49: Residential ToU | E49: Total | F49: R2 | G49: Primary | H49: =H47+H48 -> 0
C50: 3 | D50: =D51 -> Controlled load | E50: Non-capital | F50: =F51 -> B1 | G50: =G51 -> Secondary | J50: =Table4[[#This Row],[Base year volume]]*0.9 -> 0 | K50: =Table4[[#This Row],[F-RP0]]*0.9 -> 0 | L50: =Table4[[#This Row],[F-RP+1]]*0.9 -> 0 | M50: =Table4[[#This Row],[F-RP+2]]*0.9 -> 0 | N50: =Table4[[#This Row],[F-RP+3]]*0.9 -> 0
C51: 3 | D51: =D52 -> Controlled load | E51: Capital | F51: =F52 -> B1 | G51: =G52 -> Secondary | J51: =Table4[[#This Row],[Base year volume]] -> 0 | K51: =Table4[[#This Row],[F-RP0]] -> 0 | L51: =Table4[[#This Row],[F-RP+1]] -> 0 | M51: =Table4[[#This Row],[F-RP+2]] -> 0 | N51: =Table4[[#This Row],[F-RP+3]] -> 0
C52: 3 | D52: Controlled load | E52: Total | F52: B1 | G52: Secondary | H52: =H50+H51 -> 0
C53: 4 | D53: =D54 -> Small Business Non ToU | E53: Non-capital | F53: =F54 -> B2 | G53: =G54 -> Primary | J53: =Table4[[#This Row],[Base year volume]]*0.9 -> 0 | K53: =Table4[[#This Row],[F-RP0]]*0.9 -> 0 | L53: =Table4[[#This Row],[F-RP+1]]*0.9 -> 0 | M53: =Table4[[#This Row],[F-RP+2]]*0.9 -> 0 | N53: =Table4[[#This Row],[F-RP+3]]*0.9 -> 0
C54: 4 | D54: =D55 -> Small Business Non ToU | E54: Capital | F54: =F55 -> B2 | G54: =G55 -> Primary | J54: =Table4[[#This Row],[Base year volume]] -> 0 | K54: =Table4[[#This Row],[F-RP0]] -> 0 | L54: =Table4[[#This Row],[F-RP+1]] -> 0 | M54: =Table4[[#This Row],[F-RP+2]] -> 0 | N54: =Table4[[#This Row],[F-RP+3]] -> 0
C55: 4 | D55: Small Business Non ToU | E55: Total | F55: B2 | G55: Primary | H55: =H53+H54 -> 0
C56: 5 | D56: =D57 -> Small Business ToU | E56: Non-capital | F56: =F57 -> LV1 | G56: =G57 -> Primary | J56: =Table4[[#This Row],[Base year volume]]*0.9 -> 0 | K56: =Table4[[#This Row],[F-RP0]]*0.9 -> 0 | L56: =Table4[[#This Row],[F-RP+1]]*0.9 -> 0 | M56: =Table4[[#This Row],[F-RP+2]]*0.9 -> 0 | N56: =Table4[[#This Row],[F-RP+3]]*0.9 -> 0
C57: 5 | D57: =D58 -> Small Business ToU | E57: Capital | F57: =F58 -> LV1 | G57: =G58 -> Primary | J57: =Table4[[#This Row],[Base year volume]] -> 0 | K57: =Table4[[#This Row],[F-RP0]] -> 0 | L57: =Table4[[#This Row],[F-RP+1]] -> 0 | M57: =Table4[[#This Row],[F-RP+2]] -> 0 | N57: =Table4[[#This Row],[F-RP+3]] -> 0
A58: ▼ More Rows | C58: 5 | D58: Small Business ToU | E58: Total | F58: LV1 | G58: Primary | H58: =H56+H57 -> 0
C59: 6 | D59: =D60 -> LV 40-160 MWh (System) | E59: Non-capital | F59: =F60 -> 0 | G59: =G60 -> 0 | J59: =Table4[[#This Row],[Base year volume]]*0.9 -> 0 | K59: =Table4[[#This Row],[F-RP0]]*0.9 -> 0 | L59: =Table4[[#This Row],[F-RP+1]]*0.9 -> 0 | M59: =Table4[[#This Row],[F-RP+2]]*0.9 -> 0 | N59: =Table4[[#This Row],[F-RP+3]]*0.9 -> 0
C60: 6 | D60: =D61 -> LV 40-160 MWh (System) | E60: Capital | F60: =F61 -> 0 | G60: =G61 -> 0 | J60: =Table4[[#This Row],[Base year volume]] -> 0 | K60: =Table4[[#This Row],[F-RP0]] -> 0 | L60: =Table4[[#This Row],[F-RP+1]] -> 0 | M60: =Table4[[#This Row],[F-RP+2]] -> 0 | N60: =Table4[[#This Row],[F-RP+3]] -> 0
C61: 6 | D61: LV 40-160 MWh (System) | E61: Total | F61: 0 | G61: 0 | H61: =H59+H60 -> 0
C62: 7 | D62: =D63 -> 0 | E62: Non-capital | F62: =F63 -> 0 | G62: =G63 -> 0
C63: 7 | D63: =D64 -> 0 | E63: Capital | F63: =F64 -> 0 | G63: =G64 -> 0
C64: 7 | D64: 0 | E64: Total | F64: 0 | G64: 0 | H64: =H62+H63 -> 0
C65: 8 | D65: =D66 -> 0 | E65: Non-capital | F65: =F66 -> 0 | G65: =G66 -> 0
C66: 8 | D66: =D67 -> 0 | E66: Capital | F66: =F67 -> 0 | G66: =G67 -> 0
C67: 8 | D67: 0 | E67: Total | F67: 0 | G67: 0 | H67: =H65+H66 -> 0
C68: 9 | D68: =D69 -> 0 | E68: Non-capital | F68: =F69 -> 0 | G68: =G69 -> 0
C69: 9 | D69: =D70 -> 0 | E69: Capital | F69: =F70 -> 0 | G69: =G70 -> 0
C70: 9 | D70: 0 | E70: Total | F70: 0 | G70: 0 | H70: =H68+H69 -> 0
C71: 10 | D71: =D72 -> 0 | E71: Non-capital | F71: =F72 -> 0 | G71: =G72 -> 0
C72: 10 | D72: =D73 -> 0 | E72: Capital | F72: =F73 -> 0 | G72: =G73 -> 0
C73: 10 | D73: 0 | E73: Total | F73: 0 | G73: 0 | H73: =H71+H72 -> 0
C74: 11 | D74: =D75 -> 0 | E74: Non-capital | F74: =F75 -> 0 | G74: =G75 -> 0
C75: 11 | D75: =D76 -> 0 | E75: Capital | F75: =F76 -> 0 | G75: =G76 -> 0
C76: 11 | D76: 0 | E76: Total | F76: 0 | G76: 0 | H76: =H74+H75 -> 0
C77: 12 | D77: =D78 -> 0 | E77: Non-capital | F77: =F78 -> 0 | G77: =G78 -> 0
C78: 12 | D78: =D79 -> 0 | E78: Capital | F78: =F79 -> 0 | G78: =G79 -> 0
C79: 12 | D79: 0 | E79: Total | F79: 0 | G79: 0 | H79: =H77+H78 -> 0
C80: 13 | D80: =D81 -> 0 | E80: Non-capital | F80: =F81 -> 0 | G80: =G81 -> 0
C81: 13 | D81: =D82 -> 0 | E81: Capital | F81: =F82 -> 0 | G81: =G82 -> 0
C82: 13 | D82: 0 | E82: Total | F82: 0 | G82: 0 | H82: =H80+H81 -> 0
C83: 14 | D83: =D84 -> 0 | E83: Non-capital | F83: =F84 -> 0 | G83: =G84 -> 0
C84: 14 | D84: =D85 -> 0 | E84: Capital | F84: =F85 -> 0 | G84: =G85 -> 0
C85: 14 | D85: 0 | E85: Total | F85: 0 | G85: 0 | H85: =H83+H84 -> 0
C86: 15 | D86: =D87 -> 0 | E86: Non-capital | F86: =F87 -> 0 | G86: =G87 -> 0
C87: 15 | D87: =D88 -> 0 | E87: Capital | F87: =F88 -> 0 | G87: =G88 -> 0
C88: 15 | D88: 0 | E88: Total | F88: 0 | G88: 0 | H88: =H86+H87 -> 0
D90: Total | E90: Non-capital | I90: =SUMIFS(Table4[Base year volume],Table4[[Application]:[Application]],$E90) -> 0 | J90: =SUMIFS(Table4[F-RP0],Table4[[Application]:[Application]],$E90) -> 0 | K90: =SUMIFS(Table4[F-RP+1],Table4[[Application]:[Application]],$E90) -> 0 | L90: =SUMIFS(Table4[F-RP+2],Table4[[Application]:[Application]],$E90) -> 0 | M90: =SUMIFS(Table4[F-RP+3],Table4[[Application]:[Application]],$E90) -> 0 | N90: =SUMIFS(Table4[F-RP+4],Table4[[Application]:[Application]],$E90) -> 0
D91: Total | E91: Capital | I91: =SUMIFS(Table4[Base year volume],Table4[[Application]:[Application]],$E91) -> 0 | J91: =SUMIFS(Table4[F-RP0],Table4[[Application]:[Application]],$E91) -> 0 | K91: =SUMIFS(Table4[F-RP+1],Table4[[Application]:[Application]],$E91) -> 0 | L91: =SUMIFS(Table4[F-RP+2],Table4[[Application]:[Application]],$E91) -> 0 | M91: =SUMIFS(Table4[F-RP+3],Table4[[Application]:[Application]],$E91) -> 0 | N91: =SUMIFS(Table4[F-RP+4],Table4[[Application]:[Application]],$E91) -> 0
B95: =LEFT(B39,1)+1&". Set X-Factors" -> 6. Set X-Factors
A97: Price cap calculation
B99: 1: Non-capital
C101: Unsmoothed - Annual Revenue Requirement | E101: ='Calc | Price Cap'!I59/10^6 -> 0 | F101: ='Inputs | Price Cap'!H27 -> 0 | G101: ='Inputs | Price Cap'!I27 -> 0 | H101: ='Inputs | Price Cap'!J27 -> 0 | I101: ='Inputs | Price Cap'!K27 -> 0 | J101: ='Inputs | Price Cap'!L27 -> 0 | L101: ='Inputs | Price Cap'!G33 -> 0 | M101: NPV (unsmoothed)
F103: =F106-E101 -> 0 | G103: First year difference ($m) | L103: =J101-I101 -> 0 | M103: Final year difference ($m)
F104: =(F106/E101)-1 ->  | G104: First year difference (%) | L104: =(J101/I101)-1 ->  | M104: Final year difference (%)
C106: Smoothed - Expected Revenue | E106: ='Calc | Price Cap'!I59/10^6 -> 0 | F106: ='Calc | Price Cap'!J59/10^6 -> 0 | G106: ='Calc | Price Cap'!K59/10^6 -> 0 | H106: ='Calc | Price Cap'!L59/10^6 -> 0 | I106: ='Calc | Price Cap'!M59/10^6 -> 0 | J106: ='Calc | Price Cap'!N59/10^6 -> 0 | L106: =SUMPRODUCT($F106:$J106,1/'Inputs | Price Cap'!$H$10:$L$10) -> 0 | M106: NPV (smoothed)
C108: X Factors | F108: P_0 | G108: X_02 | H108: X_03 | I108: X_04 | J108: X_05
C109: positive P0, X imply real decrease in price/ revenue constraint | L109: =L101-L106 -> 0 | M109: NPV difference (smoothed vs unsmoothed)
B115: 2: Capital
C117: Unsmoothed - Annual Revenue Requirement | E117: ='Calc | Price Cap'!I60/10^6 -> 0 | F117: ='Inputs | Price Cap'!H28 -> 0 | G117: ='Inputs | Price Cap'!I28 -> 0 | H117: ='Inputs | Price Cap'!J28 -> 0 | I117: ='Inputs | Price Cap'!K28 -> 0 | J117: ='Inputs | Price Cap'!L28 -> 0 | L117: ='Inputs | Price Cap'!G34 -> 0 | M117: NPV (unsmoothed)
F119: =F122-E117 -> 0 | G119: First year difference ($m) | L119: =J117-I117 -> 0 | M119: Final year difference ($m)
F120: =(F122/E117)-1 ->  | G120: First year difference (%) | L120: =(J117/I117)-1 ->  | M120: Final year difference (%)
C122: Smoothed - Expected Revenue | E122: ='Calc | Price Cap'!I60/10^6 -> 0 | F122: ='Calc | Price Cap'!J60/10^6 -> 0 | G122: ='Calc | Price Cap'!K60/10^6 -> 0 | H122: ='Calc | Price Cap'!L60/10^6 -> 0 | I122: ='Calc | Price Cap'!M60/10^6 -> 0 | J122: ='Calc | Price Cap'!N60/10^6 -> 0 | L122: =SUMPRODUCT($F122:$J122,1/'Inputs | Price Cap'!$H$10:$L$10) -> 0 | M122: NPV (smoothed)
C124: X Factors | F124: P_0 | G124: X_02 | H124: X_03 | I124: X_04 | J124: X_05
C125: positive P0, X imply real decrease in price/ revenue constraint | L125: =L117-L122 -> 0 | M125: NPV difference (smoothed vs unsmoothed)

Sheet Calc | Price Cap (hidden)
B1: ='Title Page'!B8&" v"&'Title Page'!$C$10 -> JEN 2027-31 - ACS Standardised Metering Pricing Model v1.02 | M1: DNSP: | N1: =IF('Inputs | General'!$G$16="Exit Fees (Vic)","NOT USED",NSP) -> NOT USED
B2: =MID(CELL("filename",A1),FIND("]",CELL("filename",A1))+1,255) -> Calc | Price Cap | H2: Key: | I2: Input | J2: External Link | K2: Internal Link
B5: Annual Charges Calculations
B7: Annual Smoothed Revenue Calculation
I8: Base Year Revenue | J8: Annual Revenue
A9: ▼ Table Filters | C9: Tariff # | D9: Tariff name | E9: Application | F9: Tariff Code | G9: Other designation | I9: =LEFT(J9,4)-1&"-"&RIGHT(J9,2)-1 -> 2025-26 | J9: =FPFirstYear -> 2026-27 | K9: =LEFT(J9,4)+1&"-"&RIGHT(J9,2)+1 -> 2027-28 | L9: =LEFT(K9,4)+1&"-"&RIGHT(K9,2)+1 -> 2028-29 | M9: =LEFT(L9,4)+1&"-"&RIGHT(L9,2)+1 -> 2029-30 | N9: =LEFT(M9,4)+1&"-"&RIGHT(M9,2)+1 -> 2030-31
C10: Tariff # | D10: Tariff name | E10: Application | F10: Tariff Code | G10: Other designation | H10: Column1 | I10: F-RP-1 | J10: F-RP0 | K10: F-RP+1 | L10: F-RP+2 | M10: F-RP+3 | N10: F-RP+4
C11: 1 | D11: ='Inputs | Price Cap'!D44 -> Residential Non ToU | E11: Non-capital | F11: ='Inputs | Price Cap'!F44 -> R1 | G11: ='Inputs | Price Cap'!G44 -> Primary | I11: ='Output | Price Caps'!$I9*'Inputs | Price Cap'!I44 -> 0 | J11: ='Output | Price Caps'!J9*'Inputs | Price Cap'!J44 -> 0 | K11: ='Output | Price Caps'!K9*'Inputs | Price Cap'!K44 -> 0 | L11: ='Output | Price Caps'!L9*'Inputs | Price Cap'!L44 -> 0 | M11: ='Output | Price Caps'!M9*'Inputs | Price Cap'!M44 -> 0 | N11: ='Output | Price Caps'!N9*'Inputs | Price Cap'!N44 -> 0
C12: 1 | D12: ='Inputs | Price Cap'!D45 -> Residential Non ToU | E12: Capital | F12: ='Inputs | Price Cap'!F45 -> R1 | G12: ='Inputs | Price Cap'!G45 -> Primary | I12: ='Output | Price Caps'!$I10*'Inputs | Price Cap'!I45 -> 0 | J12: ='Output | Price Caps'!J10*'Inputs | Price Cap'!J45 -> 0 | K12: ='Output | Price Caps'!K10*'Inputs | Price Cap'!K45 -> 0 | L12: ='Output | Price Caps'!L10*'Inputs | Price Cap'!L45 -> 0 | M12: ='Output | Price Caps'!M10*'Inputs | Price Cap'!M45 -> 0 | N12: ='Output | Price Caps'!N10*'Inputs | Price Cap'!N45 -> 0
C13: 1 | D13: ='Inputs | Price Cap'!D46 -> Residential Non ToU | E13: Total | F13: ='Inputs | Price Cap'!F46 -> R1 | G13: ='Inputs | Price Cap'!G46 -> Primary | I13: =I11+I12 -> 0 | J13: 0 | K13: 0 | L13: 0 | M13: 0 | N13: 0
C14: 2 | D14: ='Inputs | Price Cap'!D47 -> Residential ToU | E14: Non-capital | F14: ='Inputs | Price Cap'!F47 -> R2 | G14: ='Inputs | Price Cap'!G47 -> Primary | I14: ='Output | Price Caps'!$I12*'Inputs | Price Cap'!I47 -> 0 | J14: ='Output | Price Caps'!J12*'Inputs | Price Cap'!J47 -> 0 | K14: ='Output | Price Caps'!K12*'Inputs | Price Cap'!K47 -> 0 | L14: ='Output | Price Caps'!L12*'Inputs | Price Cap'!L47 -> 0 | M14: ='Output | Price Caps'!M12*'Inputs | Price Cap'!M47 -> 0 | N14: ='Output | Price Caps'!N12*'Inputs | Price Cap'!N47 -> 0
C15: 2 | D15: ='Inputs | Price Cap'!D48 -> Residential ToU | E15: Capital | F15: ='Inputs | Price Cap'!F48 -> R2 | G15: ='Inputs | Price Cap'!G48 -> Primary | I15: ='Output | Price Caps'!$I13*'Inputs | Price Cap'!I48 -> 0 | J15: ='Output | Price Caps'!J13*'Inputs | Price Cap'!J48 -> 0 | K15: ='Output | Price Caps'!K13*'Inputs | Price Cap'!K48 -> 0 | L15: ='Output | Price Caps'!L13*'Inputs | Price Cap'!L48 -> 0 | M15: ='Output | Price Caps'!M13*'Inputs | Price Cap'!M48 -> 0 | N15: ='Output | Price Caps'!N13*'Inputs | Price Cap'!N48 -> 0
C16: 2 | D16: ='Inputs | Price Cap'!D49 -> Residential ToU | E16: Total | F16: ='Inputs | Price Cap'!F49 -> R2 | G16: ='Inputs | Price Cap'!G49 -> Primary | I16: =I14+I15 -> 0 | J16: 0 | K16: 0 | L16: 0 | M16: 0 | N16: 0
C17: 3 | D17: ='Inputs | Price Cap'!D50 -> Controlled load | E17: Non-capital | F17: ='Inputs | Price Cap'!F50 -> B1 | G17: ='Inputs | Price Cap'!G50 -> Secondary | I17: ='Output | Price Caps'!$I15*'Inputs | Price Cap'!I50 -> 0 | J17: ='Output | Price Caps'!J15*'Inputs | Price Cap'!J50 -> 0 | K17: ='Output | Price Caps'!K15*'Inputs | Price Cap'!K50 -> 0 | L17: ='Output | Price Caps'!L15*'Inputs | Price Cap'!L50 -> 0 | M17: ='Output | Price Caps'!M15*'Inputs | Price Cap'!M50 -> 0 | N17: ='Output | Price Caps'!N15*'Inputs | Price Cap'!N50 -> 0
C18: 3 | D18: ='Inputs | Price Cap'!D51 -> Controlled load | E18: Capital | F18: ='Inputs | Price Cap'!F51 -> B1 | G18: ='Inputs | Price Cap'!G51 -> Secondary | I18: ='Output | Price Caps'!$I16*'Inputs | Price Cap'!I51 -> 0 | J18: ='Output | Price Caps'!J16*'Inputs | Price Cap'!J51 -> 0 | K18: ='Output | Price Caps'!K16*'Inputs | Price Cap'!K51 -> 0 | L18: ='Output | Price Caps'!L16*'Inputs | Price Cap'!L51 -> 0 | M18: ='Output | Price Caps'!M16*'Inputs | Price Cap'!M51 -> 0 | N18: ='Output | Price Caps'!N16*'Inputs | Price Cap'!N51 -> 0
C19: 3 | D19: ='Inputs | Price Cap'!D52 -> Controlled load | E19: Total | F19: ='Inputs | Price Cap'!F52 -> B1 | G19: ='Inputs | Price Cap'!G52 -> Secondary | I19: =I17+I18 -> 0 | J19: 0 | K19: 0 | L19: 0 | M19: 0 | N19: 0
C20: 4 | D20: ='Inputs | Price Cap'!D53 -> Small Business Non ToU | E20: Non-capital | F20: ='Inputs | Price Cap'!F53 -> B2 | G20: ='Inputs | Price Cap'!G53 -> Primary | I20: ='Output | Price Caps'!$I18*'Inputs | Price Cap'!I53 -> 0 | J20: ='Output | Price Caps'!J18*'Inputs | Price Cap'!J53 -> 0 | K20: ='Output | Price Caps'!K18*'Inputs | Price Cap'!K53 -> 0 | L20: ='Output | Price Caps'!L18*'Inputs | Price Cap'!L53 -> 0 | M20: ='Output | Price Caps'!M18*'Inputs | Price Cap'!M53 -> 0 | N20: ='Output | Price Caps'!N18*'Inputs | Price Cap'!N53 -> 0
C21: 4 | D21: ='Inputs | Price Cap'!D54 -> Small Business Non ToU | E21: Capital | F21: ='Inputs | Price Cap'!F54 -> B2 | G21: ='Inputs | Price Cap'!G54 -> Primary | I21: ='Output | Price Caps'!$I19*'Inputs | Price Cap'!I54 -> 0 | J21: ='Output | Price Caps'!J19*'Inputs | Price Cap'!J54 -> 0 | K21: ='Output | Price Caps'!K19*'Inputs | Price Cap'!K54 -> 0 | L21: ='Output | Price Caps'!L19*'Inputs | Price Cap'!L54 -> 0 | M21: ='Output | Price Caps'!M19*'Inputs | Price Cap'!M54 -> 0 | N21: ='Output | Price Caps'!N19*'Inputs | Price Cap'!N54 -> 0
C22: 4 | D22: ='Inputs | Price Cap'!D55 -> Small Business Non ToU | E22: Total | F22: ='Inputs | Price Cap'!F55 -> B2 | G22: ='Inputs | Price Cap'!G55 -> Primary | I22: =I20+I21 -> 0 | J22: 0 | K22: 0 | L22: 0 | M22: 0 | N22: 0
C23: 5 | D23: ='Inputs | Price Cap'!D56 -> Small Business ToU | E23: Non-capital | F23: ='Inputs | Price Cap'!F56 -> LV1 | G23: ='Inputs | Price Cap'!G56 -> Primary | I23: ='Output | Price Caps'!$I21*'Inputs | Price Cap'!I56 -> 0 | J23: ='Output | Price Caps'!J21*'Inputs | Price Cap'!J56 -> 0 | K23: ='Output | Price Caps'!K21*'Inputs | Price Cap'!K56 -> 0 | L23: ='Output | Price Caps'!L21*'Inputs | Price Cap'!L56 -> 0 | M23: ='Output | Price Caps'!M21*'Inputs | Price Cap'!M56 -> 0 | N23: ='Output | Price Caps'!N21*'Inputs | Price Cap'!N56 -> 0
C24: 5 | D24: ='Inputs | Price Cap'!D57 -> Small Business ToU | E24: Capital | F24: ='Inputs | Price Cap'!F57 -> LV1 | G24: ='Inputs | Price Cap'!G57 -> Primary | I24: ='Output | Price Caps'!$I22*'Inputs | Price Cap'!I57 -> 0 | J24: ='Output | Price Caps'!J22*'Inputs | Price Cap'!J57 -> 0 | K24: ='Output | Price Caps'!K22*'Inputs | Price Cap'!K57 -> 0 | L24: ='Output | Price Caps'!L22*'Inputs | Price Cap'!L57 -> 0 | M24: ='Output | Price Caps'!M22*'Inputs | Price Cap'!M57 -> 0 | N24: ='Output | Price Caps'!N22*'Inputs | Price Cap'!N57 -> 0
A25: ▼ More Rows | C25: 5 | D25: ='Inputs | Price Cap'!D58 -> Small Business ToU | E25: Total | F25: ='Inputs | Price Cap'!F58 -> LV1 | G25: ='Inputs | Price Cap'!G58 -> Primary | I25: =I23+I24 -> 0 | J25: 0 | K25: 0 | L25: 0 | M25: 0 | N25: 0
C26: 6 | D26: ='Inputs | Price Cap'!D59 -> LV 40-160 MWh (System) | E26: Non-capital | F26: ='Inputs | Price Cap'!F59 -> 0 | G26: ='Inputs | Price Cap'!G59 -> 0 | I26: ='Output | Price Caps'!$I24*'Inputs | Price Cap'!I59 -> 0 | J26: ='Output | Price Caps'!J24*'Inputs | Price Cap'!J59 -> 0 | K26: ='Output | Price Caps'!K24*'Inputs | Price Cap'!K59 -> 0 | L26: ='Output | Price Caps'!L24*'Inputs | Price Cap'!L59 -> 0 | M26: ='Output | Price Caps'!M24*'Inputs | Price Cap'!M59 -> 0 | N26: ='Output | Price Caps'!N24*'Inputs | Price Cap'!N59 -> 0
C27: 6 | D27: ='Inputs | Price Cap'!D60 -> LV 40-160 MWh (System) | E27: Capital | F27: ='Inputs | Price Cap'!F60 -> 0 | G27: ='Inputs | Price Cap'!G60 -> 0 | I27: ='Output | Price Caps'!$I25*'Inputs | Price Cap'!I60 -> 0 | J27: ='Output | Price Caps'!J25*'Inputs | Price Cap'!J60 -> 0 | K27: ='Output | Price Caps'!K25*'Inputs | Price Cap'!K60 -> 0 | L27: ='Output | Price Caps'!L25*'Inputs | Price Cap'!L60 -> 0 | M27: ='Output | Price Caps'!M25*'Inputs | Price Cap'!M60 -> 0 | N27: ='Output | Price Caps'!N25*'Inputs | Price Cap'!N60 -> 0
C28: 6 | D28: ='Inputs | Price Cap'!D61 -> LV 40-160 MWh (System) | E28: Total | F28: ='Inputs | Price Cap'!F61 -> 0 | G28: ='Inputs | Price Cap'!G61 -> 0 | I28: =I26+I27 -> 0 | J28: 0 | K28: 0 | L28: 0 | M28: 0 | N28: 0
C29: 7 | D29: ='Inputs | Price Cap'!D62 -> 0 | E29: Non-capital | F29: ='Inputs | Price Cap'!F62 -> 0 | G29: ='Inputs | Price Cap'!G62 -> 0 | I29: ='Output | Price Caps'!$I27*'Inputs | Price Cap'!I62 -> 0 | J29: ='Output | Price Caps'!J27*'Inputs | Price Cap'!J62 -> 0 | K29: ='Output | Price Caps'!K27*'Inputs | Price Cap'!K62 -> 0 | L29: ='Output | Price Caps'!L27*'Inputs | Price Cap'!L62 -> 0 | M29: ='Output | Price Caps'!M27*'Inputs | Price Cap'!M62 -> 0 | N29: ='Output | Price Caps'!N27*'Inputs | Price Cap'!N62 -> 0
C30: 7 | D30: ='Inputs | Price Cap'!D63 -> 0 | E30: Capital | F30: ='Inputs | Price Cap'!F63 -> 0 | G30: ='Inputs | Price Cap'!G63 -> 0 | I30: ='Output | Price Caps'!$I28*'Inputs | Price Cap'!I63 -> 0 | J30: ='Output | Price Caps'!J28*'Inputs | Price Cap'!J63 -> 0 | K30: ='Output | Price Caps'!K28*'Inputs | Price Cap'!K63 -> 0 | L30: ='Output | Price Caps'!L28*'Inputs | Price Cap'!L63 -> 0 | M30: ='Output | Price Caps'!M28*'Inputs | Price Cap'!M63 -> 0 | N30: ='Output | Price Caps'!N28*'Inputs | Price Cap'!N63 -> 0
C31: 7 | D31: ='Inputs | Price Cap'!D64 -> 0 | E31: Total | F31: ='Inputs | Price Cap'!F64 -> 0 | G31: ='Inputs | Price Cap'!G64 -> 0 | I31: =I29+I30 -> 0 | J31: 0 | K31: 0 | L31: 0 | M31: 0 | N31: 0
C32: 8 | D32: ='Inputs | Price Cap'!D65 -> 0 | E32: Non-capital | F32: ='Inputs | Price Cap'!F65 -> 0 | G32: ='Inputs | Price Cap'!G65 -> 0 | I32: ='Output | Price Caps'!$I30*'Inputs | Price Cap'!I65 -> 0 | J32: ='Output | Price Caps'!J30*'Inputs | Price Cap'!J65 -> 0 | K32: ='Output | Price Caps'!K30*'Inputs | Price Cap'!K65 -> 0 | L32: ='Output | Price Caps'!L30*'Inputs | Price Cap'!L65 -> 0 | M32: ='Output | Price Caps'!M30*'Inputs | Price Cap'!M65 -> 0 | N32: ='Output | Price Caps'!N30*'Inputs | Price Cap'!N65 -> 0
C33: 8 | D33: ='Inputs | Price Cap'!D66 -> 0 | E33: Capital | F33: ='Inputs | Price Cap'!F66 -> 0 | G33: ='Inputs | Price Cap'!G66 -> 0 | I33: ='Output | Price Caps'!$I31*'Inputs | Price Cap'!I66 -> 0 | J33: ='Output | Price Caps'!J31*'Inputs | Price Cap'!J66 -> 0 | K33: ='Output | Price Caps'!K31*'Inputs | Price Cap'!K66 -> 0 | L33: ='Output | Price Caps'!L31*'Inputs | Price Cap'!L66 -> 0 | M33: ='Output | Price Caps'!M31*'Inputs | Price Cap'!M66 -> 0 | N33: ='Output | Price Caps'!N31*'Inputs | Price Cap'!N66 -> 0
C34: 8 | D34: ='Inputs | Price Cap'!D67 -> 0 | E34: Total | F34: ='Inputs | Price Cap'!F67 -> 0 | G34: ='Inputs | Price Cap'!G67 -> 0 | I34: =I32+I33 -> 0 | J34: 0 | K34: 0 | L34: 0 | M34: 0 | N34: 0
C35: 9 | D35: ='Inputs | Price Cap'!D68 -> 0 | E35: Non-capital | F35: ='Inputs | Price Cap'!F68 -> 0 | G35: ='Inputs | Price Cap'!G68 -> 0 | I35: ='Output | Price Caps'!$I33*'Inputs | Price Cap'!I68 -> 0 | J35: ='Output | Price Caps'!J33*'Inputs | Price Cap'!J68 -> 0 | K35: ='Output | Price Caps'!K33*'Inputs | Price Cap'!K68 -> 0 | L35: ='Output | Price Caps'!L33*'Inputs | Price Cap'!L68 -> 0 | M35: ='Output | Price Caps'!M33*'Inputs | Price Cap'!M68 -> 0 | N35: ='Output | Price Caps'!N33*'Inputs | Price Cap'!N68 -> 0
C36: 9 | D36: ='Inputs | Price Cap'!D69 -> 0 | E36: Capital | F36: ='Inputs | Price Cap'!F69 -> 0 | G36: ='Inputs | Price Cap'!G69 -> 0 | I36: ='Output | Price Caps'!$I34*'Inputs | Price Cap'!I69 -> 0 | J36: ='Output | Price Caps'!J34*'Inputs | Price Cap'!J69 -> 0 | K36: ='Output | Price Caps'!K34*'Inputs | Price Cap'!K69 -> 0 | L36: ='Output | Price Caps'!L34*'Inputs | Price Cap'!L69 -> 0 | M36: ='Output | Price Caps'!M34*'Inputs | Price Cap'!M69 -> 0 | N36: ='Output | Price Caps'!N34*'Inputs | Price Cap'!N69 -> 0
C37: 9 | D37: ='Inputs | Price Cap'!D70 -> 0 | E37: Total | F37: ='Inputs | Price Cap'!F70 -> 0 | G37: ='Inputs | Price Cap'!G70 -> 0 | I37: =I35+I36 -> 0 | J37: 0 | K37: 0 | L37: 0 | M37: 0 | N37: 0
C38: 10 | D38: ='Inputs | Price Cap'!D71 -> 0 | E38: Non-capital | F38: ='Inputs | Price Cap'!F71 -> 0 | G38: ='Inputs | Price Cap'!G71 -> 0 | I38: ='Output | Price Caps'!$I36*'Inputs | Price Cap'!I71 -> 0 | J38: ='Output | Price Caps'!J36*'Inputs | Price Cap'!J71 -> 0 | K38: ='Output | Price Caps'!K36*'Inputs | Price Cap'!K71 -> 0 | L38: ='Output | Price Caps'!L36*'Inputs | Price Cap'!L71 -> 0 | M38: ='Output | Price Caps'!M36*'Inputs | Price Cap'!M71 -> 0 | N38: ='Output | Price Caps'!N36*'Inputs | Price Cap'!N71 -> 0
C39: 10 | D39: ='Inputs | Price Cap'!D72 -> 0 | E39: Capital | F39: ='Inputs | Price Cap'!F72 -> 0 | G39: ='Inputs | Price Cap'!G72 -> 0 | I39: ='Output | Price Caps'!$I37*'Inputs | Price Cap'!I72 -> 0 | J39: ='Output | Price Caps'!J37*'Inputs | Price Cap'!J72 -> 0 | K39: ='Output | Price Caps'!K37*'Inputs | Price Cap'!K72 -> 0 | L39: ='Output | Price Caps'!L37*'Inputs | Price Cap'!L72 -> 0 | M39: ='Output | Price Caps'!M37*'Inputs | Price Cap'!M72 -> 0 | N39: ='Output | Price Caps'!N37*'Inputs | Price Cap'!N72 -> 0
C40: 10 | D40: ='Inputs | Price Cap'!D73 -> 0 | E40: Total | F40: ='Inputs | Price Cap'!F73 -> 0 | G40: ='Inputs | Price Cap'!G73 -> 0 | I40: =I38+I39 -> 0 | J40: 0 | K40: 0 | L40: 0 | M40: 0 | N40: 0
C41: 11 | D41: ='Inputs | Price Cap'!D74 -> 0 | E41: Non-capital | F41: ='Inputs | Price Cap'!F74 -> 0 | G41: ='Inputs | Price Cap'!G74 -> 0 | I41: ='Output | Price Caps'!$I39*'Inputs | Price Cap'!I74 -> 0 | J41: ='Output | Price Caps'!J39*'Inputs | Price Cap'!J74 -> 0 | K41: ='Output | Price Caps'!K39*'Inputs | Price Cap'!K74 -> 0 | L41: ='Output | Price Caps'!L39*'Inputs | Price Cap'!L74 -> 0 | M41: ='Output | Price Caps'!M39*'Inputs | Price Cap'!M74 -> 0 | N41: ='Output | Price Caps'!N39*'Inputs | Price Cap'!N74 -> 0
C42: 11 | D42: ='Inputs | Price Cap'!D75 -> 0 | E42: Capital | F42: ='Inputs | Price Cap'!F75 -> 0 | G42: ='Inputs | Price Cap'!G75 -> 0 | I42: ='Output | Price Caps'!$I40*'Inputs | Price Cap'!I75 -> 0 | J42: ='Output | Price Caps'!J40*'Inputs | Price Cap'!J75 -> 0 | K42: ='Output | Price Caps'!K40*'Inputs | Price Cap'!K75 -> 0 | L42: ='Output | Price Caps'!L40*'Inputs | Price Cap'!L75 -> 0 | M42: ='Output | Price Caps'!M40*'Inputs | Price Cap'!M75 -> 0 | N42: ='Output | Price Caps'!N40*'Inputs | Price Cap'!N75 -> 0
C43: 11 | D43: ='Inputs | Price Cap'!D76 -> 0 | E43: Total | F43: ='Inputs | Price Cap'!F76 -> 0 | G43: ='Inputs | Price Cap'!G76 -> 0 | I43: =I41+I42 -> 0 | J43: 0 | K43: 0 | L43: 0 | M43: 0 | N43: 0
C44: 12 | D44: ='Inputs | Price Cap'!D77 -> 0 | E44: Non-capital | F44: ='Inputs | Price Cap'!F77 -> 0 | G44: ='Inputs | Price Cap'!G77 -> 0 | I44: ='Output | Price Caps'!$I42*'Inputs | Price Cap'!I77 -> 0 | J44: ='Output | Price Caps'!J42*'Inputs | Price Cap'!J77 -> 0 | K44: ='Output | Price Caps'!K42*'Inputs | Price Cap'!K77 -> 0 | L44: ='Output | Price Caps'!L42*'Inputs | Price Cap'!L77 -> 0 | M44: ='Output | Price Caps'!M42*'Inputs | Price Cap'!M77 -> 0 | N44: ='Output | Price Caps'!N42*'Inputs | Price Cap'!N77 -> 0
C45: 12 | D45: ='Inputs | Price Cap'!D78 -> 0 | E45: Capital | F45: ='Inputs | Price Cap'!F78 -> 0 | G45: ='Inputs | Price Cap'!G78 -> 0 | I45: ='Output | Price Caps'!$I43*'Inputs | Price Cap'!I78 -> 0 | J45: ='Output | Price Caps'!J43*'Inputs | Price Cap'!J78 -> 0 | K45: ='Output | Price Caps'!K43*'Inputs | Price Cap'!K78 -> 0 | L45: ='Output | Price Caps'!L43*'Inputs | Price Cap'!L78 -> 0 | M45: ='Output | Price Caps'!M43*'Inputs | Price Cap'!M78 -> 0 | N45: ='Output | Price Caps'!N43*'Inputs | Price Cap'!N78 -> 0
C46: 12 | D46: ='Inputs | Price Cap'!D79 -> 0 | E46: Total | F46: ='Inputs | Price Cap'!F79 -> 0 | G46: ='Inputs | Price Cap'!G79 -> 0 | I46: =I44+I45 -> 0 | J46: 0 | K46: 0 | L46: 0 | M46: 0 | N46: 0
C47: 13 | D47: ='Inputs | Price Cap'!D80 -> 0 | E47: Non-capital | F47: ='Inputs | Price Cap'!F80 -> 0 | G47: ='Inputs | Price Cap'!G80 -> 0 | I47: ='Output | Price Caps'!$I45*'Inputs | Price Cap'!I80 -> 0 | J47: ='Output | Price Caps'!J45*'Inputs | Price Cap'!J80 -> 0 | K47: ='Output | Price Caps'!K45*'Inputs | Price Cap'!K80 -> 0 | L47: ='Output | Price Caps'!L45*'Inputs | Price Cap'!L80 -> 0 | M47: ='Output | Price Caps'!M45*'Inputs | Price Cap'!M80 -> 0 | N47: ='Output | Price Caps'!N45*'Inputs | Price Cap'!N80 -> 0
C48: 13 | D48: ='Inputs | Price Cap'!D81 -> 0 | E48: Capital | F48: ='Inputs | Price Cap'!F81 -> 0 | G48: ='Inputs | Price Cap'!G81 -> 0 | I48: ='Output | Price Caps'!$I46*'Inputs | Price Cap'!I81 -> 0 | J48: ='Output | Price Caps'!J46*'Inputs | Price Cap'!J81 -> 0 | K48: ='Output | Price Caps'!K46*'Inputs | Price Cap'!K81 -> 0 | L48: ='Output | Price Caps'!L46*'Inputs | Price Cap'!L81 -> 0 | M48: ='Output | Price Caps'!M46*'Inputs | Price Cap'!M81 -> 0 | N48: ='Output | Price Caps'!N46*'Inputs | Price Cap'!N81 -> 0
C49: 13 | D49: ='Inputs | Price Cap'!D82 -> 0 | E49: Total | F49: ='Inputs | Price Cap'!F82 -> 0 | G49: ='Inputs | Price Cap'!G82 -> 0 | I49: =I47+I48 -> 0 | J49: 0 | K49: 0 | L49: 0 | M49: 0 | N49: 0
C50: 14 | D50: ='Inputs | Price Cap'!D83 -> 0 | E50: Non-capital | F50: ='Inputs | Price Cap'!F83 -> 0 | G50: ='Inputs | Price Cap'!G83 -> 0 | I50: ='Output | Price Caps'!$I48*'Inputs | Price Cap'!I83 -> 0 | J50: ='Output | Price Caps'!J48*'Inputs | Price Cap'!J83 -> 0 | K50: ='Output | Price Caps'!K48*'Inputs | Price Cap'!K83 -> 0 | L50: ='Output | Price Caps'!L48*'Inputs | Price Cap'!L83 -> 0 | M50: ='Output | Price Caps'!M48*'Inputs | Price Cap'!M83 -> 0 | N50: ='Output | Price Caps'!N48*'Inputs | Price Cap'!N83 -> 0
C51: 14 | D51: ='Inputs | Price Cap'!D84 -> 0 | E51: Capital | F51: ='Inputs | Price Cap'!F84 -> 0 | G51: ='Inputs | Price Cap'!G84 -> 0 | I51: ='Output | Price Caps'!$I49*'Inputs | Price Cap'!I84 -> 0 | J51: ='Output | Price Caps'!J49*'Inputs | Price Cap'!J84 -> 0 | K51: ='Output | Price Caps'!K49*'Inputs | Price Cap'!K84 -> 0 | L51: ='Output | Price Caps'!L49*'Inputs | Price Cap'!L84 -> 0 | M51: ='Output | Price Caps'!M49*'Inputs | Price Cap'!M84 -> 0 | N51: ='Output | Price Caps'!N49*'Inputs | Price Cap'!N84 -> 0
C52: 14 | D52: ='Inputs | Price Cap'!D85 -> 0 | E52: Total | F52: ='Inputs | Price Cap'!F85 -> 0 | G52: ='Inputs | Price Cap'!G85 -> 0 | I52: =I50+I51 -> 0 | J52: 0 | K52: 0 | L52: 0 | M52: 0 | N52: 0
C53: 15 | D53: ='Inputs | Price Cap'!D86 -> 0 | E53: Non-capital | F53: ='Inputs | Price Cap'!F86 -> 0 | G53: ='Inputs | Price Cap'!G86 -> 0 | I53: ='Output | Price Caps'!$I51*'Inputs | Price Cap'!I86 -> 0 | J53: ='Output | Price Caps'!J51*'Inputs | Price Cap'!J86 -> 0 | K53: ='Output | Price Caps'!K51*'Inputs | Price Cap'!K86 -> 0 | L53: ='Output | Price Caps'!L51*'Inputs | Price Cap'!L86 -> 0 | M53: ='Output | Price Caps'!M51*'Inputs | Price Cap'!M86 -> 0 | N53: ='Output | Price Caps'!N51*'Inputs | Price Cap'!N86 -> 0
C54: 15 | D54: ='Inputs | Price Cap'!D87 -> 0 | E54: Capital | F54: ='Inputs | Price Cap'!F87 -> 0 | G54: ='Inputs | Price Cap'!G87 -> 0 | I54: ='Output | Price Caps'!$I52*'Inputs | Price Cap'!I87 -> 0 | J54: ='Output | Price Caps'!J52*'Inputs | Price Cap'!J87 -> 0 | K54: ='Output | Price Caps'!K52*'Inputs | Price Cap'!K87 -> 0 | L54: ='Output | Price Caps'!L52*'Inputs | Price Cap'!L87 -> 0 | M54: ='Output | Price Caps'!M52*'Inputs | Price Cap'!M87 -> 0 | N54: ='Output | Price Caps'!N52*'Inputs | Price Cap'!N87 -> 0
C55: 15 | D55: ='Inputs | Price Cap'!D88 -> 0 | E55: Total | F55: ='Inputs | Price Cap'!F88 -> 0 | G55: ='Inputs | Price Cap'!G88 -> 0 | I55: =I53+I54 -> 0 | J55: 0 | K55: 0 | L55: 0 | M55: 0 | N55: 0
B57: Total Smoothed Revenue
E58: Application | I58: =LEFT(J58,4)-1&"-"&RIGHT(J58,2)-1 -> 2025-26 | J58: =FPFirstYear -> 2026-27 | K58: =LEFT(J58,4)+1&"-"&RIGHT(J58,2)+1 -> 2027-28 | L58: =LEFT(K58,4)+1&"-"&RIGHT(K58,2)+1 -> 2028-29 | M58: =LEFT(L58,4)+1&"-"&RIGHT(L58,2)+1 -> 2029-30 | N58: =LEFT(M58,4)+1&"-"&RIGHT(M58,2)+1 -> 2030-31
E59: Non-capital | I59: =SUMIFS('Calc | Price Cap'!I$11:I$55,'Output | Price Caps'!$E$9:$E$53,$E59) -> 0 | J59: =SUMIFS('Calc | Price Cap'!J$11:J$55,'Output | Price Caps'!$E$9:$E$53,$E59) -> 0 | K59: =SUMIFS('Calc | Price Cap'!K$11:K$55,'Output | Price Caps'!$E$9:$E$53,$E59) -> 0 | L59: =SUMIFS('Calc | Price Cap'!L$11:L$55,'Output | Price Caps'!$E$9:$E$53,$E59) -> 0 | M59: =SUMIFS('Calc | Price Cap'!M$11:M$55,'Output | Price Caps'!$E$9:$E$53,$E59) -> 0 | N59: =SUMIFS('Calc | Price Cap'!N$11:N$55,'Output | Price Caps'!$E$9:$E$53,$E59) -> 0
E60: Capital | I60: =SUMIFS('Calc | Price Cap'!I$11:I$55,'Output | Price Caps'!$E$9:$E$53,$E60) -> 0 | J60: =SUMIFS('Calc | Price Cap'!J$11:J$55,'Output | Price Caps'!$E$9:$E$53,$E60) -> 0 | K60: =SUMIFS('Calc | Price Cap'!K$11:K$55,'Output | Price Caps'!$E$9:$E$53,$E60) -> 0 | L60: =SUMIFS('Calc | Price Cap'!L$11:L$55,'Output | Price Caps'!$E$9:$E$53,$E60) -> 0 | M60: =SUMIFS('Calc | Price Cap'!M$11:M$55,'Output | Price Caps'!$E$9:$E$53,$E60) -> 0 | N60: =SUMIFS('Calc | Price Cap'!N$11:N$55,'Output | Price Caps'!$E$9:$E$53,$E60) -> 0
E61: Total | I61: =SUMIFS('Calc | Price Cap'!I$11:I$55,'Output | Price Caps'!$E$9:$E$53,$E61) -> 0 | J61: =SUMIFS('Calc | Price Cap'!J$11:J$55,'Output | Price Caps'!$E$9:$E$53,$E61) -> 0 | K61: =SUMIFS('Calc | Price Cap'!K$11:K$55,'Output | Price Caps'!$E$9:$E$53,$E61) -> 0 | L61: =SUMIFS('Calc | Price Cap'!L$11:L$55,'Output | Price Caps'!$E$9:$E$53,$E61) -> 0 | M61: =SUMIFS('Calc | Price Cap'!M$11:M$55,'Output | Price Caps'!$E$9:$E$53,$E61) -> 0 | N61: =SUMIFS('Calc | Price Cap'!N$11:N$55,'Output | Price Caps'!$E$9:$E$53,$E61) -> 0
I63: =(ROUND(I59+I60,0)=ROUND(I61,0))/1 -> 1 | J63: 1 | K63: 1 | L63: 1 | M63: 1 | N63: 1

Sheet Output | Price Caps (hidden)
C1: ='Title Page'!B8&" v"&'Title Page'!$C$10 -> JEN 2027-31 - ACS Standardised Metering Pricing Model v1.02 | N1: DNSP: | O1: =IF('Inputs | General'!$G$16="Exit Fees (Vic)","NOT USED",NSP) -> NOT USED | U1: Worksheet check: | V1: =IF(COUNTA($W$5:$W$52)=COUNTIF($W5:$W53,"OK"),"OK","Check") -> OK
C2: =MID(CELL("filename",A1),FIND("]",CELL("filename",A1))+1,255) -> Output | Price Caps | H2: Key: | I2: Input | J2: External Link | K2: Internal Link
B5: RESULT - Price Cap - Annual Charges
I6: Base Year Charges | J6: Price Cap - Annual Charges (nominal)
A7: ▼ Table Filters | C7: Tariff # | D7: Tariff name | E7: Application | F7: Tariff Code | G7: Other designation | I7: =LEFT(J7,4)-1&"-"&RIGHT(J7,2)-1 -> 2025-26 | J7: =FPFirstYear -> 2026-27 | K7: =LEFT(J7,4)+1&"-"&RIGHT(J7,2)+1 -> 2027-28 | L7: =LEFT(K7,4)+1&"-"&RIGHT(K7,2)+1 -> 2028-29 | M7: =LEFT(L7,4)+1&"-"&RIGHT(L7,2)+1 -> 2029-30 | N7: =LEFT(M7,4)+1&"-"&RIGHT(M7,2)+1 -> 2030-31
C8: Tariff # | D8: Tariff name | E8: Application | F8: Tariff Code | G8: Other designation | H8: Ca | I8: F-RP-1 | J8: F-RP0 | K8: F-RP+1 | L8: F-RP+2 | M8: F-RP+3 | N8: F-RP+4 | O8: Column1
C9: 1 | D9: ='Inputs | Price Cap'!D44 -> Residential Non ToU | E9: Non-capital | F9: ='Inputs | Price Cap'!F44 -> R1 | G9: ='Inputs | Price Cap'!G44 -> Primary | I9: =ROUND('Inputs | Price Cap'!H44,2) -> 0 | J9: =ROUND('Output | Price Caps'!I9*(1-'Inputs | Price Cap'!F$109)*(1+'Inputs | General'!H$26),2) -> 0 | K9: =ROUND('Output | Price Caps'!J9*(1-'Inputs | Price Cap'!G$109)*(1+'Inputs | General'!I$26),2) -> 0 | L9: =ROUND('Output | Price Caps'!K9*(1-'Inputs | Price Cap'!H$109)*(1+'Inputs | General'!J$26),2) -> 0 | M9: =ROUND('Output | Price Caps'!L9*(1-'Inputs | Price Cap'!I$109)*(1+'Inputs | General'!K$26),2) -> 0 | N9: =ROUND('Output | Price Caps'!M9*(1-'Inputs | Price Cap'!J$109)*(1+'Inputs | General'!L$26),2) -> 0
C10: 1 | D10: ='Inputs | Price Cap'!D45 -> Residential Non ToU | E10: Capital | F10: ='Inputs | Price Cap'!F45 -> R1 | G10: ='Inputs | Price Cap'!G45 -> Primary | I10: =ROUND('Inputs | Price Cap'!H45,2) -> 0 | J10: =ROUND('Output | Price Caps'!I10*(1-'Inputs | Price Cap'!F$125)*(1+'Inputs | General'!H$26),2) -> 0 | K10: =ROUND('Output | Price Caps'!J10*(1-'Inputs | Price Cap'!G$125)*(1+'Inputs | General'!I$26),2) -> 0 | L10: =ROUND('Output | Price Caps'!K10*(1-'Inputs | Price Cap'!H$125)*(1+'Inputs | General'!J$26),2) -> 0 | M10: =ROUND('Output | Price Caps'!L10*(1-'Inputs | Price Cap'!I$125)*(1+'Inputs | General'!K$26),2) -> 0 | N10: =ROUND('Output | Price Caps'!M10*(1-'Inputs | Price Cap'!J$125)*(1+'Inputs | General'!L$26),2) -> 0
C11: 1 | D11: ='Inputs | Price Cap'!D46 -> Residential Non ToU | E11: Total | F11: ='Inputs | Price Cap'!F46 -> R1 | G11: ='Inputs | Price Cap'!G46 -> Primary | I11: =ROUND('Inputs | Price Cap'!H46,2) -> 0 | J11: =J9+J10 -> 0 | K11: =K9+K10 -> 0 | L11: =L9+L10 -> 0 | M11: =M9+M10 -> 0 | N11: =N9+N10 -> 0
C12: 2 | D12: ='Inputs | Price Cap'!D47 -> Residential ToU | E12: Non-capital | F12: ='Inputs | Price Cap'!F47 -> R2 | G12: ='Inputs | Price Cap'!G47 -> Primary | I12: =ROUND('Inputs | Price Cap'!H47,2) -> 0 | J12: =ROUND('Output | Price Caps'!I12*(1-'Inputs | Price Cap'!F$109)*(1+'Inputs | General'!H$26),2) -> 0 | K12: =ROUND('Output | Price Caps'!J12*(1-'Inputs | Price Cap'!G$109)*(1+'Inputs | General'!I$26),2) -> 0 | L12: =ROUND('Output | Price Caps'!K12*(1-'Inputs | Price Cap'!H$109)*(1+'Inputs | General'!J$26),2) -> 0 | M12: =ROUND('Output | Price Caps'!L12*(1-'Inputs | Price Cap'!I$109)*(1+'Inputs | General'!K$26),2) -> 0 | N12: =ROUND('Output | Price Caps'!M12*(1-'Inputs | Price Cap'!J$109)*(1+'Inputs | General'!L$26),2) -> 0
C13: 2 | D13: ='Inputs | Price Cap'!D48 -> Residential ToU | E13: Capital | F13: ='Inputs | Price Cap'!F48 -> R2 | G13: ='Inputs | Price Cap'!G48 -> Primary | I13: =ROUND('Inputs | Price Cap'!H48,2) -> 0 | J13: =ROUND('Output | Price Caps'!I13*(1-'Inputs | Price Cap'!F$125)*(1+'Inputs | General'!H$26),2) -> 0 | K13: =ROUND('Output | Price Caps'!J13*(1-'Inputs | Price Cap'!G$125)*(1+'Inputs | General'!I$26),2) -> 0 | L13: =ROUND('Output | Price Caps'!K13*(1-'Inputs | Price Cap'!H$125)*(1+'Inputs | General'!J$26),2) -> 0 | M13: =ROUND('Output | Price Caps'!L13*(1-'Inputs | Price Cap'!I$125)*(1+'Inputs | General'!K$26),2) -> 0 | N13: =ROUND('Output | Price Caps'!M13*(1-'Inputs | Price Cap'!J$125)*(1+'Inputs | General'!L$26),2) -> 0
C14: 2 | D14: ='Inputs | Price Cap'!D49 -> Residential ToU | E14: Total | F14: ='Inputs | Price Cap'!F49 -> R2 | G14: ='Inputs | Price Cap'!G49 -> Primary | I14: =ROUND('Inputs | Price Cap'!H49,2) -> 0 | J14: =J12+J13 -> 0 | K14: =K12+K13 -> 0 | L14: =L12+L13 -> 0 | M14: =M12+M13 -> 0 | N14: =N12+N13 -> 0
C15: 3 | D15: ='Inputs | Price Cap'!D50 -> Controlled load | E15: Non-capital | F15: ='Inputs | Price Cap'!F50 -> B1 | G15: ='Inputs | Price Cap'!G50 -> Secondary | I15: =ROUND('Inputs | Price Cap'!H50,2) -> 0 | J15: =ROUND('Output | Price Caps'!I15*(1-'Inputs | Price Cap'!F$109)*(1+'Inputs | General'!H$26),2) -> 0 | K15: =ROUND('Output | Price Caps'!J15*(1-'Inputs | Price Cap'!G$109)*(1+'Inputs | General'!I$26),2) -> 0 | L15: =ROUND('Output | Price Caps'!K15*(1-'Inputs | Price Cap'!H$109)*(1+'Inputs | General'!J$26),2) -> 0 | M15: =ROUND('Output | Price Caps'!L15*(1-'Inputs | Price Cap'!I$109)*(1+'Inputs | General'!K$26),2) -> 0 | N15: =ROUND('Output | Price Caps'!M15*(1-'Inputs | Price Cap'!J$109)*(1+'Inputs | General'!L$26),2) -> 0
C16: 3 | D16: ='Inputs | Price Cap'!D51 -> Controlled load | E16: Capital | F16: ='Inputs | Price Cap'!F51 -> B1 | G16: ='Inputs | Price Cap'!G51 -> Secondary | I16: =ROUND('Inputs | Price Cap'!H51,2) -> 0 | J16: =ROUND('Output | Price Caps'!I16*(1-'Inputs | Price Cap'!F$125)*(1+'Inputs | General'!H$26),2) -> 0 | K16: =ROUND('Output | Price Caps'!J16*(1-'Inputs | Price Cap'!G$125)*(1+'Inputs | General'!I$26),2) -> 0 | L16: =ROUND('Output | Price Caps'!K16*(1-'Inputs | Price Cap'!H$125)*(1+'Inputs | General'!J$26),2) -> 0 | M16: =ROUND('Output | Price Caps'!L16*(1-'Inputs | Price Cap'!I$125)*(1+'Inputs | General'!K$26),2) -> 0 | N16: =ROUND('Output | Price Caps'!M16*(1-'Inputs | Price Cap'!J$125)*(1+'Inputs | General'!L$26),2) -> 0
C17: 3 | D17: ='Inputs | Price Cap'!D52 -> Controlled load | E17: Total | F17: ='Inputs | Price Cap'!F52 -> B1 | G17: ='Inputs | Price Cap'!G52 -> Secondary | I17: =ROUND('Inputs | Price Cap'!H52,2) -> 0 | J17: =J15+J16 -> 0 | K17: =K15+K16 -> 0 | L17: =L15+L16 -> 0 | M17: =M15+M16 -> 0 | N17: =N15+N16 -> 0
C18: 4 | D18: ='Inputs | Price Cap'!D53 -> Small Business Non ToU | E18: Non-capital | F18: ='Inputs | Price Cap'!F53 -> B2 | G18: ='Inputs | Price Cap'!G53 -> Primary | I18: =ROUND('Inputs | Price Cap'!H53,2) -> 0 | J18: =ROUND('Output | Price Caps'!I18*(1-'Inputs | Price Cap'!F$109)*(1+'Inputs | General'!H$26),2) -> 0 | K18: =ROUND('Output | Price Caps'!J18*(1-'Inputs | Price Cap'!G$109)*(1+'Inputs | General'!I$26),2) -> 0 | L18: =ROUND('Output | Price Caps'!K18*(1-'Inputs | Price Cap'!H$109)*(1+'Inputs | General'!J$26),2) -> 0 | M18: =ROUND('Output | Price Caps'!L18*(1-'Inputs | Price Cap'!I$109)*(1+'Inputs | General'!K$26),2) -> 0 | N18: =ROUND('Output | Price Caps'!M18*(1-'Inputs | Price Cap'!J$109)*(1+'Inputs | General'!L$26),2) -> 0
C19: 4 | D19: ='Inputs | Price Cap'!D54 -> Small Business Non ToU | E19: Capital | F19: ='Inputs | Price Cap'!F54 -> B2 | G19: ='Inputs | Price Cap'!G54 -> Primary | I19: =ROUND('Inputs | Price Cap'!H54,2) -> 0 | J19: =ROUND('Output | Price Caps'!I19*(1-'Inputs | Price Cap'!F$125)*(1+'Inputs | General'!H$26),2) -> 0 | K19: =ROUND('Output | Price Caps'!J19*(1-'Inputs | Price Cap'!G$125)*(1+'Inputs | General'!I$26),2) -> 0 | L19: =ROUND('Output | Price Caps'!K19*(1-'Inputs | Price Cap'!H$125)*(1+'Inputs | General'!J$26),2) -> 0 | M19: =ROUND('Output | Price Caps'!L19*(1-'Inputs | Price Cap'!I$125)*(1+'Inputs | General'!K$26),2) -> 0 | N19: =ROUND('Output | Price Caps'!M19*(1-'Inputs | Price Cap'!J$125)*(1+'Inputs | General'!L$26),2) -> 0
C20: 4 | D20: ='Inputs | Price Cap'!D55 -> Small Business Non ToU | E20: Total | F20: ='Inputs | Price Cap'!F55 -> B2 | G20: ='Inputs | Price Cap'!G55 -> Primary | I20: =ROUND('Inputs | Price Cap'!H55,2) -> 0 | J20: =J18+J19 -> 0 | K20: =K18+K19 -> 0 | L20: =L18+L19 -> 0 | M20: =M18+M19 -> 0 | N20: =N18+N19 -> 0
C21: 5 | D21: ='Inputs | Price Cap'!D56 -> Small Business ToU | E21: Non-capital | F21: ='Inputs | Price Cap'!F56 -> LV1 | G21: ='Inputs | Price Cap'!G56 -> Primary | I21: =ROUND('Inputs | Price Cap'!H56,2) -> 0 | J21: =ROUND('Output | Price Caps'!I21*(1-'Inputs | Price Cap'!F$109)*(1+'Inputs | General'!H$26),2) -> 0 | K21: =ROUND('Output | Price Caps'!J21*(1-'Inputs | Price Cap'!G$109)*(1+'Inputs | General'!I$26),2) -> 0 | L21: =ROUND('Output | Price Caps'!K21*(1-'Inputs | Price Cap'!H$109)*(1+'Inputs | General'!J$26),2) -> 0 | M21: =ROUND('Output | Price Caps'!L21*(1-'Inputs | Price Cap'!I$109)*(1+'Inputs | General'!K$26),2) -> 0 | N21: =ROUND('Output | Price Caps'!M21*(1-'Inputs | Price Cap'!J$109)*(1+'Inputs | General'!L$26),2) -> 0
C22: 5 | D22: ='Inputs | Price Cap'!D57 -> Small Business ToU | E22: Capital | F22: ='Inputs | Price Cap'!F57 -> LV1 | G22: ='Inputs | Price Cap'!G57 -> Primary | I22: =ROUND('Inputs | Price Cap'!H57,2) -> 0 | J22: =ROUND('Output | Price Caps'!I22*(1-'Inputs | Price Cap'!F$125)*(1+'Inputs | General'!H$26),2) -> 0 | K22: =ROUND('Output | Price Caps'!J22*(1-'Inputs | Price Cap'!G$125)*(1+'Inputs | General'!I$26),2) -> 0 | L22: =ROUND('Output | Price Caps'!K22*(1-'Inputs | Price Cap'!H$125)*(1+'Inputs | General'!J$26),2) -> 0 | M22: =ROUND('Output | Price Caps'!L22*(1-'Inputs | Price Cap'!I$125)*(1+'Inputs | General'!K$26),2) -> 0 | N22: =ROUND('Output | Price Caps'!M22*(1-'Inputs | Price Cap'!J$125)*(1+'Inputs | General'!L$26),2) -> 0
C23: 5 | D23: ='Inputs | Price Cap'!D58 -> Small Business ToU | E23: Total | F23: ='Inputs | Price Cap'!F58 -> LV1 | G23: ='Inputs | Price Cap'!G58 -> Primary | I23: =ROUND('Inputs | Price Cap'!H58,2) -> 0 | J23: =J21+J22 -> 0 | K23: =K21+K22 -> 0 | L23: =L21+L22 -> 0 | M23: =M21+M22 -> 0 | N23: =N21+N22 -> 0
C24: 6 | D24: ='Inputs | Price Cap'!D59 -> LV 40-160 MWh (System) | E24: Non-capital | F24: ='Inputs | Price Cap'!F59 -> 0 | G24: ='Inputs | Price Cap'!G59 -> 0 | I24: =ROUND('Inputs | Price Cap'!H59,2) -> 0 | J24: =ROUND('Output | Price Caps'!I24*(1-'Inputs | Price Cap'!F$109)*(1+'Inputs | General'!H$26),2) -> 0 | K24: =ROUND('Output | Price Caps'!J24*(1-'Inputs | Price Cap'!G$109)*(1+'Inputs | General'!I$26),2) -> 0 | L24: =ROUND('Output | Price Caps'!K24*(1-'Inputs | Price Cap'!H$109)*(1+'Inputs | General'!J$26),2) -> 0 | M24: =ROUND('Output | Price Caps'!L24*(1-'Inputs | Price Cap'!I$109)*(1+'Inputs | General'!K$26),2) -> 0 | N24: =ROUND('Output | Price Caps'!M24*(1-'Inputs | Price Cap'!J$109)*(1+'Inputs | General'!L$26),2) -> 0
C25: 6 | D25: ='Inputs | Price Cap'!D60 -> LV 40-160 MWh (System) | E25: Capital | F25: ='Inputs | Price Cap'!F60 -> 0 | G25: ='Inputs | Price Cap'!G60 -> 0 | I25: =ROUND('Inputs | Price Cap'!H60,2) -> 0 | J25: =ROUND('Output | Price Caps'!I25*(1-'Inputs | Price Cap'!F$125)*(1+'Inputs | General'!H$26),2) -> 0 | K25: =ROUND('Output | Price Caps'!J25*(1-'Inputs | Price Cap'!G$125)*(1+'Inputs | General'!I$26),2) -> 0 | L25: =ROUND('Output | Price Caps'!K25*(1-'Inputs | Price Cap'!H$125)*(1+'Inputs | General'!J$26),2) -> 0 | M25: =ROUND('Output | Price Caps'!L25*(1-'Inputs | Price Cap'!I$125)*(1+'Inputs | General'!K$26),2) -> 0 | N25: =ROUND('Output | Price Caps'!M25*(1-'Inputs | Price Cap'!J$125)*(1+'Inputs | General'!L$26),2) -> 0
C26: 6 | D26: ='Inputs | Price Cap'!D61 -> LV 40-160 MWh (System) | E26: Total | F26: ='Inputs | Price Cap'!F61 -> 0 | G26: ='Inputs | Price Cap'!G61 -> 0 | I26: =ROUND('Inputs | Price Cap'!H61,2) -> 0 | J26: =J24+J25 -> 0 | K26: =K24+K25 -> 0 | L26: =L24+L25 -> 0 | M26: =M24+M25 -> 0 | N26: =N24+N25 -> 0
C27: 7 | D27: ='Inputs | Price Cap'!D62 -> 0 | E27: Non-capital | F27: ='Inputs | Price Cap'!F62 -> 0 | G27: ='Inputs | Price Cap'!G62 -> 0 | I27: =ROUND('Inputs | Price Cap'!H62,2) -> 0 | J27: =ROUND('Output | Price Caps'!I27*(1-'Inputs | Price Cap'!F$109)*(1+'Inputs | General'!H$26),2) -> 0 | K27: =ROUND('Output | Price Caps'!J27*(1-'Inputs | Price Cap'!G$109)*(1+'Inputs | General'!I$26),2) -> 0 | L27: =ROUND('Output | Price Caps'!K27*(1-'Inputs | Price Cap'!H$109)*(1+'Inputs | General'!J$26),2) -> 0 | M27: =ROUND('Output | Price Caps'!L27*(1-'Inputs | Price Cap'!I$109)*(1+'Inputs | General'!K$26),2) -> 0 | N27: =ROUND('Output | Price Caps'!M27*(1-'Inputs | Price Cap'!J$109)*(1+'Inputs | General'!L$26),2) -> 0
C28: 7 | D28: ='Inputs | Price Cap'!D63 -> 0 | E28: Capital | F28: ='Inputs | Price Cap'!F63 -> 0 | G28: ='Inputs | Price Cap'!G63 -> 0 | I28: =ROUND('Inputs | Price Cap'!H63,2) -> 0 | J28: =ROUND('Output | Price Caps'!I28*(1-'Inputs | Price Cap'!F$125)*(1+'Inputs | General'!H$26),2) -> 0 | K28: =ROUND('Output | Price Caps'!J28*(1-'Inputs | Price Cap'!G$125)*(1+'Inputs | General'!I$26),2) -> 0 | L28: =ROUND('Output | Price Caps'!K28*(1-'Inputs | Price Cap'!H$125)*(1+'Inputs | General'!J$26),2) -> 0 | M28: =ROUND('Output | Price Caps'!L28*(1-'Inputs | Price Cap'!I$125)*(1+'Inputs | General'!K$26),2) -> 0 | N28: =ROUND('Output | Price Caps'!M28*(1-'Inputs | Price Cap'!J$125)*(1+'Inputs | General'!L$26),2) -> 0
C29: 7 | D29: ='Inputs | Price Cap'!D64 -> 0 | E29: Total | F29: ='Inputs | Price Cap'!F64 -> 0 | G29: ='Inputs | Price Cap'!G64 -> 0 | I29: =ROUND('Inputs | Price Cap'!H64,2) -> 0 | J29: =J27+J28 -> 0 | K29: =K27+K28 -> 0 | L29: =L27+L28 -> 0 | M29: =M27+M28 -> 0 | N29: =N27+N28 -> 0
C30: 8 | D30: ='Inputs | Price Cap'!D65 -> 0 | E30: Non-capital | F30: ='Inputs | Price Cap'!F65 -> 0 | G30: ='Inputs | Price Cap'!G65 -> 0 | I30: =ROUND('Inputs | Price Cap'!H65,2) -> 0 | J30: =ROUND('Output | Price Caps'!I30*(1-'Inputs | Price Cap'!F$109)*(1+'Inputs | General'!H$26),2) -> 0 | K30: =ROUND('Output | Price Caps'!J30*(1-'Inputs | Price Cap'!G$109)*(1+'Inputs | General'!I$26),2) -> 0 | L30: =ROUND('Output | Price Caps'!K30*(1-'Inputs | Price Cap'!H$109)*(1+'Inputs | General'!J$26),2) -> 0 | M30: =ROUND('Output | Price Caps'!L30*(1-'Inputs | Price Cap'!I$109)*(1+'Inputs | General'!K$26),2) -> 0 | N30: =ROUND('Output | Price Caps'!M30*(1-'Inputs | Price Cap'!J$109)*(1+'Inputs | General'!L$26),2) -> 0
C31: 8 | D31: ='Inputs | Price Cap'!D66 -> 0 | E31: Capital | F31: ='Inputs | Price Cap'!F66 -> 0 | G31: ='Inputs | Price Cap'!G66 -> 0 | I31: =ROUND('Inputs | Price Cap'!H66,2) -> 0 | J31: =ROUND('Output | Price Caps'!I31*(1-'Inputs | Price Cap'!F$125)*(1+'Inputs | General'!H$26),2) -> 0 | K31: =ROUND('Output | Price Caps'!J31*(1-'Inputs | Price Cap'!G$125)*(1+'Inputs | General'!I$26),2) -> 0 | L31: =ROUND('Output | Price Caps'!K31*(1-'Inputs | Price Cap'!H$125)*(1+'Inputs | General'!J$26),2) -> 0 | M31: =ROUND('Output | Price Caps'!L31*(1-'Inputs | Price Cap'!I$125)*(1+'Inputs | General'!K$26),2) -> 0 | N31: =ROUND('Output | Price Caps'!M31*(1-'Inputs | Price Cap'!J$125)*(1+'Inputs | General'!L$26),2) -> 0
C32: 8 | D32: ='Inputs | Price Cap'!D67 -> 0 | E32: Total | F32: ='Inputs | Price Cap'!F67 -> 0 | G32: ='Inputs | Price Cap'!G67 -> 0 | I32: =ROUND('Inputs | Price Cap'!H67,2) -> 0 | J32: =J30+J31 -> 0 | K32: =K30+K31 -> 0 | L32: =L30+L31 -> 0 | M32: =M30+M31 -> 0 | N32: =N30+N31 -> 0
C33: 9 | D33: ='Inputs | Price Cap'!D68 -> 0 | E33: Non-capital | F33: ='Inputs | Price Cap'!F68 -> 0 | G33: ='Inputs | Price Cap'!G68 -> 0 | I33: =ROUND('Inputs | Price Cap'!H68,2) -> 0 | J33: =ROUND('Output | Price Caps'!I33*(1-'Inputs | Price Cap'!F$109)*(1+'Inputs | General'!H$26),2) -> 0 | K33: =ROUND('Output | Price Caps'!J33*(1-'Inputs | Price Cap'!G$109)*(1+'Inputs | General'!I$26),2) -> 0 | L33: =ROUND('Output | Price Caps'!K33*(1-'Inputs | Price Cap'!H$109)*(1+'Inputs | General'!J$26),2) -> 0 | M33: =ROUND('Output | Price Caps'!L33*(1-'Inputs | Price Cap'!I$109)*(1+'Inputs | General'!K$26),2) -> 0 | N33: =ROUND('Output | Price Caps'!M33*(1-'Inputs | Price Cap'!J$109)*(1+'Inputs | General'!L$26),2) -> 0
C34: 9 | D34: ='Inputs | Price Cap'!D69 -> 0 | E34: Capital | F34: ='Inputs | Price Cap'!F69 -> 0 | G34: ='Inputs | Price Cap'!G69 -> 0 | I34: =ROUND('Inputs | Price Cap'!H69,2) -> 0 | J34: =ROUND('Output | Price Caps'!I34*(1-'Inputs | Price Cap'!F$125)*(1+'Inputs | General'!H$26),2) -> 0 | K34: =ROUND('Output | Price Caps'!J34*(1-'Inputs | Price Cap'!G$125)*(1+'Inputs | General'!I$26),2) -> 0 | L34: =ROUND('Output | Price Caps'!K34*(1-'Inputs | Price Cap'!H$125)*(1+'Inputs | General'!J$26),2) -> 0 | M34: =ROUND('Output | Price Caps'!L34*(1-'Inputs | Price Cap'!I$125)*(1+'Inputs | General'!K$26),2) -> 0 | N34: =ROUND('Output | Price Caps'!M34*(1-'Inputs | Price Cap'!J$125)*(1+'Inputs | General'!L$26),2) -> 0
C35: 9 | D35: ='Inputs | Price Cap'!D70 -> 0 | E35: Total | F35: ='Inputs | Price Cap'!F70 -> 0 | G35: ='Inputs | Price Cap'!G70 -> 0 | I35: =ROUND('Inputs | Price Cap'!H70,2) -> 0 | J35: =J33+J34 -> 0 | K35: =K33+K34 -> 0 | L35: =L33+L34 -> 0 | M35: =M33+M34 -> 0 | N35: =N33+N34 -> 0
C36: 10 | D36: ='Inputs | Price Cap'!D71 -> 0 | E36: Non-capital | F36: ='Inputs | Price Cap'!F71 -> 0 | G36: ='Inputs | Price Cap'!G71 -> 0 | I36: =ROUND('Inputs | Price Cap'!H71,2) -> 0 | J36: =ROUND('Output | Price Caps'!I36*(1-'Inputs | Price Cap'!F$109)*(1+'Inputs | General'!H$26),2) -> 0 | K36: =ROUND('Output | Price Caps'!J36*(1-'Inputs | Price Cap'!G$109)*(1+'Inputs | General'!I$26),2) -> 0 | L36: =ROUND('Output | Price Caps'!K36*(1-'Inputs | Price Cap'!H$109)*(1+'Inputs | General'!J$26),2) -> 0 | M36: =ROUND('Output | Price Caps'!L36*(1-'Inputs | Price Cap'!I$109)*(1+'Inputs | General'!K$26),2) -> 0 | N36: =ROUND('Output | Price Caps'!M36*(1-'Inputs | Price Cap'!J$109)*(1+'Inputs | General'!L$26),2) -> 0
C37: 10 | D37: ='Inputs | Price Cap'!D72 -> 0 | E37: Capital | F37: ='Inputs | Price Cap'!F72 -> 0 | G37: ='Inputs | Price Cap'!G72 -> 0 | I37: =ROUND('Inputs | Price Cap'!H72,2) -> 0 | J37: =ROUND('Output | Price Caps'!I37*(1-'Inputs | Price Cap'!F$125)*(1+'Inputs | General'!H$26),2) -> 0 | K37: =ROUND('Output | Price Caps'!J37*(1-'Inputs | Price Cap'!G$125)*(1+'Inputs | General'!I$26),2) -> 0 | L37: =ROUND('Output | Price Caps'!K37*(1-'Inputs | Price Cap'!H$125)*(1+'Inputs | General'!J$26),2) -> 0 | M37: =ROUND('Output | Price Caps'!L37*(1-'Inputs | Price Cap'!I$125)*(1+'Inputs | General'!K$26),2) -> 0 | N37: =ROUND('Output | Price Caps'!M37*(1-'Inputs | Price Cap'!J$125)*(1+'Inputs | General'!L$26),2) -> 0
C38: 10 | D38: ='Inputs | Price Cap'!D73 -> 0 | E38: Total | F38: ='Inputs | Price Cap'!F73 -> 0 | G38: ='Inputs | Price Cap'!G73 -> 0 | I38: =ROUND('Inputs | Price Cap'!H73,2) -> 0 | J38: =J36+J37 -> 0 | K38: =K36+K37 -> 0 | L38: =L36+L37 -> 0 | M38: =M36+M37 -> 0 | N38: =N36+N37 -> 0
C39: 11 | D39: ='Inputs | Price Cap'!D74 -> 0 | E39: Non-capital | F39: ='Inputs | Price Cap'!F74 -> 0 | G39: ='Inputs | Price Cap'!G74 -> 0 | I39: =ROUND('Inputs | Price Cap'!H74,2) -> 0 | J39: =ROUND('Output | Price Caps'!I39*(1-'Inputs | Price Cap'!F$109)*(1+'Inputs | General'!H$26),2) -> 0 | K39: =ROUND('Output | Price Caps'!J39*(1-'Inputs | Price Cap'!G$109)*(1+'Inputs | General'!I$26),2) -> 0 | L39: =ROUND('Output | Price Caps'!K39*(1-'Inputs | Price Cap'!H$109)*(1+'Inputs | General'!J$26),2) -> 0 | M39: =ROUND('Output | Price Caps'!L39*(1-'Inputs | Price Cap'!I$109)*(1+'Inputs | General'!K$26),2) -> 0 | N39: =ROUND('Output | Price Caps'!M39*(1-'Inputs | Price Cap'!J$109)*(1+'Inputs | General'!L$26),2) -> 0
C40: 11 | D40: ='Inputs | Price Cap'!D75 -> 0 | E40: Capital | F40: ='Inputs | Price Cap'!F75 -> 0 | G40: ='Inputs | Price Cap'!G75 -> 0 | I40: =ROUND('Inputs | Price Cap'!H75,2) -> 0 | J40: =ROUND('Output | Price Caps'!I40*(1-'Inputs | Price Cap'!F$125)*(1+'Inputs | General'!H$26),2) -> 0 | K40: =ROUND('Output | Price Caps'!J40*(1-'Inputs | Price Cap'!G$125)*(1+'Inputs | General'!I$26),2) -> 0 | L40: =ROUND('Output | Price Caps'!K40*(1-'Inputs | Price Cap'!H$125)*(1+'Inputs | General'!J$26),2) -> 0 | M40: =ROUND('Output | Price Caps'!L40*(1-'Inputs | Price Cap'!I$125)*(1+'Inputs | General'!K$26),2) -> 0 | N40: =ROUND('Output | Price Caps'!M40*(1-'Inputs | Price Cap'!J$125)*(1+'Inputs | General'!L$26),2) -> 0
C41: 11 | D41: ='Inputs | Price Cap'!D76 -> 0 | E41: Total | F41: ='Inputs | Price Cap'!F76 -> 0 | G41: ='Inputs | Price Cap'!G76 -> 0 | I41: =ROUND('Inputs | Price Cap'!H76,2) -> 0 | J41: =J39+J40 -> 0 | K41: =K39+K40 -> 0 | L41: =L39+L40 -> 0 | M41: =M39+M40 -> 0 | N41: =N39+N40 -> 0
C42: 12 | D42: ='Inputs | Price Cap'!D77 -> 0 | E42: Non-capital | F42: ='Inputs | Price Cap'!F77 -> 0 | G42: ='Inputs | Price Cap'!G77 -> 0 | I42: =ROUND('Inputs | Price Cap'!H77,2) -> 0 | J42: =ROUND('Output | Price Caps'!I42*(1-'Inputs | Price Cap'!F$109)*(1+'Inputs | General'!H$26),2) -> 0 | K42: =ROUND('Output | Price Caps'!J42*(1-'Inputs | Price Cap'!G$109)*(1+'Inputs | General'!I$26),2) -> 0 | L42: =ROUND('Output | Price Caps'!K42*(1-'Inputs | Price Cap'!H$109)*(1+'Inputs | General'!J$26),2) -> 0 | M42: =ROUND('Output | Price Caps'!L42*(1-'Inputs | Price Cap'!I$109)*(1+'Inputs | General'!K$26),2) -> 0 | N42: =ROUND('Output | Price Caps'!M42*(1-'Inputs | Price Cap'!J$109)*(1+'Inputs | General'!L$26),2) -> 0
C43: 12 | D43: ='Inputs | Price Cap'!D78 -> 0 | E43: Capital | F43: ='Inputs | Price Cap'!F78 -> 0 | G43: ='Inputs | Price Cap'!G78 -> 0 | I43: =ROUND('Inputs | Price Cap'!H78,2) -> 0 | J43: =ROUND('Output | Price Caps'!I43*(1-'Inputs | Price Cap'!F$125)*(1+'Inputs | General'!H$26),2) -> 0 | K43: =ROUND('Output | Price Caps'!J43*(1-'Inputs | Price Cap'!G$125)*(1+'Inputs | General'!I$26),2) -> 0 | L43: =ROUND('Output | Price Caps'!K43*(1-'Inputs | Price Cap'!H$125)*(1+'Inputs | General'!J$26),2) -> 0 | M43: =ROUND('Output | Price Caps'!L43*(1-'Inputs | Price Cap'!I$125)*(1+'Inputs | General'!K$26),2) -> 0 | N43: =ROUND('Output | Price Caps'!M43*(1-'Inputs | Price Cap'!J$125)*(1+'Inputs | General'!L$26),2) -> 0
C44: 12 | D44: ='Inputs | Price Cap'!D79 -> 0 | E44: Total | F44: ='Inputs | Price Cap'!F79 -> 0 | G44: ='Inputs | Price Cap'!G79 -> 0 | I44: =ROUND('Inputs | Price Cap'!H79,2) -> 0 | J44: =J42+J43 -> 0 | K44: =K42+K43 -> 0 | L44: =L42+L43 -> 0 | M44: =M42+M43 -> 0 | N44: =N42+N43 -> 0
C45: 13 | D45: ='Inputs | Price Cap'!D80 -> 0 | E45: Non-capital | F45: ='Inputs | Price Cap'!F80 -> 0 | G45: ='Inputs | Price Cap'!G80 -> 0 | I45: =ROUND('Inputs | Price Cap'!H80,2) -> 0 | J45: =ROUND('Output | Price Caps'!I45*(1-'Inputs | Price Cap'!F$109)*(1+'Inputs | General'!H$26),2) -> 0 | K45: =ROUND('Output | Price Caps'!J45*(1-'Inputs | Price Cap'!G$109)*(1+'Inputs | General'!I$26),2) -> 0 | L45: =ROUND('Output | Price Caps'!K45*(1-'Inputs | Price Cap'!H$109)*(1+'Inputs | General'!J$26),2) -> 0 | M45: =ROUND('Output | Price Caps'!L45*(1-'Inputs | Price Cap'!I$109)*(1+'Inputs | General'!K$26),2) -> 0 | N45: =ROUND('Output | Price Caps'!M45*(1-'Inputs | Price Cap'!J$109)*(1+'Inputs | General'!L$26),2) -> 0
C46: 13 | D46: ='Inputs | Price Cap'!D81 -> 0 | E46: Capital | F46: ='Inputs | Price Cap'!F81 -> 0 | G46: ='Inputs | Price Cap'!G81 -> 0 | I46: =ROUND('Inputs | Price Cap'!H81,2) -> 0 | J46: =ROUND('Output | Price Caps'!I46*(1-'Inputs | Price Cap'!F$125)*(1+'Inputs | General'!H$26),2) -> 0 | K46: =ROUND('Output | Price Caps'!J46*(1-'Inputs | Price Cap'!G$125)*(1+'Inputs | General'!I$26),2) -> 0 | L46: =ROUND('Output | Price Caps'!K46*(1-'Inputs | Price Cap'!H$125)*(1+'Inputs | General'!J$26),2) -> 0 | M46: =ROUND('Output | Price Caps'!L46*(1-'Inputs | Price Cap'!I$125)*(1+'Inputs | General'!K$26),2) -> 0 | N46: =ROUND('Output | Price Caps'!M46*(1-'Inputs | Price Cap'!J$125)*(1+'Inputs | General'!L$26),2) -> 0
C47: 13 | D47: ='Inputs | Price Cap'!D82 -> 0 | E47: Total | F47: ='Inputs | Price Cap'!F82 -> 0 | G47: ='Inputs | Price Cap'!G82 -> 0 | I47: =ROUND('Inputs | Price Cap'!H82,2) -> 0 | J47: =J45+J46 -> 0 | K47: =K45+K46 -> 0 | L47: =L45+L46 -> 0 | M47: =M45+M46 -> 0 | N47: =N45+N46 -> 0
C48: 14 | D48: ='Inputs | Price Cap'!D83 -> 0 | E48: Non-capital | F48: ='Inputs | Price Cap'!F83 -> 0 | G48: ='Inputs | Price Cap'!G83 -> 0 | I48: =ROUND('Inputs | Price Cap'!H83,2) -> 0 | J48: =ROUND('Output | Price Caps'!I48*(1-'Inputs | Price Cap'!F$109)*(1+'Inputs | General'!H$26),2) -> 0 | K48: =ROUND('Output | Price Caps'!J48*(1-'Inputs | Price Cap'!G$109)*(1+'Inputs | General'!I$26),2) -> 0 | L48: =ROUND('Output | Price Caps'!K48*(1-'Inputs | Price Cap'!H$109)*(1+'Inputs | General'!J$26),2) -> 0 | M48: =ROUND('Output | Price Caps'!L48*(1-'Inputs | Price Cap'!I$109)*(1+'Inputs | General'!K$26),2) -> 0 | N48: =ROUND('Output | Price Caps'!M48*(1-'Inputs | Price Cap'!J$109)*(1+'Inputs | General'!L$26),2) -> 0
C49: 14 | D49: ='Inputs | Price Cap'!D84 -> 0 | E49: Capital | F49: ='Inputs | Price Cap'!F84 -> 0 | G49: ='Inputs | Price Cap'!G84 -> 0 | I49: =ROUND('Inputs | Price Cap'!H84,2) -> 0 | J49: =ROUND('Output | Price Caps'!I49*(1-'Inputs | Price Cap'!F$125)*(1+'Inputs | General'!H$26),2) -> 0 | K49: =ROUND('Output | Price Caps'!J49*(1-'Inputs | Price Cap'!G$125)*(1+'Inputs | General'!I$26),2) -> 0 | L49: =ROUND('Output | Price Caps'!K49*(1-'Inputs | Price Cap'!H$125)*(1+'Inputs | General'!J$26),2) -> 0 | M49: =ROUND('Output | Price Caps'!L49*(1-'Inputs | Price Cap'!I$125)*(1+'Inputs | General'!K$26),2) -> 0 | N49: =ROUND('Output | Price Caps'!M49*(1-'Inputs | Price Cap'!J$125)*(1+'Inputs | General'!L$26),2) -> 0
C50: 14 | D50: ='Inputs | Price Cap'!D85 -> 0 | E50: Total | F50: ='Inputs | Price Cap'!F85 -> 0 | G50: ='Inputs | Price Cap'!G85 -> 0 | I50: =ROUND('Inputs | Price Cap'!H85,2) -> 0 | J50: =J48+J49 -> 0 | K50: =K48+K49 -> 0 | L50: =L48+L49 -> 0 | M50: =M48+M49 -> 0 | N50: =N48+N49 -> 0
C51: 15 | D51: ='Inputs | Price Cap'!D86 -> 0 | E51: Non-capital | F51: ='Inputs | Price Cap'!F86 -> 0 | G51: ='Inputs | Price Cap'!G86 -> 0 | I51: =ROUND('Inputs | Price Cap'!H86,2) -> 0 | J51: =ROUND('Output | Price Caps'!I51*(1-'Inputs | Price Cap'!F$109)*(1+'Inputs | General'!H$26),2) -> 0 | K51: =ROUND('Output | Price Caps'!J51*(1-'Inputs | Price Cap'!G$109)*(1+'Inputs | General'!I$26),2) -> 0 | L51: =ROUND('Output | Price Caps'!K51*(1-'Inputs | Price Cap'!H$109)*(1+'Inputs | General'!J$26),2) -> 0 | M51: =ROUND('Output | Price Caps'!L51*(1-'Inputs | Price Cap'!I$109)*(1+'Inputs | General'!K$26),2) -> 0 | N51: =ROUND('Output | Price Caps'!M51*(1-'Inputs | Price Cap'!J$109)*(1+'Inputs | General'!L$26),2) -> 0
C52: 15 | D52: ='Inputs | Price Cap'!D87 -> 0 | E52: Capital | F52: ='Inputs | Price Cap'!F87 -> 0 | G52: ='Inputs | Price Cap'!G87 -> 0 | I52: =ROUND('Inputs | Price Cap'!H87,2) -> 0 | J52: =ROUND('Output | Price Caps'!I52*(1-'Inputs | Price Cap'!F$125)*(1+'Inputs | General'!H$26),2) -> 0 | K52: =ROUND('Output | Price Caps'!J52*(1-'Inputs | Price Cap'!G$125)*(1+'Inputs | General'!I$26),2) -> 0 | L52: =ROUND('Output | Price Caps'!K52*(1-'Inputs | Price Cap'!H$125)*(1+'Inputs | General'!J$26),2) -> 0 | M52: =ROUND('Output | Price Caps'!L52*(1-'Inputs | Price Cap'!I$125)*(1+'Inputs | General'!K$26),2) -> 0 | N52: =ROUND('Output | Price Caps'!M52*(1-'Inputs | Price Cap'!J$125)*(1+'Inputs | General'!L$26),2) -> 0
C53: 15 | D53: ='Inputs | Price Cap'!D88 -> 0 | E53: Total | F53: ='Inputs | Price Cap'!F88 -> 0 | G53: ='Inputs | Price Cap'!G88 -> 0 | I53: =ROUND('Inputs | Price Cap'!H88,2) -> 0 | J53: =J51+J52 -> 0 | K53: =K51+K52 -> 0 | L53: =L51+L52 -> 0 | M53: =M51+M52 -> 0 | N53: =N51+N52 -> 0
B56: Implicit X-Factors
D57: X-Factors | E57: =FPFirstYear -> 2026-27 | F57: =LEFT(E57,4)+1&"-"&RIGHT(E57,2)+1 -> 2027-28 | G57: =LEFT(F57,4)+1&"-"&RIGHT(F57,2)+1 -> 2028-29 | H57: =LEFT(G57,4)+1&"-"&RIGHT(G57,2)+1 -> 2029-30 | I57: =LEFT(H57,4)+1&"-"&RIGHT(H57,2)+1 -> 2030-31
E58: P_0 | F58: X_02 | G58: X_03 | H58: X_04 | I58: X_05
D59: All Tariffs - Non-Capital | E59: =NC_P_0_WAPC -> 0 | F59: =NC_X_02_WAPC -> 0 | G59: =NC_X_03_WAPC -> 0 | H59: =NC_X_04_WAPC -> 0 | I59: =NC_X_05_WAPC -> 0
D60: All Tariffs - Capital | E60: =C_P_0_WAPC -> 0 | F60: =C_X_02_WAPC -> 0 | G60: =C_X_03_WAPC -> 0 | H60: =C_X_04_WAPC -> 0 | I60: =C_X_05_WAPC -> 0
B65: Cost Metric
I66: Base Year Charges | J66: Price Cap - Annual Charges
D67: Price Cap Per Meter | F67: Application | G67: Units | H67: Basis | I67: =LEFT(J67,4)-1&"-"&RIGHT(J67,2)-1 -> 2025-26 | J67: =FPFirstYear -> 2026-27 | K67: =LEFT(J67,4)+1&"-"&RIGHT(J67,2)+1 -> 2027-28 | L67: =LEFT(K67,4)+1&"-"&RIGHT(K67,2)+1 -> 2028-29 | M67: =LEFT(L67,4)+1&"-"&RIGHT(L67,2)+1 -> 2029-30 | N67: =LEFT(M67,4)+1&"-"&RIGHT(M67,2)+1 -> 2030-31
D68: Volume Weighted Average Price Cap - Per Meter | F68: Non-capital | G68: $dollars | H68: nominal | I68: ='Calc | Price Cap'!I59/'Inputs | Price Cap'!I90 ->  | J68: ='Calc | Price Cap'!J59/'Inputs | Price Cap'!J90 ->  | K68: ='Calc | Price Cap'!K59/'Inputs | Price Cap'!K90 ->  | L68: ='Calc | Price Cap'!L59/'Inputs | Price Cap'!L90 ->  | M68: ='Calc | Price Cap'!M59/'Inputs | Price Cap'!M90 ->  | N68: ='Calc | Price Cap'!N59/'Inputs | Price Cap'!N90 -> 
D69: Volume Weighted Average Price Cap - Per Meter | F69: Capital | G69: $dollars | H69: nominal | I69: ='Calc | Price Cap'!I60/'Inputs | Price Cap'!I91 ->  | J69: ='Calc | Price Cap'!J60/'Inputs | Price Cap'!J91 ->  | K69: ='Calc | Price Cap'!K60/'Inputs | Price Cap'!K91 ->  | L69: ='Calc | Price Cap'!L60/'Inputs | Price Cap'!L91 ->  | M69: ='Calc | Price Cap'!M60/'Inputs | Price Cap'!M91 ->  | N69: ='Calc | Price Cap'!N60/'Inputs | Price Cap'!N91 -> 
D70: Volume Weighted Average Price Cap - Per Non-Capital Meter | F70: Total | G70: $dollars | H70: nominal | I70: ='Calc | Price Cap'!I61/'Inputs | Price Cap'!I90 ->  | J70: ='Calc | Price Cap'!J61/'Inputs | Price Cap'!J90 ->  | K70: ='Calc | Price Cap'!K61/'Inputs | Price Cap'!K90 ->  | L70: ='Calc | Price Cap'!L61/'Inputs | Price Cap'!L90 ->  | M70: ='Calc | Price Cap'!M61/'Inputs | Price Cap'!M90 ->  | N70: ='Calc | Price Cap'!N61/'Inputs | Price Cap'!N90 -> 

Sheet Exit Fees >

Sheet Input | Exit Fees
B1: ='Title Page'!B8&" v"&'Title Page'!$C$10 -> JEN 2027-31 - ACS Standardised Metering Pricing Model v1.02 | M1: DNSP: | N1: =IF('Inputs | General'!$G$16="Price Cap","NOT USED",NSP) -> JEN - ACS
B2: =MID(CELL("filename",A1),FIND("]",CELL("filename",A1))+1,255) -> Input | Exit Fees | H2: Key: | I2: Input | J2: External Link | K2: Internal Link | L2: Jemena modification
B5: =LEFT('Inputs | General'!B21,1)+1&". Linked Input - RAB" -> 3. Linked Input - RAB | J5: =IF('Inputs | General'!$G$16="Price Cap","NOT USED","") -> 
B7: Linked Input - RAB Meters | G7: Base Year | H7: Regulatory Period
E8: Units | G8: =LEFT(H8,4)-1&"-"&RIGHT(H8,2)-1 -> 2025-26 | H8: =FPFirstYear -> 2026-27 | I8: =LEFT(H8,4)+1&"-"&RIGHT(H8,2)+1 -> 2027-28 | J8: =LEFT(I8,4)+1&"-"&RIGHT(I8,2)+1 -> 2028-29 | K8: =LEFT(J8,4)+1&"-"&RIGHT(J8,2)+1 -> 2029-30 | L8: =LEFT(K8,4)+1&"-"&RIGHT(K8,2)+1 -> 2030-31 | M8: =LEFT(L8,4)+1&"-"&RIGHT(L8,2)+1 -> 2031-32
C9: Opening RAB | E9: $m | G9: 43.11458886 | H9: =G9+G10-G11 -> 41.40015554 | I9: 44.05250683 | J9: 52.17802034 | K9: 64.79051276 | L9: 79.94624278 | M9: 98.18242813 | N9: Opening balance of METERS row in PTRM inputs sheet of PTRM (nominal)
C10: Gross capital expenditure | E10: $m | G10: 8.073648948 | H10: 6.830305398 | I10: 12.83422032 | J10: 18.14031694 | K10: 21.77863743 | L10: 26.17447315 | N10: Gross capex from METERS row in ASSETS sheet of PTRM (nominal)
C11: Regulatory depreciation | E11: $m | G11: 9.78808227 | H11: 4.177954109 | I11: 4.708706813 | J11: 5.527824517 | K11: 6.622907406 | L11: 7.938287802 | N11: Depreciation from METERS row in ASSETS sheet of PTRM (nominal)
B14: Linked Input - RAB Comms & IT & Other
E15: Units | G15: =LEFT(H15,4)-1&"-"&RIGHT(H15,2)-1 -> 2025-26 | H15: =FPFirstYear -> 2026-27 | I15: =LEFT(H15,4)+1&"-"&RIGHT(H15,2)+1 -> 2027-28 | J15: =LEFT(I15,4)+1&"-"&RIGHT(I15,2)+1 -> 2028-29 | K15: =LEFT(J15,4)+1&"-"&RIGHT(J15,2)+1 -> 2029-30 | L15: =LEFT(K15,4)+1&"-"&RIGHT(K15,2)+1 -> 2030-31 | M15: =LEFT(L15,4)+1&"-"&RIGHT(L15,2)+1 -> 2031-32
C16: Opening RAB | E16: $m | G16: 5.826589846 | H16: =G16+G17-G18 -> 6.561155956 | I16: 13.65750042 | J16: 18.19983073 | K16: 19.12135271 | L16: 21.90967925 | M16: 20.81564398 | N16: Opening balance of COMMS & IT & Inhouse Software & ERC rows from PTRM INPUTS sheet of PTRM (nominal)
C17: Gross capital expenditure | E17: $m | G17: 2.17952665 | H17: 8.533831568 | I17: 7.073021875 | J17: 4.103876257 | K17: 6.639501254 | L17: 3.911883748 | N17: Gross capex from COMMS & IT & Inhouse Software & ERC rows in ASSETS sheet of PTRM (nominal)
C18: Regulatory depreciation | E18: $m | G18: 1.44496054 | H18: 1.437487103 | I18: 2.530691567 | J18: 3.182354277 | K18: 3.851174717 | L18: 5.005919009 | N18: Depreciation from COMMS & IT & Inhouse Software & ERC rows in ASSETS sheet of PTRM (nominal)
E21: Units | G21: =LEFT(H21,4)-1&"-"&RIGHT(H21,2)-1 -> 2025-26 | H21: =FPFirstYear -> 2026-27 | I21: =LEFT(H21,4)+1&"-"&RIGHT(H21,2)+1 -> 2027-28 | J21: =LEFT(I21,4)+1&"-"&RIGHT(I21,2)+1 -> 2028-29 | K21: =LEFT(J21,4)+1&"-"&RIGHT(J21,2)+1 -> 2029-30 | L21: =LEFT(K21,4)+1&"-"&RIGHT(K21,2)+1 -> 2030-31 | M21: =LEFT(L21,4)+1&"-"&RIGHT(L21,2)+1 -> 2031-32
B22: TOTAL Opening RAB | E22: $m | G22: =G9+G16 -> 48.94117871 | H22: 47.9613115 | I22: 57.71000725 | J22: 70.37785107 | K22: 83.91186547 | L22: 101.855922 | M22: 118.9980721
B25: =LEFT(B5,1)+1&". Input | Define Exit Fees" -> 4. Input | Define Exit Fees
B27: Enter Allowed Exit Fee in final year of current Regulatory Period | G27: Exit Fee
D28: Exit Fee Name | F28: Units | G28: Last Year - Current RP
D29: Single Phase | F29: $dollars | G29: 191.96
D30: Single Phase, Two Element | F30: $dollars | G30: 191.96
D31: Three Phase DC | F31: $dollars | G31: 191.96
D32: Three Phase CT | F32: $dollars | G32: 191.96
D33: 0 | F33: $dollars
D34: 0 | F34: $dollars | G34: 0
D35: 0 | F35: $dollars | G35: 0
D36: 0 | F36: $dollars | G36: 0
D37: 0 | F37: $dollars | G37: 0
D38: 0 | F38: $dollars | G38: 0
B42: =LEFT(B25,1)+1&". Input | from Metering ACS Model" -> 5. Input | from Metering ACS Model
B44: METERS
B46: a | C46: Inputs - Designated Exit Fee by Meter Type | G46: b | H46: Linked Input - Meter Types & Unit Costs
K47: Equipment Cost | L47: Labour Cost | M47: Total Cost
D48: Designated Exit Fee | H48: Meter Type | I48: Units | J48: Basis | K48: New Meter Installations | L48: New Meter Installations | M48: New Meter Installations | Q48: Link from Metering - ACS Model
D49: Single phase | H49: =+D49 -> Single phase | I49: $dollars | J49: 2024-06-01 | K49: 224.2051416 | M49: =K49+L49 -> 224.2051416
D50: Single Phase, Two Element | H50: =+D50 -> Single Phase, Two Element | I50: $dollars | J50: 2024-06-01 | K50: 261.36 | M50: 261.36
D51: Three Phase DC | H51: =+D51 -> Three Phase DC | I51: $dollars | J51: 2024-06-01 | K51: 386.9856666 | M51: 386.9856666
D52: Three Phase CT | H52: =+D52 -> Three Phase CT | I52: $dollars | J52: 2024-06-01 | K52: 502.94 | M52: 502.94
I53: $dollars | M53: 0
D54: 0 | I54: $dollars | M54: 0
D55: 0 | I55: $dollars
D56: 0 | I56: $dollars
D57: 0 | I57: $dollars
D58: 0 | I58: $dollars
D59: 0 | I59: $dollars
D60: 0 | I60: $dollars
D61: 0 | H61: 0 | I61: $dollars
D62: 0 | H62: 0 | I62: $dollars
D63: 0 | H63: 0 | I63: $dollars
B66: e | C66: Linked Input - Gross Meter Population (Year End), by meter type
J67: Number of meters in year
H68: =H48 -> Meter Type | I68: Units | J68: =LEFT(K68,4)-1&"-"&RIGHT(K68,2)-1 -> 2025-26 | K68: =FPFirstYear -> 2026-27 | L68: =LEFT(K68,4)+1&"-"&RIGHT(K68,2)+1 -> 2027-28 | M68: =LEFT(L68,4)+1&"-"&RIGHT(L68,2)+1 -> 2028-29 | N68: =LEFT(M68,4)+1&"-"&RIGHT(M68,2)+1 -> 2029-30 | O68: =LEFT(N68,4)+1&"-"&RIGHT(N68,2)+1 -> 2030-31 | Q68: Link from Metering - ACS Model
H69: Single phase | I69: No. | J69: 307426.1063 | K69: 306336.52 | L69: 304606.6825 | M69: 302845.9295 | N69: 301054.2893 | O69: 299231.7191
H70: Single Phase, Two Element | I70: No. | J70: 20550.73132 | K70: 20182.62769 | L70: 19807.80108 | M70: 19426.27561 | N70: 19038.0574 | O70: 18643.1372
H71: Three Phase DC | I71: No. | J71: 64521.32509 | K71: 72547.53424 | L71: 81340.68383 | M71: 90290.98378 | N71: 99398.29026 | O71: 108662.8204
H72: Three Phase CT | I72: No. | J72: 2673.679982 | K72: 2854.736946 | L72: 3040.662363 | M72: 3229.910621 | N72: 3422.47868 | O72: 3618.371131
H73: 0 | I73: No.
I74: No.
H75: =H55 -> 0 | I75: No.
H76: 0 | I76: No.
H77: 0 | I77: No.
H78: 0 | I78: No.
H79: 0 | I79: No.
H80: 0 | I80: No.
H81: 0 | I81: No. | J81: 0 | K81: 0 | L81: 0 | M81: 0 | N81: 0 | O81: 0
H82: 0 | I82: No. | J82: 0 | K82: 0 | L82: 0 | M82: 0 | N82: 0 | O82: 0
H83: 0 | I83: No. | J83: 0 | K83: 0 | L83: 0 | M83: 0 | N83: 0 | O83: 0
H84: Total | I84: No. | J84: =SUM(J69:J83) -> 395171.8427 | K84: 401921.4189 | L84: 408795.8298 | M84: 415793.0995 | N84: 422913.1156 | O84: 430156.0479
B87: =LEFT(B42,1)+1&". INPUT | Admin and handling" -> 6. INPUT | Admin and handling
B89: a | C89: Inputs - Admin Hourly Rate
D90: Admin Fees | E90: Units | G90: Rate
D91: Hourly Rate | E91: $dollars/hr (Real 26) | G91: 73.10198734
B94: b | C94: Inputs - Admin & Handling Costs (Execution costs)
D95: Admin Process Description | G95: Amount ($Fixed or Hours) | H95: Calculated or Entered | I95: Proportion required | K95: =FPFirstYear -> 2026-27 | L95: =LEFT(K95,4)+1&"-"&RIGHT(K95,2)+1 -> 2027-28 | M95: =LEFT(L95,4)+1&"-"&RIGHT(L95,2)+1 -> 2028-29 | N95: =LEFT(M95,4)+1&"-"&RIGHT(M95,2)+1 -> 2029-30 | O95: =LEFT(N95,4)+1&"-"&RIGHT(N95,2)+1 -> 2030-31
D96: Validate B2B and paperwork | G96: 0.08333333333 | H96: Entered | I96: 1 | K96: =$G$91*$G96*$I96*'Inputs | General'!H$27*'Inputs | General'!H$33 -> 6.27855575 | L96: =$G$91*$G96*$I96*'Inputs | General'!I$27*'Inputs | General'!I$33 -> 6.467363538 | M96: =$G$91*$G96*$I96*'Inputs | General'!J$27*'Inputs | General'!J$33 -> 6.669292272 | N96: =$G$91*$G96*$I96*'Inputs | General'!K$27*'Inputs | General'!K$33 -> 6.885559721 | O96: =$G$91*$G96*$I96*'Inputs | General'!L$27*'Inputs | General'!L$33 -> 7.105673795
D97: Write off meter from AMI SAP | G97: 0.08333333333 | H97: Entered | I97: 1 | K97: =$G$91*$G97*$I97*'Inputs | General'!H$27*'Inputs | General'!H$33 -> 6.27855575 | L97: =$G$91*$G97*$I97*'Inputs | General'!I$27*'Inputs | General'!I$33 -> 6.467363538 | M97: =$G$91*$G97*$I97*'Inputs | General'!J$27*'Inputs | General'!J$33 -> 6.669292272 | N97: =$G$91*$G97*$I97*'Inputs | General'!K$27*'Inputs | General'!K$33 -> 6.885559721 | O97: =$G$91*$G97*$I97*'Inputs | General'!L$27*'Inputs | General'!L$33 -> 7.105673795
D98: Update new meter detail in ERP SAP | G98: 0.08333333333 | H98: Entered | I98: 1 | K98: =$G$91*$G98*$I98*'Inputs | General'!H$27*'Inputs | General'!H$33 -> 6.27855575 | L98: =$G$91*$G98*$I98*'Inputs | General'!I$27*'Inputs | General'!I$33 -> 6.467363538 | M98: =$G$91*$G98*$I98*'Inputs | General'!J$27*'Inputs | General'!J$33 -> 6.669292272 | N98: =$G$91*$G98*$I98*'Inputs | General'!K$27*'Inputs | General'!K$33 -> 6.885559721 | O98: =$G$91*$G98*$I98*'Inputs | General'!L$27*'Inputs | General'!L$33 -> 7.105673795
D99: SAP ERP internal Service Order creation and close out | G99: 0.08333333333 | H99: Entered | I99: 1 | K99: =$G$91*$G99*$I99*'Inputs | General'!H$27*'Inputs | General'!H$33 -> 6.27855575 | L99: =$G$91*$G99*$I99*'Inputs | General'!I$27*'Inputs | General'!I$33 -> 6.467363538 | M99: =$G$91*$G99*$I99*'Inputs | General'!J$27*'Inputs | General'!J$33 -> 6.669292272 | N99: =$G$91*$G99*$I99*'Inputs | General'!K$27*'Inputs | General'!K$33 -> 6.885559721 | O99: =$G$91*$G99*$I99*'Inputs | General'!L$27*'Inputs | General'!L$33 -> 7.105673795
D100: Manage system exceptions, errors and reporting | G100: 0.25 | H100: Entered | I100: 0.2 | K100: =$G$91*$G100*$I100*'Inputs | General'!H$27*'Inputs | General'!H$33 -> 3.76713345 | L100: =$G$91*$G100*$I100*'Inputs | General'!I$27*'Inputs | General'!I$33 -> 3.880418123 | M100: =$G$91*$G100*$I100*'Inputs | General'!J$27*'Inputs | General'!J$33 -> 4.001575363 | N100: =$G$91*$G100*$I100*'Inputs | General'!K$27*'Inputs | General'!K$33 -> 4.131335833 | O100: =$G$91*$G100*$I100*'Inputs | General'!L$27*'Inputs | General'!L$33 -> 4.263404277
D101: Manage phone calls and inquiries | G101: 0.1666666667 | H101: Entered | I101: 0.2 | K101: =$G$91*$G101*$I101*'Inputs | General'!H$27*'Inputs | General'!H$33 -> 2.5114223 | L101: =$G$91*$G101*$I101*'Inputs | General'!I$27*'Inputs | General'!I$33 -> 2.586945415 | M101: =$G$91*$G101*$I101*'Inputs | General'!J$27*'Inputs | General'!J$33 -> 2.667716909 | N101: =$G$91*$G101*$I101*'Inputs | General'!K$27*'Inputs | General'!K$33 -> 2.754223888 | O101: =$G$91*$G101*$I101*'Inputs | General'!L$27*'Inputs | General'!L$33 -> 2.842269518
D102: Relays (Equipment and installation cost) | H102: Entered | K102: 12.60783561 | L102: 12.71546933 | M102: 12.82608024 | N102: 12.93999924 | O102: 13.05411305
D103: Access Points (Equipment and installation cost) | H103: Entered | K103: 4.861716331 | L103: 6.350771462 | M103: 7.643434913 | N103: 8.735221425 | O103: 9.906224388
D104: Decommission and meter disposal cost by Vendor | H104: Entered | K104: 27.26402625 | L104: 27.94562691 | M104: 28.64426758 | N104: 29.36037427 | O104: 30.09438363
B107: c | C107: Admin & Handling Cost Calculation (Autofilled)
D108: Admin Process Description | G108: Amount (Fixed or Hours) | H108: Calculated or Entered | I108: Proportion required | K108: =FPFirstYear -> 2026-27 | L108: =LEFT(K108,4)+1&"-"&RIGHT(K108,2)+1 -> 2027-28 | M108: =LEFT(L108,4)+1&"-"&RIGHT(L108,2)+1 -> 2028-29 | N108: =LEFT(M108,4)+1&"-"&RIGHT(M108,2)+1 -> 2029-30 | O108: =LEFT(N108,4)+1&"-"&RIGHT(N108,2)+1 -> 2030-31
D109: =D96 -> Validate B2B and paperwork | G109: =G96 -> 0.08333333333 | H109: Entered | I109: 1 | K109: =IF($H109="Calc-Fixed",$I109*$G109,IF($H109="Calc-Hourly",$G$91*$G109*$I109,IF($H109="Entered",K96,0))) -> 6.27855575 | L109: =IF($H109="Calc-Fixed",$I109*$G109,IF($H109="Calc-Hourly",$G$91*$G109*$I109,IF($H109="Entered",L96,0))) -> 6.467363538 | M109: 6.669292272 | N109: 6.885559721 | O109: 7.105673795
D110: Write off meter from AMI SAP | G110: 0.08333333333 | H110: Entered | I110: 1 | K110: 6.27855575 | L110: 6.467363538 | M110: 6.669292272 | N110: 6.885559721 | O110: 7.105673795
D111: Update new meter detail in ERP SAP | G111: 0.08333333333 | H111: Entered | I111: 1 | K111: 6.27855575 | L111: 6.467363538 | M111: 6.669292272 | N111: 6.885559721 | O111: 7.105673795
D112: SAP ERP internal Service Order creation and close out | G112: 0.08333333333 | H112: Entered | I112: 1 | K112: 6.27855575 | L112: 6.467363538 | M112: 6.669292272 | N112: 6.885559721 | O112: 7.105673795
D113: Manage system exceptions, errors and reporting | G113: 0.25 | H113: Entered | I113: 0.2 | K113: 3.76713345 | L113: 3.880418123 | M113: 4.001575363 | N113: 4.131335833 | O113: 4.263404277
D114: Manage phone calls and inquiries | G114: 0.1666666667 | H114: Entered | I114: 0.2 | K114: 2.5114223 | L114: 2.586945415 | M114: 2.667716909 | N114: 2.754223888 | O114: 2.842269518
D115: Relays (Equipment and installation cost) | G115: 0 | H115: Entered | I115: 0 | K115: 12.60783561 | L115: 12.71546933 | M115: 12.82608024 | N115: 12.93999924 | O115: 13.05411305
D116: Access Points (Equipment and installation cost) | G116: =G103 -> 0 | H116: Entered | I116: 0 | K116: =IF($H116="Calc-Fixed",$I116*$G116,IF($H116="Calc-Hourly",$G$91*$G116*$I116,IF($H116="Entered",K103,0))) -> 4.861716331 | L116: 6.350771462 | M116: 7.643434913 | N116: 8.735221425 | O116: 9.906224388
D117: Decommission and meter disposal cost by Vendor | G117: 0 | H117: Entered | I117: 0 | K117: 27.26402625 | L117: 27.94562691 | M117: 28.64426758 | N117: 29.36037427 | O117: 30.09438363
D118: 0 | G118: 0 | H118: 0 | I118: 0 | K118: 0 | L118: 0 | M118: 0 | N118: 0 | O118: 0
D119: TOTAL ADMIN and Handling | K119: =SUM(K109:K118) -> 76.12635694 | L119: =SUM(L109:L118) -> 79.34868539 | M119: =SUM(M109:M118) -> 82.46024409 | N119: =SUM(N109:N118) -> 85.46339354 | O119: =SUM(O109:O118) -> 88.58309004
B122: =LEFT('Input | Exit Fees'!B87,1)+1&". Linked Input - TAB" -> 7. Linked Input - TAB | J122: =IF('Inputs | General'!$G$16="Price Cap","NOT USED","") -> 
B124: Linked Input - TAB Meters | G124: Base Year | H124: Regulatory Period
E125: Units | G125: =LEFT(H125,4)-1&"-"&RIGHT(H125,2)-1 -> 2025-26 | H125: =FPFirstYear -> 2026-27 | I125: =LEFT(H125,4)+1&"-"&RIGHT(H125,2)+1 -> 2027-28 | J125: =LEFT(I125,4)+1&"-"&RIGHT(I125,2)+1 -> 2028-29 | K125: =LEFT(J125,4)+1&"-"&RIGHT(J125,2)+1 -> 2029-30 | L125: =LEFT(K125,4)+1&"-"&RIGHT(K125,2)+1 -> 2030-31 | M125: =LEFT(L125,4)+1&"-"&RIGHT(L125,2)+1 -> 2031-32
C126: Opening TAB | E126: $m | G126: 21.15372033 | H126: =G126+G127-G128 -> 26.68653389 | I126: 28.7670599 | J126: 36.16862092 | K126: 47.49170885 | L126: 60.71294719 | M126: 78.31423904 | N126: Opening tax balance of METERS row in PTRM inputs sheet of PTRM (nominal)
C127: Gross capital expenditure | E127: $m | G127: 9.130564321 | H127: 6.719149057 | I127: 12.62075132 | J127: 17.83231684 | K127: 21.39828688 | L127: 25.69635148 | N127: Gross capex from METERS row in PTRM input sheet of PTRM (nominal)
C128: Tax depreciation | E128: $m | G128: 3.597750769 | H128: 4.63862304 | I128: 5.219190307 | J128: 6.509228906 | K128: 8.177048534 | L128: 8.095059625 | N128: Tax Depreciation from METERS row in ASSETS sheet of PTRM (nominal)
B131: Linked Input - TAB Comms & IT & Other
E132: Units | G132: =LEFT(H132,4)-1&"-"&RIGHT(H132,2)-1 -> 2025-26 | H132: =FPFirstYear -> 2026-27 | I132: =LEFT(H132,4)+1&"-"&RIGHT(H132,2)+1 -> 2027-28 | J132: =LEFT(I132,4)+1&"-"&RIGHT(I132,2)+1 -> 2028-29 | K132: =LEFT(J132,4)+1&"-"&RIGHT(J132,2)+1 -> 2029-30 | L132: =LEFT(K132,4)+1&"-"&RIGHT(K132,2)+1 -> 2030-31 | M132: =LEFT(L132,4)+1&"-"&RIGHT(L132,2)+1 -> 2031-32
C133: Opening RAB | E133: $m | G133: 1.782483168 | H133: =G133+G134-G135 -> 2.488355384 | I133: 9.194891182 | J133: 12.53102106 | K133: 11.33589126 | L133: 12.40509767 | M133: 10.31855733 | N133: Opening tax balance of COMMS & IT & Inhouse Software & ERC rows from PTRM INPUTS sheet of PTRM (nominal)
C134: Gross capital expenditure less disposals | E134: $m | G134: 1.770317424 | H134: 8.394952055 | I134: 6.955377728 | J134: 4.034197523 | K134: 6.523546434 | L134: 3.840426477 | N134: Gross capex from COMMS & IT & Inhouse Software & ERC rows in PTRM input sheet of PTRM (nominal)
C135: Tax depreciation | E135: $m | G135: 1.064445208 | H135: 1.688416257 | I135: 3.619247851 | J135: 5.229327325 | K135: 5.454340019 | L135: 5.926966817 | N135: Tax Depreciation from COMMS & IT & Inhouse Software & ERC rows in ASSETS sheet of PTRM (nominal)
E138: Units | G138: =LEFT(H138,4)-1&"-"&RIGHT(H138,2)-1 -> 2025-26 | H138: =FPFirstYear -> 2026-27 | I138: =LEFT(H138,4)+1&"-"&RIGHT(H138,2)+1 -> 2027-28 | J138: =LEFT(I138,4)+1&"-"&RIGHT(I138,2)+1 -> 2028-29 | K138: =LEFT(J138,4)+1&"-"&RIGHT(J138,2)+1 -> 2029-30 | L138: =LEFT(K138,4)+1&"-"&RIGHT(K138,2)+1 -> 2030-31 | M138: =LEFT(L138,4)+1&"-"&RIGHT(L138,2)+1 -> 2031-32
B139: TOTAL Opening TAB | E139: $m | G139: =G126+G133 -> 22.9362035 | H139: 29.17488927 | I139: 37.96195109 | J139: 48.69964197 | K139: 58.8276001 | L139: 73.11804486 | M139: 88.63279637

Sheet Calc | Exit Fees
B1: ='Title Page'!B8&" v"&'Title Page'!$C$10 -> JEN 2027-31 - ACS Standardised Metering Pricing Model v1.02 | M1: DNSP: | N1: =IF('Inputs | General'!$G$16="Price Cap","NOT USED",NSP) -> JEN - ACS
B2: =MID(CELL("filename",A1),FIND("]",CELL("filename",A1))+1,255) -> Calc | Exit Fees | H2: Key: | I2: Input | J2: External Link | K2: Internal Link | L2: Jemena modification
B5: CALCULATION | Meters
B7: Calculation of Allocated Meters RAB by Designated Exit Fee
E10: Average number of meters (Year, Year-1) | K10: Average number of meters (Year, Year-1)
F11: ='Input | Exit Fees'!H68 -> Meter Type | G11: ='Input | Exit Fees'!I68 -> Units | H11: Designated Exit Fee | K11: =FPFirstYear -> 2026-27 | L11: =LEFT(K11,4)+1&"-"&RIGHT(K11,2)+1 -> 2027-28 | M11: =LEFT(L11,4)+1&"-"&RIGHT(L11,2)+1 -> 2028-29 | N11: =LEFT(M11,4)+1&"-"&RIGHT(M11,2)+1 -> 2029-30 | O11: =LEFT(N11,4)+1&"-"&RIGHT(N11,2)+1 -> 2030-31
F12: ='Input | Exit Fees'!H69 -> Single phase | G12: No. | H12: ='Input | Exit Fees'!D49 -> Single phase | K12: =IFERROR(AVERAGE('Input | Exit Fees'!J69:K69),0) -> 306881.3132 | L12: =IFERROR(AVERAGE('Input | Exit Fees'!K69:L69),0) -> 305471.6012 | M12: =IFERROR(AVERAGE('Input | Exit Fees'!L69:M69),0) -> 303726.306 | N12: =IFERROR(AVERAGE('Input | Exit Fees'!M69:N69),0) -> 301950.1094 | O12: =IFERROR(AVERAGE('Input | Exit Fees'!N69:O69),0) -> 300143.0042
F13: ='Input | Exit Fees'!H70 -> Single Phase, Two Element | G13: No. | H13: ='Input | Exit Fees'!D50 -> Single Phase, Two Element | K13: =IFERROR(AVERAGE('Input | Exit Fees'!J70:K70),0) -> 20366.6795 | L13: =IFERROR(AVERAGE('Input | Exit Fees'!K70:L70),0) -> 19995.21439 | M13: =IFERROR(AVERAGE('Input | Exit Fees'!L70:M70),0) -> 19617.03835 | N13: =IFERROR(AVERAGE('Input | Exit Fees'!M70:N70),0) -> 19232.16651 | O13: =IFERROR(AVERAGE('Input | Exit Fees'!N70:O70),0) -> 18840.5973
F14: ='Input | Exit Fees'!H71 -> Three Phase DC | G14: No. | H14: ='Input | Exit Fees'!D51 -> Three Phase DC | K14: =IFERROR(AVERAGE('Input | Exit Fees'!J71:K71),0) -> 68534.42967 | L14: =IFERROR(AVERAGE('Input | Exit Fees'!K71:L71),0) -> 76944.10904 | M14: =IFERROR(AVERAGE('Input | Exit Fees'!L71:M71),0) -> 85815.83381 | N14: =IFERROR(AVERAGE('Input | Exit Fees'!M71:N71),0) -> 94844.63702 | O14: =IFERROR(AVERAGE('Input | Exit Fees'!N71:O71),0) -> 104030.5553
F15: ='Input | Exit Fees'!H72 -> Three Phase CT | G15: No. | H15: ='Input | Exit Fees'!D52 -> Three Phase CT | K15: =IFERROR(AVERAGE('Input | Exit Fees'!J72:K72),0) -> 2764.208464 | L15: =IFERROR(AVERAGE('Input | Exit Fees'!K72:L72),0) -> 2947.699654 | M15: =IFERROR(AVERAGE('Input | Exit Fees'!L72:M72),0) -> 3135.286492 | N15: =IFERROR(AVERAGE('Input | Exit Fees'!M72:N72),0) -> 3326.194651 | O15: =IFERROR(AVERAGE('Input | Exit Fees'!N72:O72),0) -> 3520.424906
F16: ='Input | Exit Fees'!H73 -> 0 | G16: No. | H16: ='Input | Exit Fees'!D53 -> 0 | K16: =IFERROR(AVERAGE('Input | Exit Fees'!J73:K73),0) -> 0 | L16: =IFERROR(AVERAGE('Input | Exit Fees'!K73:L73),0) -> 0 | M16: =IFERROR(AVERAGE('Input | Exit Fees'!L73:M73),0) -> 0 | N16: =IFERROR(AVERAGE('Input | Exit Fees'!M73:N73),0) -> 0 | O16: =IFERROR(AVERAGE('Input | Exit Fees'!N73:O73),0) -> 0
F17: ='Input | Exit Fees'!H74 -> 0 | G17: No. | H17: ='Input | Exit Fees'!D54 -> 0 | K17: =IFERROR(AVERAGE('Input | Exit Fees'!J74:K74),0) -> 0 | L17: =IFERROR(AVERAGE('Input | Exit Fees'!K74:L74),0) -> 0 | M17: =IFERROR(AVERAGE('Input | Exit Fees'!L74:M74),0) -> 0 | N17: =IFERROR(AVERAGE('Input | Exit Fees'!M74:N74),0) -> 0 | O17: =IFERROR(AVERAGE('Input | Exit Fees'!N74:O74),0) -> 0
F18: ='Input | Exit Fees'!H75 -> 0 | G18: No. | H18: ='Input | Exit Fees'!D55 -> 0 | K18: =IFERROR(AVERAGE('Input | Exit Fees'!J75:K75),0) -> 0 | L18: =IFERROR(AVERAGE('Input | Exit Fees'!K75:L75),0) -> 0 | M18: =IFERROR(AVERAGE('Input | Exit Fees'!L75:M75),0) -> 0 | N18: =IFERROR(AVERAGE('Input | Exit Fees'!M75:N75),0) -> 0 | O18: =IFERROR(AVERAGE('Input | Exit Fees'!N75:O75),0) -> 0
F19: ='Input | Exit Fees'!H76 -> 0 | G19: No. | H19: ='Input | Exit Fees'!D56 -> 0 | K19: =IFERROR(AVERAGE('Input | Exit Fees'!J76:K76),0) -> 0 | L19: =IFERROR(AVERAGE('Input | Exit Fees'!K76:L76),0) -> 0 | M19: =IFERROR(AVERAGE('Input | Exit Fees'!L76:M76),0) -> 0 | N19: =IFERROR(AVERAGE('Input | Exit Fees'!M76:N76),0) -> 0 | O19: =IFERROR(AVERAGE('Input | Exit Fees'!N76:O76),0) -> 0
F20: ='Input | Exit Fees'!H77 -> 0 | G20: No. | H20: ='Input | Exit Fees'!D57 -> 0 | K20: =IFERROR(AVERAGE('Input | Exit Fees'!J77:K77),0) -> 0 | L20: =IFERROR(AVERAGE('Input | Exit Fees'!K77:L77),0) -> 0 | M20: =IFERROR(AVERAGE('Input | Exit Fees'!L77:M77),0) -> 0 | N20: =IFERROR(AVERAGE('Input | Exit Fees'!M77:N77),0) -> 0 | O20: =IFERROR(AVERAGE('Input | Exit Fees'!N77:O77),0) -> 0
F21: ='Input | Exit Fees'!H78 -> 0 | G21: No. | H21: ='Input | Exit Fees'!D58 -> 0 | K21: =IFERROR(AVERAGE('Input | Exit Fees'!J78:K78),0) -> 0 | L21: =IFERROR(AVERAGE('Input | Exit Fees'!K78:L78),0) -> 0 | M21: =IFERROR(AVERAGE('Input | Exit Fees'!L78:M78),0) -> 0 | N21: =IFERROR(AVERAGE('Input | Exit Fees'!M78:N78),0) -> 0 | O21: =IFERROR(AVERAGE('Input | Exit Fees'!N78:O78),0) -> 0
F22: ='Input | Exit Fees'!H79 -> 0 | G22: No. | H22: ='Input | Exit Fees'!D59 -> 0 | K22: =IFERROR(AVERAGE('Input | Exit Fees'!J79:K79),0) -> 0 | L22: =IFERROR(AVERAGE('Input | Exit Fees'!K79:L79),0) -> 0 | M22: =IFERROR(AVERAGE('Input | Exit Fees'!L79:M79),0) -> 0 | N22: =IFERROR(AVERAGE('Input | Exit Fees'!M79:N79),0) -> 0 | O22: =IFERROR(AVERAGE('Input | Exit Fees'!N79:O79),0) -> 0
F23: ='Input | Exit Fees'!H80 -> 0 | G23: No. | H23: ='Input | Exit Fees'!D60 -> 0 | K23: =IFERROR(AVERAGE('Input | Exit Fees'!J80:K80),0) -> 0 | L23: =IFERROR(AVERAGE('Input | Exit Fees'!K80:L80),0) -> 0 | M23: =IFERROR(AVERAGE('Input | Exit Fees'!L80:M80),0) -> 0 | N23: =IFERROR(AVERAGE('Input | Exit Fees'!M80:N80),0) -> 0 | O23: =IFERROR(AVERAGE('Input | Exit Fees'!N80:O80),0) -> 0
F24: ='Input | Exit Fees'!H81 -> 0 | G24: No. | H24: ='Input | Exit Fees'!D61 -> 0 | K24: =IFERROR(AVERAGE('Input | Exit Fees'!J81:K81),0) -> 0 | L24: =IFERROR(AVERAGE('Input | Exit Fees'!K81:L81),0) -> 0 | M24: =IFERROR(AVERAGE('Input | Exit Fees'!L81:M81),0) -> 0 | N24: =IFERROR(AVERAGE('Input | Exit Fees'!M81:N81),0) -> 0 | O24: =IFERROR(AVERAGE('Input | Exit Fees'!N81:O81),0) -> 0
F25: ='Input | Exit Fees'!H82 -> 0 | G25: No. | H25: ='Input | Exit Fees'!D62 -> 0 | K25: =IFERROR(AVERAGE('Input | Exit Fees'!J82:K82),0) -> 0 | L25: =IFERROR(AVERAGE('Input | Exit Fees'!K82:L82),0) -> 0 | M25: =IFERROR(AVERAGE('Input | Exit Fees'!L82:M82),0) -> 0 | N25: =IFERROR(AVERAGE('Input | Exit Fees'!M82:N82),0) -> 0 | O25: =IFERROR(AVERAGE('Input | Exit Fees'!N82:O82),0) -> 0
F26: ='Input | Exit Fees'!H83 -> 0 | G26: No. | H26: ='Input | Exit Fees'!D63 -> 0 | K26: =IFERROR(AVERAGE('Input | Exit Fees'!J83:K83),0) -> 0 | L26: =IFERROR(AVERAGE('Input | Exit Fees'!K83:L83),0) -> 0 | M26: =IFERROR(AVERAGE('Input | Exit Fees'!L83:M83),0) -> 0 | N26: =IFERROR(AVERAGE('Input | Exit Fees'!M83:N83),0) -> 0 | O26: =IFERROR(AVERAGE('Input | Exit Fees'!N83:O83),0) -> 0
F27: ='Input | Exit Fees'!H84 -> Total | G27: No. | K27: =SUM(K12:K26) -> 398546.6308 | L27: =SUM(L12:L26) -> 405358.6243 | M27: =SUM(M12:M26) -> 412294.4646 | N27: =SUM(N12:N26) -> 419353.1076 | O27: =SUM(O12:O26) -> 426534.5817
E29: Volume of meters | J29: End Year Vol | K29: Regulatory period
F30: Exit Fee | G30: Units | J30: =LEFT(K30,4)-1&"-"&RIGHT(K30,2)-1 -> 2025-26 | K30: =FPFirstYear -> 2026-27 | L30: =LEFT(K30,4)+1&"-"&RIGHT(K30,2)+1 -> 2027-28 | M30: =LEFT(L30,4)+1&"-"&RIGHT(L30,2)+1 -> 2028-29 | N30: =LEFT(M30,4)+1&"-"&RIGHT(M30,2)+1 -> 2029-30 | O30: =LEFT(N30,4)+1&"-"&RIGHT(N30,2)+1 -> 2030-31
F31: ='Input | Exit Fees'!$D29 -> Single Phase | G31: No. | J31: =IF($F31=0,0,SUMPRODUCT('Input | Exit Fees'!$J$69:$J$83,($H$12:$H$26=$F31)/1)) -> 307426.1063 | K31: =IF($F31=0,0,SUMPRODUCT(K$12:K$26,($H$12:$H$26=$F31)/1)) -> 306881.3132 | L31: =IF($F31=0,0,SUMPRODUCT(L$12:L$26,($H$12:$H$26=$F31)/1)) -> 305471.6012 | M31: =IF($F31=0,0,SUMPRODUCT(M$12:M$26,($H$12:$H$26=$F31)/1)) -> 303726.306 | N31: =IF($F31=0,0,SUMPRODUCT(N$12:N$26,($H$12:$H$26=$F31)/1)) -> 301950.1094 | O31: =IF($F31=0,0,SUMPRODUCT(O$12:O$26,($H$12:$H$26=$F31)/1)) -> 300143.0042
F32: ='Input | Exit Fees'!$D30 -> Single Phase, Two Element | G32: No. | J32: =IF($F32=0,0,SUMPRODUCT('Input | Exit Fees'!$J$69:$J$83,($H$12:$H$26=$F32)/1)) -> 20550.73132 | K32: =IF($F32=0,0,SUMPRODUCT(K$12:K$26,($H$12:$H$26=$F32)/1)) -> 20366.6795 | L32: =IF($F32=0,0,SUMPRODUCT(L$12:L$26,($H$12:$H$26=$F32)/1)) -> 19995.21439 | M32: =IF($F32=0,0,SUMPRODUCT(M$12:M$26,($H$12:$H$26=$F32)/1)) -> 19617.03835 | N32: =IF($F32=0,0,SUMPRODUCT(N$12:N$26,($H$12:$H$26=$F32)/1)) -> 19232.16651 | O32: =IF($F32=0,0,SUMPRODUCT(O$12:O$26,($H$12:$H$26=$F32)/1)) -> 18840.5973
F33: ='Input | Exit Fees'!$D31 -> Three Phase DC | G33: No. | J33: =IF($F33=0,0,SUMPRODUCT('Input | Exit Fees'!$J$69:$J$83,($H$12:$H$26=$F33)/1)) -> 64521.32509 | K33: =IF($F33=0,0,SUMPRODUCT(K$12:K$26,($H$12:$H$26=$F33)/1)) -> 68534.42967 | L33: =IF($F33=0,0,SUMPRODUCT(L$12:L$26,($H$12:$H$26=$F33)/1)) -> 76944.10904 | M33: =IF($F33=0,0,SUMPRODUCT(M$12:M$26,($H$12:$H$26=$F33)/1)) -> 85815.83381 | N33: =IF($F33=0,0,SUMPRODUCT(N$12:N$26,($H$12:$H$26=$F33)/1)) -> 94844.63702 | O33: =IF($F33=0,0,SUMPRODUCT(O$12:O$26,($H$12:$H$26=$F33)/1)) -> 104030.5553
F34: ='Input | Exit Fees'!$D32 -> Three Phase CT | G34: No. | J34: =IF($F34=0,0,SUMPRODUCT('Input | Exit Fees'!$J$69:$J$83,($H$12:$H$26=$F34)/1)) -> 2673.679982 | K34: =IF($F34=0,0,SUMPRODUCT(K$12:K$26,($H$12:$H$26=$F34)/1)) -> 2764.208464 | L34: =IF($F34=0,0,SUMPRODUCT(L$12:L$26,($H$12:$H$26=$F34)/1)) -> 2947.699654 | M34: =IF($F34=0,0,SUMPRODUCT(M$12:M$26,($H$12:$H$26=$F34)/1)) -> 3135.286492 | N34: =IF($F34=0,0,SUMPRODUCT(N$12:N$26,($H$12:$H$26=$F34)/1)) -> 3326.194651 | O34: =IF($F34=0,0,SUMPRODUCT(O$12:O$26,($H$12:$H$26=$F34)/1)) -> 3520.424906
F35: ='Input | Exit Fees'!$D33 -> 0 | G35: No. | J35: =IF($F35=0,0,SUMPRODUCT('Input | Exit Fees'!$J$69:$J$83,($H$12:$H$26=$F35)/1)) -> 0 | K35: =IF($F35=0,0,SUMPRODUCT(K$12:K$26,($H$12:$H$26=$F35)/1)) -> 0 | L35: =IF($F35=0,0,SUMPRODUCT(L$12:L$26,($H$12:$H$26=$F35)/1)) -> 0 | M35: =IF($F35=0,0,SUMPRODUCT(M$12:M$26,($H$12:$H$26=$F35)/1)) -> 0 | N35: =IF($F35=0,0,SUMPRODUCT(N$12:N$26,($H$12:$H$26=$F35)/1)) -> 0 | O35: =IF($F35=0,0,SUMPRODUCT(O$12:O$26,($H$12:$H$26=$F35)/1)) -> 0
F36: ='Input | Exit Fees'!$D34 -> 0 | G36: No. | J36: =IF($F36=0,0,SUMPRODUCT('Input | Exit Fees'!$J$69:$J$83,($H$12:$H$26=$F36)/1)) -> 0 | K36: =IF($F36=0,0,SUMPRODUCT(K$12:K$26,($H$12:$H$26=$F36)/1)) -> 0 | L36: =IF($F36=0,0,SUMPRODUCT(L$12:L$26,($H$12:$H$26=$F36)/1)) -> 0 | M36: =IF($F36=0,0,SUMPRODUCT(M$12:M$26,($H$12:$H$26=$F36)/1)) -> 0 | N36: =IF($F36=0,0,SUMPRODUCT(N$12:N$26,($H$12:$H$26=$F36)/1)) -> 0 | O36: =IF($F36=0,0,SUMPRODUCT(O$12:O$26,($H$12:$H$26=$F36)/1)) -> 0
F37: ='Input | Exit Fees'!$D35 -> 0 | G37: No. | J37: =IF($F37=0,0,SUMPRODUCT('Input | Exit Fees'!$J$69:$J$83,($H$12:$H$26=$F37)/1)) -> 0 | K37: =IF($F37=0,0,SUMPRODUCT(K$12:K$26,($H$12:$H$26=$F37)/1)) -> 0 | L37: =IF($F37=0,0,SUMPRODUCT(L$12:L$26,($H$12:$H$26=$F37)/1)) -> 0 | M37: =IF($F37=0,0,SUMPRODUCT(M$12:M$26,($H$12:$H$26=$F37)/1)) -> 0 | N37: =IF($F37=0,0,SUMPRODUCT(N$12:N$26,($H$12:$H$26=$F37)/1)) -> 0 | O37: =IF($F37=0,0,SUMPRODUCT(O$12:O$26,($H$12:$H$26=$F37)/1)) -> 0
F38: ='Input | Exit Fees'!$D36 -> 0 | G38: No. | J38: =IF($F38=0,0,SUMPRODUCT('Input | Exit Fees'!$J$69:$J$83,($H$12:$H$26=$F38)/1)) -> 0 | K38: =IF($F38=0,0,SUMPRODUCT(K$12:K$26,($H$12:$H$26=$F38)/1)) -> 0 | L38: =IF($F38=0,0,SUMPRODUCT(L$12:L$26,($H$12:$H$26=$F38)/1)) -> 0 | M38: =IF($F38=0,0,SUMPRODUCT(M$12:M$26,($H$12:$H$26=$F38)/1)) -> 0 | N38: =IF($F38=0,0,SUMPRODUCT(N$12:N$26,($H$12:$H$26=$F38)/1)) -> 0 | O38: =IF($F38=0,0,SUMPRODUCT(O$12:O$26,($H$12:$H$26=$F38)/1)) -> 0
F39: ='Input | Exit Fees'!$D37 -> 0 | G39: No. | J39: =IF($F39=0,0,SUMPRODUCT('Input | Exit Fees'!$J$69:$J$83,($H$12:$H$26=$F39)/1)) -> 0 | K39: =IF($F39=0,0,SUMPRODUCT(K$12:K$26,($H$12:$H$26=$F39)/1)) -> 0 | L39: =IF($F39=0,0,SUMPRODUCT(L$12:L$26,($H$12:$H$26=$F39)/1)) -> 0 | M39: =IF($F39=0,0,SUMPRODUCT(M$12:M$26,($H$12:$H$26=$F39)/1)) -> 0 | N39: =IF($F39=0,0,SUMPRODUCT(N$12:N$26,($H$12:$H$26=$F39)/1)) -> 0 | O39: =IF($F39=0,0,SUMPRODUCT(O$12:O$26,($H$12:$H$26=$F39)/1)) -> 0
F40: ='Input | Exit Fees'!$D38 -> 0 | G40: No. | J40: =IF($F40=0,0,SUMPRODUCT('Input | Exit Fees'!$J$69:$J$83,($H$12:$H$26=$F40)/1)) -> 0 | K40: =IF($F40=0,0,SUMPRODUCT(K$12:K$26,($H$12:$H$26=$F40)/1)) -> 0 | L40: =IF($F40=0,0,SUMPRODUCT(L$12:L$26,($H$12:$H$26=$F40)/1)) -> 0 | M40: =IF($F40=0,0,SUMPRODUCT(M$12:M$26,($H$12:$H$26=$F40)/1)) -> 0 | N40: =IF($F40=0,0,SUMPRODUCT(N$12:N$26,($H$12:$H$26=$F40)/1)) -> 0 | O40: =IF($F40=0,0,SUMPRODUCT(O$12:O$26,($H$12:$H$26=$F40)/1)) -> 0
F41: Total | G41: No. | J41: =SUM(J31:J40) -> 395171.8427 | K41: 398546.6308 | L41: 405358.6243 | M41: 412294.4646 | N41: 419353.1076 | O41: 426534.5817
E44: Cost-Weighted Volume of Meters | K44: Regulatory period
F45: Exit Fee | G45: Units | K45: =FPFirstYear -> 2026-27 | L45: =LEFT(K45,4)+1&"-"&RIGHT(K45,2)+1 -> 2027-28 | M45: =LEFT(L45,4)+1&"-"&RIGHT(L45,2)+1 -> 2028-29 | N45: =LEFT(M45,4)+1&"-"&RIGHT(M45,2)+1 -> 2029-30 | O45: =LEFT(N45,4)+1&"-"&RIGHT(N45,2)+1 -> 2030-31
F46: ='Input | Exit Fees'!$D29 -> Single Phase | G46: $dollars | K46: =SUMPRODUCT('Input | Exit Fees'!$M$49:$M$63,K$12:K$26,($H$12:$H$26=$F46)/1) -> 68804368.27 | L46: =SUMPRODUCT('Input | Exit Fees'!$M$49:$M$63,L$12:L$26,($H$12:$H$26=$F46)/1) -> 68488303.61 | M46: =SUMPRODUCT('Input | Exit Fees'!$M$49:$M$63,M$12:M$26,($H$12:$H$26=$F46)/1) -> 68096999.44 | N46: =SUMPRODUCT('Input | Exit Fees'!$M$49:$M$63,N$12:N$26,($H$12:$H$26=$F46)/1) -> 67698767.03 | O46: =SUMPRODUCT('Input | Exit Fees'!$M$49:$M$63,O$12:O$26,($H$12:$H$26=$F46)/1) -> 67293604.76
F47: ='Input | Exit Fees'!$D30 -> Single Phase, Two Element | G47: $dollars | K47: =SUMPRODUCT('Input | Exit Fees'!$M$49:$M$63,K$12:K$26,($H$12:$H$26=$F47)/1) -> 5323035.355 | L47: =SUMPRODUCT('Input | Exit Fees'!$M$49:$M$63,L$12:L$26,($H$12:$H$26=$F47)/1) -> 5225949.232 | M47: =SUMPRODUCT('Input | Exit Fees'!$M$49:$M$63,M$12:M$26,($H$12:$H$26=$F47)/1) -> 5127109.143 | N47: =SUMPRODUCT('Input | Exit Fees'!$M$49:$M$63,N$12:N$26,($H$12:$H$26=$F47)/1) -> 5026519.038 | O47: =SUMPRODUCT('Input | Exit Fees'!$M$49:$M$63,O$12:O$26,($H$12:$H$26=$F47)/1) -> 4924178.511
F48: ='Input | Exit Fees'!$D31 -> Three Phase DC | G48: $dollars | K48: =SUMPRODUCT('Input | Exit Fees'!$M$49:$M$63,K$12:K$26,($H$12:$H$26=$F48)/1) -> 26521841.95 | L48: =SUMPRODUCT('Input | Exit Fees'!$M$49:$M$63,L$12:L$26,($H$12:$H$26=$F48)/1) -> 29776267.33 | M48: =SUMPRODUCT('Input | Exit Fees'!$M$49:$M$63,M$12:M$26,($H$12:$H$26=$F48)/1) -> 33209497.65 | N48: =SUMPRODUCT('Input | Exit Fees'!$M$49:$M$63,N$12:N$26,($H$12:$H$26=$F48)/1) -> 36703515.08 | O48: =SUMPRODUCT('Input | Exit Fees'!$M$49:$M$63,O$12:O$26,($H$12:$H$26=$F48)/1) -> 40258333.8
F49: ='Input | Exit Fees'!$D32 -> Three Phase CT | G49: $dollars | K49: =SUMPRODUCT('Input | Exit Fees'!$M$49:$M$63,K$12:K$26,($H$12:$H$26=$F49)/1) -> 1390231.005 | L49: =SUMPRODUCT('Input | Exit Fees'!$M$49:$M$63,L$12:L$26,($H$12:$H$26=$F49)/1) -> 1482516.064 | M49: =SUMPRODUCT('Input | Exit Fees'!$M$49:$M$63,M$12:M$26,($H$12:$H$26=$F49)/1) -> 1576860.988 | N49: =SUMPRODUCT('Input | Exit Fees'!$M$49:$M$63,N$12:N$26,($H$12:$H$26=$F49)/1) -> 1672876.338 | O49: =SUMPRODUCT('Input | Exit Fees'!$M$49:$M$63,O$12:O$26,($H$12:$H$26=$F49)/1) -> 1770562.502
F50: ='Input | Exit Fees'!$D33 -> 0 | G50: $dollars | K50: =SUMPRODUCT('Input | Exit Fees'!$M$49:$M$63,K$12:K$26,($H$12:$H$26=$F50)/1) -> 0 | L50: =SUMPRODUCT('Input | Exit Fees'!$M$49:$M$63,L$12:L$26,($H$12:$H$26=$F50)/1) -> 0 | M50: =SUMPRODUCT('Input | Exit Fees'!$M$49:$M$63,M$12:M$26,($H$12:$H$26=$F50)/1) -> 0 | N50: =SUMPRODUCT('Input | Exit Fees'!$M$49:$M$63,N$12:N$26,($H$12:$H$26=$F50)/1) -> 0 | O50: =SUMPRODUCT('Input | Exit Fees'!$M$49:$M$63,O$12:O$26,($H$12:$H$26=$F50)/1) -> 0
F51: ='Input | Exit Fees'!$D34 -> 0 | G51: $dollars | K51: =SUMPRODUCT('Input | Exit Fees'!$M$49:$M$63,K$12:K$26,($H$12:$H$26=$F51)/1) -> 0 | L51: =SUMPRODUCT('Input | Exit Fees'!$M$49:$M$63,L$12:L$26,($H$12:$H$26=$F51)/1) -> 0 | M51: =SUMPRODUCT('Input | Exit Fees'!$M$49:$M$63,M$12:M$26,($H$12:$H$26=$F51)/1) -> 0 | N51: =SUMPRODUCT('Input | Exit Fees'!$M$49:$M$63,N$12:N$26,($H$12:$H$26=$F51)/1) -> 0 | O51: =SUMPRODUCT('Input | Exit Fees'!$M$49:$M$63,O$12:O$26,($H$12:$H$26=$F51)/1) -> 0
F52: ='Input | Exit Fees'!$D35 -> 0 | G52: $dollars | K52: =SUMPRODUCT('Input | Exit Fees'!$M$49:$M$63,K$12:K$26,($H$12:$H$26=$F52)/1) -> 0 | L52: =SUMPRODUCT('Input | Exit Fees'!$M$49:$M$63,L$12:L$26,($H$12:$H$26=$F52)/1) -> 0 | M52: =SUMPRODUCT('Input | Exit Fees'!$M$49:$M$63,M$12:M$26,($H$12:$H$26=$F52)/1) -> 0 | N52: =SUMPRODUCT('Input | Exit Fees'!$M$49:$M$63,N$12:N$26,($H$12:$H$26=$F52)/1) -> 0 | O52: =SUMPRODUCT('Input | Exit Fees'!$M$49:$M$63,O$12:O$26,($H$12:$H$26=$F52)/1) -> 0
F53: ='Input | Exit Fees'!$D36 -> 0 | G53: $dollars | K53: =SUMPRODUCT('Input | Exit Fees'!$M$49:$M$63,K$12:K$26,($H$12:$H$26=$F53)/1) -> 0 | L53: =SUMPRODUCT('Input | Exit Fees'!$M$49:$M$63,L$12:L$26,($H$12:$H$26=$F53)/1) -> 0 | M53: =SUMPRODUCT('Input | Exit Fees'!$M$49:$M$63,M$12:M$26,($H$12:$H$26=$F53)/1) -> 0 | N53: =SUMPRODUCT('Input | Exit Fees'!$M$49:$M$63,N$12:N$26,($H$12:$H$26=$F53)/1) -> 0 | O53: =SUMPRODUCT('Input | Exit Fees'!$M$49:$M$63,O$12:O$26,($H$12:$H$26=$F53)/1) -> 0
F54: ='Input | Exit Fees'!$D37 -> 0 | G54: $dollars | K54: =SUMPRODUCT('Input | Exit Fees'!$M$49:$M$63,K$12:K$26,($H$12:$H$26=$F54)/1) -> 0 | L54: =SUMPRODUCT('Input | Exit Fees'!$M$49:$M$63,L$12:L$26,($H$12:$H$26=$F54)/1) -> 0 | M54: =SUMPRODUCT('Input | Exit Fees'!$M$49:$M$63,M$12:M$26,($H$12:$H$26=$F54)/1) -> 0 | N54: =SUMPRODUCT('Input | Exit Fees'!$M$49:$M$63,N$12:N$26,($H$12:$H$26=$F54)/1) -> 0 | O54: =SUMPRODUCT('Input | Exit Fees'!$M$49:$M$63,O$12:O$26,($H$12:$H$26=$F54)/1) -> 0
F55: ='Input | Exit Fees'!$D38 -> 0 | G55: $dollars | K55: =SUMPRODUCT('Input | Exit Fees'!$M$49:$M$63,K$12:K$26,($H$12:$H$26=$F55)/1) -> 0 | L55: =SUMPRODUCT('Input | Exit Fees'!$M$49:$M$63,L$12:L$26,($H$12:$H$26=$F55)/1) -> 0 | M55: =SUMPRODUCT('Input | Exit Fees'!$M$49:$M$63,M$12:M$26,($H$12:$H$26=$F55)/1) -> 0 | N55: =SUMPRODUCT('Input | Exit Fees'!$M$49:$M$63,N$12:N$26,($H$12:$H$26=$F55)/1) -> 0 | O55: =SUMPRODUCT('Input | Exit Fees'!$M$49:$M$63,O$12:O$26,($H$12:$H$26=$F55)/1) -> 0
F56: Total | G56: $dollars | K56: =SUM(K46:K55) -> 102039476.6 | L56: =SUM(L46:L55) -> 104973036.2 | M56: =SUM(M46:M55) -> 108010467.2 | N56: =SUM(N46:N55) -> 111101677.5 | O56: =SUM(O46:O55) -> 114246679.6
E59: Proportionate Volume-Weighted Costs | K59: Regulatory period
F60: Exit Fee | G60: Units | K60: =FPFirstYear -> 2026-27 | L60: =LEFT(K60,4)+1&"-"&RIGHT(K60,2)+1 -> 2027-28 | M60: =LEFT(L60,4)+1&"-"&RIGHT(L60,2)+1 -> 2028-29 | N60: =LEFT(M60,4)+1&"-"&RIGHT(M60,2)+1 -> 2029-30 | O60: =LEFT(N60,4)+1&"-"&RIGHT(N60,2)+1 -> 2030-31
F61: ='Input | Exit Fees'!$D29 -> Single Phase | G61: % | K61: =K46/K$56 -> 0.6742916622 | L61: 0.6524371026 | M61: 0.6304666686 | N61: 0.6093406379 | O61: 0.5890202237
F62: ='Input | Exit Fees'!$D30 -> Single Phase, Two Element | G62: % | K62: 0.0521664314 | L62: 0.04978372942 | M62: 0.0474686322 | N62: 0.04524251255 | O62: 0.04310128338
F63: ='Input | Exit Fees'!$D31 -> Three Phase DC | G63: % | K63: 0.2599174637 | L63: 0.2836563407 | M63: 0.3074655495 | N63: 0.3303596842 | O63: 0.3523807777
F64: ='Input | Exit Fees'!$D32 -> Three Phase CT | G64: % | K64: 0.01362444273 | L64: 0.01412282732 | M64: 0.01459914977 | N64: 0.01505716543 | O64: 0.0154977152
F65: ='Input | Exit Fees'!$D33 -> 0 | G65: % | K65: 0 | L65: 0 | M65: 0 | N65: 0 | O65: 0
F66: ='Input | Exit Fees'!$D34 -> 0 | G66: % | K66: 0 | L66: 0 | M66: 0 | N66: 0 | O66: 0
F67: ='Input | Exit Fees'!$D35 -> 0 | G67: % | K67: 0 | L67: 0 | M67: 0 | N67: 0 | O67: 0
F68: ='Input | Exit Fees'!$D36 -> 0 | G68: % | K68: 0 | L68: 0 | M68: 0 | N68: 0 | O68: 0
F69: ='Input | Exit Fees'!$D37 -> 0 | G69: % | K69: 0 | L69: 0 | M69: 0 | N69: 0 | O69: 0
F70: ='Input | Exit Fees'!$D38 -> 0 | G70: % | K70: 0 | L70: 0 | M70: 0 | N70: 0 | O70: 0
F71: Total | G71: % | K71: =SUM(K61:K70) -> 1 | L71: =SUM(L61:L70) -> 1 | M71: =SUM(M61:M70) -> 1 | N71: =SUM(N61:N70) -> 1 | O71: =SUM(O61:O70) -> 1
A72: =PRODUCT(J72:O72) -> 1 | K72: =(K71=1)/1 -> 1 | L72: =(L71=1)/1 -> 1 | M72: =(M71=1)/1 -> 1 | N72: =(N71=1)/1 -> 1 | O72: =(O71=1)/1 -> 1
E75: Allocated Meter RAB by Designated Exit Fee | K75: Regulatory period
F76: Exit Fee | G76: Units | K76: =FPFirstYear -> 2026-27 | L76: =LEFT(K76,4)+1&"-"&RIGHT(K76,2)+1 -> 2027-28 | M76: =LEFT(L76,4)+1&"-"&RIGHT(L76,2)+1 -> 2028-29 | N76: =LEFT(M76,4)+1&"-"&RIGHT(M76,2)+1 -> 2029-30 | O76: =LEFT(N76,4)+1&"-"&RIGHT(N76,2)+1 -> 2030-31
F77: ='Input | Exit Fees'!$D29 -> Single Phase | G77: $m | K77: =AVERAGE('Input | Exit Fees'!H$9:I$9)*'Calc | Exit Fees'!K61 -> 28.81000887 | L77: =AVERAGE('Input | Exit Fees'!I$9:J$9)*'Calc | Exit Fees'!L61 -> 31.39218316 | M77: =AVERAGE('Input | Exit Fees'!J$9:K$9)*'Calc | Exit Fees'!M61 -> 36.87238069 | N77: =AVERAGE('Input | Exit Fees'!K$9:L$9)*'Calc | Exit Fees'!N61 -> 44.09699347 | O77: =AVERAGE('Input | Exit Fees'!L$9:M$9)*'Calc | Exit Fees'!O61 -> 52.46069479
F78: ='Input | Exit Fees'!$D30 -> Single Phase, Two Element | G78: $m | K78: =AVERAGE('Input | Exit Fees'!H$9:I$9)*'Calc | Exit Fees'!K62 -> 2.228880225 | L78: =AVERAGE('Input | Exit Fees'!I$9:J$9)*'Calc | Exit Fees'!L62 -> 2.395357263 | M78: =AVERAGE('Input | Exit Fees'!J$9:K$9)*'Calc | Exit Fees'!M62 -> 2.776168138 | N78: =AVERAGE('Input | Exit Fees'!K$9:L$9)*'Calc | Exit Fees'!N62 -> 3.27412724 | O78: =AVERAGE('Input | Exit Fees'!L$9:M$9)*'Calc | Exit Fees'!O62 -> 3.838787161
F79: ='Input | Exit Fees'!$D31 -> Three Phase DC | G79: $m | K79: =AVERAGE('Input | Exit Fees'!H$9:I$9)*'Calc | Exit Fees'!K63 -> 11.10531964 | L79: =AVERAGE('Input | Exit Fees'!I$9:J$9)*'Calc | Exit Fees'!L63 -> 13.6481996 | M79: =AVERAGE('Input | Exit Fees'!J$9:K$9)*'Calc | Exit Fees'!M63 -> 17.98189715 | N79: =AVERAGE('Input | Exit Fees'!K$9:L$9)*'Calc | Exit Fees'!N63 -> 23.90759442 | O79: =AVERAGE('Input | Exit Fees'!L$9:M$9)*'Calc | Exit Fees'!O63 -> 31.3845598
F80: ='Input | Exit Fees'!$D32 -> Three Phase CT | G80: $m | K80: =AVERAGE('Input | Exit Fees'!H$9:I$9)*'Calc | Exit Fees'!K64 -> 0.5821224523 | L80: =AVERAGE('Input | Exit Fees'!I$9:J$9)*'Calc | Exit Fees'!L64 -> 0.6795235591 | M80: =AVERAGE('Input | Exit Fees'!J$9:K$9)*'Calc | Exit Fees'!M64 -> 0.8538205668 | N80: =AVERAGE('Input | Exit Fees'!K$9:L$9)*'Calc | Exit Fees'!N64 -> 1.089662636 | O80: =AVERAGE('Input | Exit Fees'!L$9:M$9)*'Calc | Exit Fees'!O64 -> 1.380293705
F81: ='Input | Exit Fees'!$D33 -> 0 | G81: $m | K81: =AVERAGE('Input | Exit Fees'!H$9:I$9)*'Calc | Exit Fees'!K65 -> 0 | L81: =AVERAGE('Input | Exit Fees'!I$9:J$9)*'Calc | Exit Fees'!L65 -> 0 | M81: =AVERAGE('Input | Exit Fees'!J$9:K$9)*'Calc | Exit Fees'!M65 -> 0 | N81: =AVERAGE('Input | Exit Fees'!K$9:L$9)*'Calc | Exit Fees'!N65 -> 0 | O81: =AVERAGE('Input | Exit Fees'!L$9:M$9)*'Calc | Exit Fees'!O65 -> 0
F82: ='Input | Exit Fees'!$D34 -> 0 | G82: $m | K82: =AVERAGE('Input | Exit Fees'!H$9:I$9)*'Calc | Exit Fees'!K66 -> 0 | L82: =AVERAGE('Input | Exit Fees'!I$9:J$9)*'Calc | Exit Fees'!L66 -> 0 | M82: =AVERAGE('Input | Exit Fees'!J$9:K$9)*'Calc | Exit Fees'!M66 -> 0 | N82: =AVERAGE('Input | Exit Fees'!K$9:L$9)*'Calc | Exit Fees'!N66 -> 0 | O82: =AVERAGE('Input | Exit Fees'!L$9:M$9)*'Calc | Exit Fees'!O66 -> 0
F83: ='Input | Exit Fees'!$D35 -> 0 | G83: $m | K83: =AVERAGE('Input | Exit Fees'!H$9:I$9)*'Calc | Exit Fees'!K67 -> 0 | L83: =AVERAGE('Input | Exit Fees'!I$9:J$9)*'Calc | Exit Fees'!L67 -> 0 | M83: =AVERAGE('Input | Exit Fees'!J$9:K$9)*'Calc | Exit Fees'!M67 -> 0 | N83: =AVERAGE('Input | Exit Fees'!K$9:L$9)*'Calc | Exit Fees'!N67 -> 0 | O83: =AVERAGE('Input | Exit Fees'!L$9:M$9)*'Calc | Exit Fees'!O67 -> 0
F84: ='Input | Exit Fees'!$D36 -> 0 | G84: $m | K84: =AVERAGE('Input | Exit Fees'!H$9:I$9)*'Calc | Exit Fees'!K68 -> 0 | L84: =AVERAGE('Input | Exit Fees'!I$9:J$9)*'Calc | Exit Fees'!L68 -> 0 | M84: =AVERAGE('Input | Exit Fees'!J$9:K$9)*'Calc | Exit Fees'!M68 -> 0 | N84: =AVERAGE('Input | Exit Fees'!K$9:L$9)*'Calc | Exit Fees'!N68 -> 0 | O84: =AVERAGE('Input | Exit Fees'!L$9:M$9)*'Calc | Exit Fees'!O68 -> 0
F85: ='Input | Exit Fees'!$D37 -> 0 | G85: $m | K85: =AVERAGE('Input | Exit Fees'!H$9:I$9)*'Calc | Exit Fees'!K69 -> 0 | L85: =AVERAGE('Input | Exit Fees'!I$9:J$9)*'Calc | Exit Fees'!L69 -> 0 | M85: =AVERAGE('Input | Exit Fees'!J$9:K$9)*'Calc | Exit Fees'!M69 -> 0 | N85: =AVERAGE('Input | Exit Fees'!K$9:L$9)*'Calc | Exit Fees'!N69 -> 0 | O85: =AVERAGE('Input | Exit Fees'!L$9:M$9)*'Calc | Exit Fees'!O69 -> 0
F86: ='Input | Exit Fees'!$D38 -> 0 | G86: $m | K86: =AVERAGE('Input | Exit Fees'!H$9:I$9)*'Calc | Exit Fees'!K70 -> 0 | L86: =AVERAGE('Input | Exit Fees'!I$9:J$9)*'Calc | Exit Fees'!L70 -> 0 | M86: =AVERAGE('Input | Exit Fees'!J$9:K$9)*'Calc | Exit Fees'!M70 -> 0 | N86: =AVERAGE('Input | Exit Fees'!K$9:L$9)*'Calc | Exit Fees'!N70 -> 0 | O86: =AVERAGE('Input | Exit Fees'!L$9:M$9)*'Calc | Exit Fees'!O70 -> 0
F87: Total | G87: $m | K87: =SUM(K77:K86) -> 42.72633119 | L87: =SUM(L77:L86) -> 48.11526358 | M87: =SUM(M77:M86) -> 58.48426655 | N87: =SUM(N77:N86) -> 72.36837777 | O87: =SUM(O77:O86) -> 89.06433545
A88: =PRODUCT(J88:O88) -> 1 | K88: =(ROUND(K87,6)=ROUND(AVERAGE('Input | Exit Fees'!H$9:I$9),6))/1 -> 1 | L88: =(ROUND(L87,6)=ROUND(AVERAGE('Input | Exit Fees'!I$9:J$9),6))/1 -> 1 | M88: =(ROUND(M87,6)=ROUND(AVERAGE('Input | Exit Fees'!J$9:K$9),6))/1 -> 1 | N88: =(ROUND(N87,6)=ROUND(AVERAGE('Input | Exit Fees'!K$9:L$9),6))/1 -> 1 | O88: =(ROUND(O87,6)=ROUND(AVERAGE('Input | Exit Fees'!L$9:M$9),6))/1 -> 1
E90: Allocated Meter RAB by Designated Exit Fee Per Meter | K90: Regulatory period
F91: Exit Fee | G91: Units | K91: =FPFirstYear -> 2026-27 | L91: =LEFT(K91,4)+1&"-"&RIGHT(K91,2)+1 -> 2027-28 | M91: =LEFT(L91,4)+1&"-"&RIGHT(L91,2)+1 -> 2028-29 | N91: =LEFT(M91,4)+1&"-"&RIGHT(M91,2)+1 -> 2029-30 | O91: =LEFT(N91,4)+1&"-"&RIGHT(N91,2)+1 -> 2030-31
F92: ='Input | Exit Fees'!$D29 -> Single Phase | G92: $dollars | K92: =IFERROR(K77*10^6/K31,0) -> 93.8799713 | L92: =IFERROR(L77*10^6/L31,0) -> 102.76629 | M92: 121.4000235 | N92: 146.0406607 | O92: 174.7856657
F93: ='Input | Exit Fees'!$D30 -> Single Phase, Two Element | G93: $dollars | K93: 109.4375853 | L93: 119.7965281 | M93: 141.5182093 | N93: 170.2422469 | O93: 203.7508206
F94: ='Input | Exit Fees'!$D31 -> Three Phase DC | G94: $dollars | K94: 162.0400095 | L94: 177.3780965 | M94: 209.5405516 | N94: 252.0711257 | O94: 301.6859777
F95: ='Input | Exit Fees'!$D32 -> Three Phase CT | G95: $dollars | K95: 210.5928188 | L95: 230.5267289 | M95: 272.3261715 | N95: 327.6003814 | O95: 392.0815646
F96: ='Input | Exit Fees'!$D33 -> 0 | G96: $dollars | K96: 0 | L96: 0 | M96: 0 | N96: 0 | O96: 0
F97: ='Input | Exit Fees'!$D34 -> 0 | G97: $dollars | K97: 0 | L97: 0 | M97: 0 | N97: 0 | O97: 0
F98: ='Input | Exit Fees'!$D35 -> 0 | G98: $dollars | K98: 0 | L98: 0 | M98: 0 | N98: 0 | O98: 0
F99: ='Input | Exit Fees'!$D36 -> 0 | G99: $dollars | K99: 0 | L99: 0 | M99: 0 | N99: 0 | O99: 0
F100: ='Input | Exit Fees'!$D37 -> 0 | G100: $dollars | K100: 0 | L100: 0 | M100: 0 | N100: 0 | O100: 0
F101: ='Input | Exit Fees'!$D38 -> 0 | G101: $dollars | K101: 0 | L101: 0 | M101: 0 | N101: 0 | O101: 0
B103: Calculations | Comms & IT & Other
C105: Calculation of Allocated Comms & IT RAB by Designated Exit Fee
K107: Regulatory period
F108: Exit Fee Component | G108: Units | K108: =FPFirstYear -> 2026-27 | L108: =LEFT(K108,4)+1&"-"&RIGHT(K108,2)+1 -> 2027-28 | M108: =LEFT(L108,4)+1&"-"&RIGHT(L108,2)+1 -> 2028-29 | N108: =LEFT(M108,4)+1&"-"&RIGHT(M108,2)+1 -> 2029-30 | O108: =LEFT(N108,4)+1&"-"&RIGHT(N108,2)+1 -> 2030-31
F109: Comms & IT & Other RAB per meter | G109: $dollars | K109: =(AVERAGE('Input | Exit Fees'!G$16:H$16)*10^6)/'Calc | Exit Fees'!K$41 -> 15.54114982 | L109: =(AVERAGE('Input | Exit Fees'!H$16:I$16)*10^6)/'Calc | Exit Fees'!L$41 -> 24.93922069 | M109: =(AVERAGE('Input | Exit Fees'!I$16:J$16)*10^6)/'Calc | Exit Fees'!M$41 -> 38.63419702 | N109: =(AVERAGE('Input | Exit Fees'!J$16:K$16)*10^6)/'Calc | Exit Fees'!N$41 -> 44.4985178 | O109: =(AVERAGE('Input | Exit Fees'!K$16:L$16)*10^6)/'Calc | Exit Fees'!O$41 -> 48.09813051
B113: Calculations | Exit Fees with Component Detail
F115: Base Year | G115: Regulatory period
G116: Tariff ($/year)
C117: No. | D117: Exit Fee Name | E117: Component | F117: 2025-26 | G117: 2026-27 | H117: 2027-28 | I117: 2028-29 | J117: 2029-30 | K117: 2030-31
C118: 1 | D118: ='Input | Exit Fees'!D29 -> Single Phase
E119: Meter RAB | G119: =IF($D118=0,0,SUMIFS('Calc | Exit Fees'!K$92:K$101,'Input | Exit Fees'!$D$29:$D$38,$D118)) -> 93.8799713 | H119: =IF($D118=0,0,SUMIFS('Calc | Exit Fees'!L$92:L$101,'Input | Exit Fees'!$D$29:$D$38,$D118)) -> 102.76629 | I119: =IF($D118=0,0,SUMIFS('Calc | Exit Fees'!M$92:M$101,'Input | Exit Fees'!$D$29:$D$38,$D118)) -> 121.4000235 | J119: =IF($D118=0,0,SUMIFS('Calc | Exit Fees'!N$92:N$101,'Input | Exit Fees'!$D$29:$D$38,$D118)) -> 146.0406607 | K119: =IF($D118=0,0,SUMIFS('Calc | Exit Fees'!O$92:O$101,'Input | Exit Fees'!$D$29:$D$38,$D118)) -> 174.7856657
E120: Comms & IT & Other | G120: =IF($D118=0,0,'Calc | Exit Fees'!K$109) -> 15.54114982 | H120: =IF($D118=0,0,'Calc | Exit Fees'!L$109) -> 24.93922069 | I120: =IF($D118=0,0,'Calc | Exit Fees'!M$109) -> 38.63419702 | J120: =IF($D118=0,0,'Calc | Exit Fees'!N$109) -> 44.4985178 | K120: =IF($D118=0,0,'Calc | Exit Fees'!O$109) -> 48.09813051
E121: Admin cost | G121: =IF($D118=0,0,'Input | Exit Fees'!K$119) -> 76.12635694 | H121: =IF($D118=0,0,'Input | Exit Fees'!L$119) -> 79.34868539 | I121: =IF($D118=0,0,'Input | Exit Fees'!M$119) -> 82.46024409 | J121: =IF($D118=0,0,'Input | Exit Fees'!N$119) -> 85.46339354 | K121: =IF($D118=0,0,'Input | Exit Fees'!O$119) -> 88.58309004
E122: Tax allowance | G122: =+'Calc | Tax Allowance'!G29 -> 6.389380215 | H122: =+'Calc | Tax Allowance'!H29 -> 6.509026439 | I122: =+'Calc | Tax Allowance'!I29 -> 6.939748809 | J122: =+'Calc | Tax Allowance'!J29 -> 7.835218178 | K122: =+'Calc | Tax Allowance'!K29 -> 8.684276535
E123: TOTAL exit fee | F123: =IF(D118=0,0,'Input | Exit Fees'!G29) -> 191.96 | G123: =SUM(G119:G122) -> 191.9368583 | H123: =SUM(H119:H122) -> 213.5632225 | I123: =SUM(I119:I122) -> 249.4342135 | J123: =SUM(J119:J122) -> 283.8377902 | K123: =SUM(K119:K122) -> 320.1511628
C124: 2 | D124: ='Input | Exit Fees'!D30 -> Single Phase, Two Element
E125: =IF($D124=0,"",E$119) -> Meter RAB | G125: =IF($D124=0,0,SUMIFS('Calc | Exit Fees'!K$92:K$101,'Input | Exit Fees'!$D$29:$D$38,$D124)) -> 109.4375853 | H125: =IF($D124=0,0,SUMIFS('Calc | Exit Fees'!L$92:L$101,'Input | Exit Fees'!$D$29:$D$38,$D124)) -> 119.7965281 | I125: =IF($D124=0,0,SUMIFS('Calc | Exit Fees'!M$92:M$101,'Input | Exit Fees'!$D$29:$D$38,$D124)) -> 141.5182093 | J125: =IF($D124=0,0,SUMIFS('Calc | Exit Fees'!N$92:N$101,'Input | Exit Fees'!$D$29:$D$38,$D124)) -> 170.2422469 | K125: =IF($D124=0,0,SUMIFS('Calc | Exit Fees'!O$92:O$101,'Input | Exit Fees'!$D$29:$D$38,$D124)) -> 203.7508206
E126: =IF($D124=0,"",E$120) -> Comms & IT & Other | G126: =IF($D124=0,0,'Calc | Exit Fees'!K$109) -> 15.54114982 | H126: =IF($D124=0,0,'Calc | Exit Fees'!L$109) -> 24.93922069 | I126: =IF($D124=0,0,'Calc | Exit Fees'!M$109) -> 38.63419702 | J126: =IF($D124=0,0,'Calc | Exit Fees'!N$109) -> 44.4985178 | K126: =IF($D124=0,0,'Calc | Exit Fees'!O$109) -> 48.09813051
E127: =IF($D124=0,"",E$121) -> Admin cost | G127: =IF($D124=0,0,'Input | Exit Fees'!K$119) -> 76.12635694 | H127: =IF($D124=0,0,'Input | Exit Fees'!L$119) -> 79.34868539 | I127: =IF($D124=0,0,'Input | Exit Fees'!M$119) -> 82.46024409 | J127: =IF($D124=0,0,'Input | Exit Fees'!N$119) -> 85.46339354 | K127: =IF($D124=0,0,'Input | Exit Fees'!O$119) -> 88.58309004
E128: =IF($D124=0,"",E$122) -> Tax allowance | G128: =+'Calc | Tax Allowance'!G50 -> 7.198283723 | H128: =+'Calc | Tax Allowance'!H50 -> 7.329287764 | I128: =+'Calc | Tax Allowance'!I50 -> 7.788230612 | J128: =+'Calc | Tax Allowance'!J50 -> 8.739931917 | K128: =+'Calc | Tax Allowance'!K50 -> 9.62596409
E129: =IF($D124=0,"",E$123) -> TOTAL exit fee | F129: =IF(D124=0,0,'Input | Exit Fees'!G30) -> 191.96 | G129: =SUM(G125:G128) -> 208.3033757 | H129: =SUM(H125:H128) -> 231.413722 | I129: =SUM(I125:I128) -> 270.400881 | J129: =SUM(J125:J128) -> 308.9440902 | K129: =SUM(K125:K128) -> 350.0580052
C130: 3 | D130: ='Input | Exit Fees'!D31 -> Three Phase DC
E131: =IF($D130=0,"",E$119) -> Meter RAB | G131: =IF($D130=0,0,SUMIFS('Calc | Exit Fees'!K$92:K$101,'Input | Exit Fees'!$D$29:$D$38,$D130)) -> 162.0400095 | H131: =IF($D130=0,0,SUMIFS('Calc | Exit Fees'!L$92:L$101,'Input | Exit Fees'!$D$29:$D$38,$D130)) -> 177.3780965 | I131: =IF($D130=0,0,SUMIFS('Calc | Exit Fees'!M$92:M$101,'Input | Exit Fees'!$D$29:$D$38,$D130)) -> 209.5405516 | J131: =IF($D130=0,0,SUMIFS('Calc | Exit Fees'!N$92:N$101,'Input | Exit Fees'!$D$29:$D$38,$D130)) -> 252.0711257 | K131: =IF($D130=0,0,SUMIFS('Calc | Exit Fees'!O$92:O$101,'Input | Exit Fees'!$D$29:$D$38,$D130)) -> 301.6859777
E132: =IF($D130=0,"",E$120) -> Comms & IT & Other | G132: =IF($D130=0,0,'Calc | Exit Fees'!K$109) -> 15.54114982 | H132: =IF($D130=0,0,'Calc | Exit Fees'!L$109) -> 24.93922069 | I132: =IF($D130=0,0,'Calc | Exit Fees'!M$109) -> 38.63419702 | J132: =IF($D130=0,0,'Calc | Exit Fees'!N$109) -> 44.4985178 | K132: =IF($D130=0,0,'Calc | Exit Fees'!O$109) -> 48.09813051
E133: =IF($D130=0,"",E$121) -> Admin cost | G133: =IF($D130=0,0,'Input | Exit Fees'!K$119) -> 76.12635694 | H133: =IF($D130=0,0,'Input | Exit Fees'!L$119) -> 79.34868539 | I133: =IF($D130=0,0,'Input | Exit Fees'!M$119) -> 82.46024409 | J133: =IF($D130=0,0,'Input | Exit Fees'!N$119) -> 85.46339354 | K133: =IF($D130=0,0,'Input | Exit Fees'!O$119) -> 88.58309004
E134: =IF($D130=0,"",E$122) -> Tax allowance | G134: =+'Calc | Tax Allowance'!G71 -> 9.933297306 | H134: =+'Calc | Tax Allowance'!H71 -> 10.10270368 | I134: =+'Calc | Tax Allowance'!I71 -> 10.65706383 | J134: =+'Calc | Tax Allowance'!J71 -> 11.79889302 | K134: =+'Calc | Tax Allowance'!K71 -> 12.80993873
E135: =IF($D130=0,"",E$123) -> TOTAL exit fee | F135: =IF(D130=0,0,'Input | Exit Fees'!G31) -> 191.96 | G135: =SUM(G131:G134) -> 263.6408136 | H135: =SUM(H131:H134) -> 291.7687063 | I135: =SUM(I131:I134) -> 341.2920565 | J135: =SUM(J131:J134) -> 393.8319301 | K135: =SUM(K131:K134) -> 451.177137
C136: 4 | D136: ='Input | Exit Fees'!D32 -> Three Phase CT
E137: =IF($D136=0,"",E$119) -> Meter RAB | G137: =IF($D136=0,0,SUMIFS('Calc | Exit Fees'!K$92:K$101,'Input | Exit Fees'!$D$29:$D$38,$D136)) -> 210.5928188 | H137: =IF($D136=0,0,SUMIFS('Calc | Exit Fees'!L$92:L$101,'Input | Exit Fees'!$D$29:$D$38,$D136)) -> 230.5267289 | I137: =IF($D136=0,0,SUMIFS('Calc | Exit Fees'!M$92:M$101,'Input | Exit Fees'!$D$29:$D$38,$D136)) -> 272.3261715 | J137: =IF($D136=0,0,SUMIFS('Calc | Exit Fees'!N$92:N$101,'Input | Exit Fees'!$D$29:$D$38,$D136)) -> 327.6003814 | K137: =IF($D136=0,0,SUMIFS('Calc | Exit Fees'!O$92:O$101,'Input | Exit Fees'!$D$29:$D$38,$D136)) -> 392.0815646
E138: =IF($D136=0,"",E$120) -> Comms & IT & Other | G138: =IF($D136=0,0,'Calc | Exit Fees'!K$109) -> 15.54114982 | H138: =IF($D136=0,0,'Calc | Exit Fees'!L$109) -> 24.93922069 | I138: =IF($D136=0,0,'Calc | Exit Fees'!M$109) -> 38.63419702 | J138: =IF($D136=0,0,'Calc | Exit Fees'!N$109) -> 44.4985178 | K138: =IF($D136=0,0,'Calc | Exit Fees'!O$109) -> 48.09813051
E139: =IF($D136=0,"",E$121) -> Admin cost | G139: =IF($D136=0,0,'Input | Exit Fees'!K$119) -> 76.12635694 | H139: =IF($D136=0,0,'Input | Exit Fees'!L$119) -> 79.34868539 | I139: =IF($D136=0,0,'Input | Exit Fees'!M$119) -> 82.46024409 | J139: =IF($D136=0,0,'Input | Exit Fees'!N$119) -> 85.46339354 | K139: =IF($D136=0,0,'Input | Exit Fees'!O$119) -> 88.58309004
E140: =IF($D136=0,"",E$122) -> Tax allowance | G140: =+'Calc | Tax Allowance'!G92 -> 12.45775497 | H140: =+'Calc | Tax Allowance'!H92 -> 12.66260726 | I140: =+'Calc | Tax Allowance'!I92 -> 13.30503899 | J140: =+'Calc | Tax Allowance'!J92 -> 14.622359 | K140: =+'Calc | Tax Allowance'!K92 -> 15.74879404
E141: =IF($D136=0,"",E$123) -> TOTAL exit fee | F141: =IF(D136=0,0,'Input | Exit Fees'!G32) -> 191.96 | G141: =SUM(G137:G140) -> 314.7180806 | H141: =SUM(H137:H140) -> 347.4772422 | I141: =SUM(I137:I140) -> 406.7256516 | J141: =SUM(J137:J140) -> 472.1846517 | K141: =SUM(K137:K140) -> 544.5115791
C142: 5 | D142: ='Input | Exit Fees'!D33 -> 0
E143: =IF($D142=0,"",E$119) ->  | G143: =IF($D142=0,0,SUMIFS('Calc | Exit Fees'!K$92:K$101,'Input | Exit Fees'!$D$29:$D$38,$D142)) -> 0 | H143: =IF($D142=0,0,SUMIFS('Calc | Exit Fees'!L$92:L$101,'Input | Exit Fees'!$D$29:$D$38,$D142)) -> 0 | I143: =IF($D142=0,0,SUMIFS('Calc | Exit Fees'!M$92:M$101,'Input | Exit Fees'!$D$29:$D$38,$D142)) -> 0 | J143: =IF($D142=0,0,SUMIFS('Calc | Exit Fees'!N$92:N$101,'Input | Exit Fees'!$D$29:$D$38,$D142)) -> 0 | K143: =IF($D142=0,0,SUMIFS('Calc | Exit Fees'!O$92:O$101,'Input | Exit Fees'!$D$29:$D$38,$D142)) -> 0
E144: =IF($D142=0,"",E$120) ->  | G144: =IF($D142=0,0,'Calc | Exit Fees'!K$109) -> 0 | H144: =IF($D142=0,0,'Calc | Exit Fees'!L$109) -> 0 | I144: =IF($D142=0,0,'Calc | Exit Fees'!M$109) -> 0 | J144: =IF($D142=0,0,'Calc | Exit Fees'!N$109) -> 0 | K144: =IF($D142=0,0,'Calc | Exit Fees'!O$109) -> 0
E145: =IF($D142=0,"",E$121) ->  | G145: =IF($D142=0,0,'Input | Exit Fees'!K$119) -> 0 | H145: =IF($D142=0,0,'Input | Exit Fees'!L$119) -> 0 | I145: =IF($D142=0,0,'Input | Exit Fees'!M$119) -> 0 | J145: =IF($D142=0,0,'Input | Exit Fees'!N$119) -> 0 | K145: =IF($D142=0,0,'Input | Exit Fees'!O$119) -> 0
E146: =IF($D142=0,"",E$122) -> 
E147: =IF($D142=0,"",E$123) ->  | F147: =IF(D142=0,0,'Input | Exit Fees'!G33) -> 0 | G147: =SUM(G143:G146) -> 0 | H147: =SUM(H143:H146) -> 0 | I147: =SUM(I143:I146) -> 0 | J147: =SUM(J143:J146) -> 0 | K147: =SUM(K143:K146) -> 0
C148: 6 | D148: ='Input | Exit Fees'!D34 -> 0
E149: =IF($D148=0,"",E$119) ->  | G149: =IF($D148=0,0,SUMIFS('Calc | Exit Fees'!K$92:K$101,'Input | Exit Fees'!$D$29:$D$38,$D148)) -> 0 | H149: =IF($D148=0,0,SUMIFS('Calc | Exit Fees'!L$92:L$101,'Input | Exit Fees'!$D$29:$D$38,$D148)) -> 0 | I149: =IF($D148=0,0,SUMIFS('Calc | Exit Fees'!M$92:M$101,'Input | Exit Fees'!$D$29:$D$38,$D148)) -> 0 | J149: =IF($D148=0,0,SUMIFS('Calc | Exit Fees'!N$92:N$101,'Input | Exit Fees'!$D$29:$D$38,$D148)) -> 0 | K149: =IF($D148=0,0,SUMIFS('Calc | Exit Fees'!O$92:O$101,'Input | Exit Fees'!$D$29:$D$38,$D148)) -> 0
E150: =IF($D148=0,"",E$120) ->  | G150: =IF($D148=0,0,'Calc | Exit Fees'!K$109) -> 0 | H150: =IF($D148=0,0,'Calc | Exit Fees'!L$109) -> 0 | I150: =IF($D148=0,0,'Calc | Exit Fees'!M$109) -> 0 | J150: =IF($D148=0,0,'Calc | Exit Fees'!N$109) -> 0 | K150: =IF($D148=0,0,'Calc | Exit Fees'!O$109) -> 0
E151: =IF($D148=0,"",E$121) ->  | G151: =IF($D148=0,0,'Input | Exit Fees'!K$119) -> 0 | H151: =IF($D148=0,0,'Input | Exit Fees'!L$119) -> 0 | I151: =IF($D148=0,0,'Input | Exit Fees'!M$119) -> 0 | J151: =IF($D148=0,0,'Input | Exit Fees'!N$119) -> 0 | K151: =IF($D148=0,0,'Input | Exit Fees'!O$119) -> 0
E152: =IF($D148=0,"",E$122) -> 
E153: =IF($D148=0,"",E$123) ->  | F153: =IF(D148=0,0,'Input | Exit Fees'!G34) -> 0 | G153: =SUM(G149:G152) -> 0 | H153: =SUM(H149:H152) -> 0 | I153: =SUM(I149:I152) -> 0 | J153: =SUM(J149:J152) -> 0 | K153: =SUM(K149:K152) -> 0
C154: 7 | D154: ='Input | Exit Fees'!D35 -> 0
E155: =IF($D154=0,"",E$119) ->  | G155: =IF($D154=0,0,SUMIFS('Calc | Exit Fees'!K$92:K$101,'Input | Exit Fees'!$D$29:$D$38,$D154)) -> 0 | H155: =IF($D154=0,0,SUMIFS('Calc | Exit Fees'!L$92:L$101,'Input | Exit Fees'!$D$29:$D$38,$D154)) -> 0 | I155: =IF($D154=0,0,SUMIFS('Calc | Exit Fees'!M$92:M$101,'Input | Exit Fees'!$D$29:$D$38,$D154)) -> 0 | J155: =IF($D154=0,0,SUMIFS('Calc | Exit Fees'!N$92:N$101,'Input | Exit Fees'!$D$29:$D$38,$D154)) -> 0 | K155: =IF($D154=0,0,SUMIFS('Calc | Exit Fees'!O$92:O$101,'Input | Exit Fees'!$D$29:$D$38,$D154)) -> 0
E156: =IF($D154=0,"",E$120) ->  | G156: =IF($D154=0,0,'Calc | Exit Fees'!K$109) -> 0 | H156: =IF($D154=0,0,'Calc | Exit Fees'!L$109) -> 0 | I156: =IF($D154=0,0,'Calc | Exit Fees'!M$109) -> 0 | J156: =IF($D154=0,0,'Calc | Exit Fees'!N$109) -> 0 | K156: =IF($D154=0,0,'Calc | Exit Fees'!O$109) -> 0
E157: =IF($D154=0,"",E$121) ->  | G157: =IF($D154=0,0,'Input | Exit Fees'!K$119) -> 0 | H157: =IF($D154=0,0,'Input | Exit Fees'!L$119) -> 0 | I157: =IF($D154=0,0,'Input | Exit Fees'!M$119) -> 0 | J157: =IF($D154=0,0,'Input | Exit Fees'!N$119) -> 0 | K157: =IF($D154=0,0,'Input | Exit Fees'!O$119) -> 0
E158: =IF($D154=0,"",E$122) -> 
E159: =IF($D154=0,"",E$123) ->  | F159: =IF(D154=0,0,'Input | Exit Fees'!G35) -> 0 | G159: =SUM(G155:G158) -> 0 | H159: =SUM(H155:H158) -> 0 | I159: =SUM(I155:I158) -> 0 | J159: =SUM(J155:J158) -> 0 | K159: =SUM(K155:K158) -> 0
C160: 8 | D160: ='Input | Exit Fees'!D36 -> 0
E161: =IF($D160=0,"",E$119) ->  | G161: =IF($D160=0,0,SUMIFS('Calc | Exit Fees'!K$92:K$101,'Input | Exit Fees'!$D$29:$D$38,$D160)) -> 0 | H161: =IF($D160=0,0,SUMIFS('Calc | Exit Fees'!L$92:L$101,'Input | Exit Fees'!$D$29:$D$38,$D160)) -> 0 | I161: =IF($D160=0,0,SUMIFS('Calc | Exit Fees'!M$92:M$101,'Input | Exit Fees'!$D$29:$D$38,$D160)) -> 0 | J161: =IF($D160=0,0,SUMIFS('Calc | Exit Fees'!N$92:N$101,'Input | Exit Fees'!$D$29:$D$38,$D160)) -> 0 | K161: =IF($D160=0,0,SUMIFS('Calc | Exit Fees'!O$92:O$101,'Input | Exit Fees'!$D$29:$D$38,$D160)) -> 0
E162: =IF($D160=0,"",E$120) ->  | G162: =IF($D160=0,0,'Calc | Exit Fees'!K$109) -> 0 | H162: =IF($D160=0,0,'Calc | Exit Fees'!L$109) -> 0 | I162: =IF($D160=0,0,'Calc | Exit Fees'!M$109) -> 0 | J162: =IF($D160=0,0,'Calc | Exit Fees'!N$109) -> 0 | K162: =IF($D160=0,0,'Calc | Exit Fees'!O$109) -> 0
E163: =IF($D160=0,"",E$121) ->  | G163: =IF($D160=0,0,'Input | Exit Fees'!K$119) -> 0 | H163: =IF($D160=0,0,'Input | Exit Fees'!L$119) -> 0 | I163: =IF($D160=0,0,'Input | Exit Fees'!M$119) -> 0 | J163: =IF($D160=0,0,'Input | Exit Fees'!N$119) -> 0 | K163: =IF($D160=0,0,'Input | Exit Fees'!O$119) -> 0
E164: =IF($D160=0,"",E$122) -> 
E165: =IF($D160=0,"",E$123) ->  | F165: =IF(D160=0,0,'Input | Exit Fees'!G36) -> 0 | G165: =SUM(G161:G164) -> 0 | H165: =SUM(H161:H164) -> 0 | I165: =SUM(I161:I164) -> 0 | J165: =SUM(J161:J164) -> 0 | K165: =SUM(K161:K164) -> 0
C166: 9 | D166: ='Input | Exit Fees'!D37 -> 0
E167: =IF($D166=0,"",E$119) ->  | G167: =IF($D166=0,0,SUMIFS('Calc | Exit Fees'!K$92:K$101,'Input | Exit Fees'!$D$29:$D$38,$D166)) -> 0 | H167: =IF($D166=0,0,SUMIFS('Calc | Exit Fees'!L$92:L$101,'Input | Exit Fees'!$D$29:$D$38,$D166)) -> 0 | I167: =IF($D166=0,0,SUMIFS('Calc | Exit Fees'!M$92:M$101,'Input | Exit Fees'!$D$29:$D$38,$D166)) -> 0 | J167: =IF($D166=0,0,SUMIFS('Calc | Exit Fees'!N$92:N$101,'Input | Exit Fees'!$D$29:$D$38,$D166)) -> 0 | K167: =IF($D166=0,0,SUMIFS('Calc | Exit Fees'!O$92:O$101,'Input | Exit Fees'!$D$29:$D$38,$D166)) -> 0
E168: =IF($D166=0,"",E$120) ->  | G168: =IF($D166=0,0,'Calc | Exit Fees'!K$109) -> 0 | H168: =IF($D166=0,0,'Calc | Exit Fees'!L$109) -> 0 | I168: =IF($D166=0,0,'Calc | Exit Fees'!M$109) -> 0 | J168: =IF($D166=0,0,'Calc | Exit Fees'!N$109) -> 0 | K168: =IF($D166=0,0,'Calc | Exit Fees'!O$109) -> 0
E169: =IF($D166=0,"",E$121) ->  | G169: =IF($D166=0,0,'Input | Exit Fees'!K$119) -> 0 | H169: =IF($D166=0,0,'Input | Exit Fees'!L$119) -> 0 | I169: =IF($D166=0,0,'Input | Exit Fees'!M$119) -> 0 | J169: =IF($D166=0,0,'Input | Exit Fees'!N$119) -> 0 | K169: =IF($D166=0,0,'Input | Exit Fees'!O$119) -> 0
E170: =IF($D166=0,"",E$122) -> 
E171: =IF($D166=0,"",E$123) ->  | F171: =IF(D166=0,0,'Input | Exit Fees'!G37) -> 0 | G171: =SUM(G167:G170) -> 0 | H171: =SUM(H167:H170) -> 0 | I171: =SUM(I167:I170) -> 0 | J171: =SUM(J167:J170) -> 0 | K171: =SUM(K167:K170) -> 0
C172: 10 | D172: ='Input | Exit Fees'!D38 -> 0
E173: =IF($D172=0,"",E$119) ->  | G173: =IF($D172=0,0,SUMIFS('Calc | Exit Fees'!K$92:K$101,'Input | Exit Fees'!$D$29:$D$38,$D172)) -> 0 | H173: =IF($D172=0,0,SUMIFS('Calc | Exit Fees'!L$92:L$101,'Input | Exit Fees'!$D$29:$D$38,$D172)) -> 0 | I173: =IF($D172=0,0,SUMIFS('Calc | Exit Fees'!M$92:M$101,'Input | Exit Fees'!$D$29:$D$38,$D172)) -> 0 | J173: =IF($D172=0,0,SUMIFS('Calc | Exit Fees'!N$92:N$101,'Input | Exit Fees'!$D$29:$D$38,$D172)) -> 0 | K173: =IF($D172=0,0,SUMIFS('Calc | Exit Fees'!O$92:O$101,'Input | Exit Fees'!$D$29:$D$38,$D172)) -> 0
E174: =IF($D172=0,"",E$120) ->  | G174: =IF($D172=0,0,'Calc | Exit Fees'!K$109) -> 0 | H174: =IF($D172=0,0,'Calc | Exit Fees'!L$109) -> 0 | I174: =IF($D172=0,0,'Calc | Exit Fees'!M$109) -> 0 | J174: =IF($D172=0,0,'Calc | Exit Fees'!N$109) -> 0 | K174: =IF($D172=0,0,'Calc | Exit Fees'!O$109) -> 0
E175: =IF($D172=0,"",E$121) ->  | G175: =IF($D172=0,0,'Input | Exit Fees'!K$119) -> 0 | H175: =IF($D172=0,0,'Input | Exit Fees'!L$119) -> 0 | I175: =IF($D172=0,0,'Input | Exit Fees'!M$119) -> 0 | J175: =IF($D172=0,0,'Input | Exit Fees'!N$119) -> 0 | K175: =IF($D172=0,0,'Input | Exit Fees'!O$119) -> 0
E176: =IF($D172=0,"",E$122) -> 
E177: =IF($D172=0,"",E$123) ->  | F177: =IF(D172=0,0,'Input | Exit Fees'!G38) -> 0 | G177: =SUM(G173:G176) -> 0 | H177: =SUM(H173:H176) -> 0 | I177: =SUM(I173:I176) -> 0 | J177: =SUM(J173:J176) -> 0 | K177: =SUM(K173:K176) -> 0
B180: CALCULATION | Meters (TAB)
B182: Calculation of Allocated Meters TAB by Designated Exit Fee
E184: Allocated Meter TAB by Designated Exit Fee | K184: Regulatory period
F185: Exit Fee | G185: Units | K185: =FPFirstYear -> 2026-27 | L185: =LEFT(K185,4)+1&"-"&RIGHT(K185,2)+1 -> 2027-28 | M185: =LEFT(L185,4)+1&"-"&RIGHT(L185,2)+1 -> 2028-29 | N185: =LEFT(M185,4)+1&"-"&RIGHT(M185,2)+1 -> 2029-30 | O185: =LEFT(N185,4)+1&"-"&RIGHT(N185,2)+1 -> 2030-31
F186: ='Input | Exit Fees'!$D29 -> Single Phase | G186: $m | K186: =AVERAGE('Input | Exit Fees'!H$126:I$126)*'Calc | Exit Fees'!K61 -> 18.69594796 | L186: =AVERAGE('Input | Exit Fees'!I$126:J$126)*'Calc | Exit Fees'!L61 -> 21.18322372 | M186: =AVERAGE('Input | Exit Fees'!J$126:K$126)*'Calc | Exit Fees'!M61 -> 26.3725247 | N186: =AVERAGE('Input | Exit Fees'!K$126:L$126)*'Calc | Exit Fees'!N61 -> 32.96674706 | O186: =AVERAGE('Input | Exit Fees'!L$126:M$126)*'Calc | Exit Fees'!O61 -> 40.94491216
F187: ='Input | Exit Fees'!$D30 -> Single Phase, Two Element | G187: $m | K187: =AVERAGE('Input | Exit Fees'!H$126:I$126)*'Calc | Exit Fees'!K62 -> 1.446408048 | L187: =AVERAGE('Input | Exit Fees'!I$126:J$126)*'Calc | Exit Fees'!L62 -> 1.616370182 | M187: =AVERAGE('Input | Exit Fees'!J$126:K$126)*'Calc | Exit Fees'!M62 -> 1.985620712 | N187: =AVERAGE('Input | Exit Fees'!K$126:L$126)*'Calc | Exit Fees'!N62 -> 2.447725254 | O187: =AVERAGE('Input | Exit Fees'!L$126:M$126)*'Calc | Exit Fees'!O62 -> 2.996125075
F188: ='Input | Exit Fees'!$D31 -> Three Phase DC | G188: $m | K188: =AVERAGE('Input | Exit Fees'!H$126:I$126)*'Calc | Exit Fees'!K63 -> 7.206678726 | L188: =AVERAGE('Input | Exit Fees'!I$126:J$126)*'Calc | Exit Fees'!L63 -> 9.2097088 | M188: =AVERAGE('Input | Exit Fees'!J$126:K$126)*'Calc | Exit Fees'!M63 -> 12.86133463 | N188: =AVERAGE('Input | Exit Fees'!K$126:L$126)*'Calc | Exit Fees'!N63 -> 17.873228 | O188: =AVERAGE('Input | Exit Fees'!L$126:M$126)*'Calc | Exit Fees'!O63 -> 24.49525401
F189: ='Input | Exit Fees'!$D32 -> Three Phase CT | G189: $m | K189: =AVERAGE('Input | Exit Fees'!H$126:I$126)*'Calc | Exit Fees'!K64 -> 0.3777621563 | L189: =AVERAGE('Input | Exit Fees'!I$126:J$126)*'Calc | Exit Fees'!L64 -> 0.4585377036 | M189: =AVERAGE('Input | Exit Fees'!J$126:K$126)*'Calc | Exit Fees'!M64 -> 0.6106848422 | N189: =AVERAGE('Input | Exit Fees'!K$126:L$126)*'Calc | Exit Fees'!N64 -> 0.8146277032 | O189: =AVERAGE('Input | Exit Fees'!L$126:M$126)*'Calc | Exit Fees'!O64 -> 1.077301868
F190: ='Input | Exit Fees'!$D33 -> 0 | G190: $m | K190: =AVERAGE('Input | Exit Fees'!H$126:I$126)*'Calc | Exit Fees'!K65 -> 0 | L190: =AVERAGE('Input | Exit Fees'!I$126:J$126)*'Calc | Exit Fees'!L65 -> 0 | M190: =AVERAGE('Input | Exit Fees'!J$126:K$126)*'Calc | Exit Fees'!M65 -> 0 | N190: =AVERAGE('Input | Exit Fees'!K$126:L$126)*'Calc | Exit Fees'!N65 -> 0 | O190: =AVERAGE('Input | Exit Fees'!L$126:M$126)*'Calc | Exit Fees'!O65 -> 0
F191: ='Input | Exit Fees'!$D34 -> 0 | G191: $m | K191: =AVERAGE('Input | Exit Fees'!H$126:I$126)*'Calc | Exit Fees'!K66 -> 0 | L191: =AVERAGE('Input | Exit Fees'!I$126:J$126)*'Calc | Exit Fees'!L66 -> 0 | M191: =AVERAGE('Input | Exit Fees'!J$126:K$126)*'Calc | Exit Fees'!M66 -> 0 | N191: =AVERAGE('Input | Exit Fees'!K$126:L$126)*'Calc | Exit Fees'!N66 -> 0 | O191: =AVERAGE('Input | Exit Fees'!L$126:M$126)*'Calc | Exit Fees'!O66 -> 0
F192: ='Input | Exit Fees'!$D35 -> 0 | G192: $m | K192: =AVERAGE('Input | Exit Fees'!H$126:I$126)*'Calc | Exit Fees'!K67 -> 0 | L192: =AVERAGE('Input | Exit Fees'!I$126:J$126)*'Calc | Exit Fees'!L67 -> 0 | M192: =AVERAGE('Input | Exit Fees'!J$126:K$126)*'Calc | Exit Fees'!M67 -> 0 | N192: =AVERAGE('Input | Exit Fees'!K$126:L$126)*'Calc | Exit Fees'!N67 -> 0 | O192: =AVERAGE('Input | Exit Fees'!L$126:M$126)*'Calc | Exit Fees'!O67 -> 0
F193: ='Input | Exit Fees'!$D36 -> 0 | G193: $m | K193: =AVERAGE('Input | Exit Fees'!H$126:I$126)*'Calc | Exit Fees'!K68 -> 0 | L193: =AVERAGE('Input | Exit Fees'!I$126:J$126)*'Calc | Exit Fees'!L68 -> 0 | M193: =AVERAGE('Input | Exit Fees'!J$126:K$126)*'Calc | Exit Fees'!M68 -> 0 | N193: =AVERAGE('Input | Exit Fees'!K$126:L$126)*'Calc | Exit Fees'!N68 -> 0 | O193: =AVERAGE('Input | Exit Fees'!L$126:M$126)*'Calc | Exit Fees'!O68 -> 0
F194: ='Input | Exit Fees'!$D37 -> 0 | G194: $m | K194: =AVERAGE('Input | Exit Fees'!H$126:I$126)*'Calc | Exit Fees'!K69 -> 0 | L194: =AVERAGE('Input | Exit Fees'!I$126:J$126)*'Calc | Exit Fees'!L69 -> 0 | M194: =AVERAGE('Input | Exit Fees'!J$126:K$126)*'Calc | Exit Fees'!M69 -> 0 | N194: =AVERAGE('Input | Exit Fees'!K$126:L$126)*'Calc | Exit Fees'!N69 -> 0 | O194: =AVERAGE('Input | Exit Fees'!L$126:M$126)*'Calc | Exit Fees'!O69 -> 0
F195: ='Input | Exit Fees'!$D38 -> 0 | G195: $m | K195: =AVERAGE('Input | Exit Fees'!H$126:I$126)*'Calc | Exit Fees'!K70 -> 0 | L195: =AVERAGE('Input | Exit Fees'!I$126:J$126)*'Calc | Exit Fees'!L70 -> 0 | M195: =AVERAGE('Input | Exit Fees'!J$126:K$126)*'Calc | Exit Fees'!M70 -> 0 | N195: =AVERAGE('Input | Exit Fees'!K$126:L$126)*'Calc | Exit Fees'!N70 -> 0 | O195: =AVERAGE('Input | Exit Fees'!L$126:M$126)*'Calc | Exit Fees'!O70 -> 0
F196: Total | G196: $m | K196: =SUM(K186:K195) -> 27.72679689 | L196: =SUM(L186:L195) -> 32.46784041 | M196: =SUM(M186:M195) -> 41.83016488 | N196: =SUM(N186:N195) -> 54.10232802 | O196: =SUM(O186:O195) -> 69.51359311
K197: =(K196=AVERAGE('Input | Exit Fees'!H$126:I$126))/1 -> 1 | L197: =(L196=AVERAGE('Input | Exit Fees'!I$126:J$126))/1 -> 1 | M197: =(M196=AVERAGE('Input | Exit Fees'!J$126:K$126))/1 -> 1 | N197: =(N196=AVERAGE('Input | Exit Fees'!K$126:L$126))/1 -> 1 | O197: =(O196=AVERAGE('Input | Exit Fees'!L$126:M$126))/1 -> 1
E199: Allocated Meter TAB by Designated Exit Fee Per Meter | K199: Regulatory period
F200: Exit Fee | G200: Units | K200: =FPFirstYear -> 2026-27 | L200: =LEFT(K200,4)+1&"-"&RIGHT(K200,2)+1 -> 2027-28 | M200: =LEFT(L200,4)+1&"-"&RIGHT(L200,2)+1 -> 2028-29 | N200: =LEFT(M200,4)+1&"-"&RIGHT(M200,2)+1 -> 2029-30 | O200: =LEFT(N200,4)+1&"-"&RIGHT(N200,2)+1 -> 2030-31
F201: ='Input | Exit Fees'!$D29 -> Single Phase | G201: $dollars | K201: =IFERROR(K186*10^6/'Calc | Exit Fees'!K31,0) -> 60.92240603 | L201: =IFERROR(L186*10^6/'Calc | Exit Fees'!L31,0) -> 69.34596747 | M201: =IFERROR(M186*10^6/'Calc | Exit Fees'!M31,0) -> 86.82989974 | N201: =IFERROR(N186*10^6/'Calc | Exit Fees'!N31,0) -> 109.1794506 | O201: =IFERROR(O186*10^6/'Calc | Exit Fees'!O31,0) -> 136.4180127
F202: ='Input | Exit Fees'!$D30 -> Single Phase, Two Element | G202: $dollars | K202: =IFERROR(K187*10^6/'Calc | Exit Fees'!K32,0) -> 71.01835367 | L202: =IFERROR(L187*10^6/'Calc | Exit Fees'!L32,0) -> 80.83785202 | M202: =IFERROR(M187*10^6/'Calc | Exit Fees'!M32,0) -> 101.219189 | N202: =IFERROR(N187*10^6/'Calc | Exit Fees'!N32,0) -> 127.2724658 | O202: =IFERROR(O187*10^6/'Calc | Exit Fees'!O32,0) -> 159.0249517
F203: ='Input | Exit Fees'!$D31 -> Three Phase DC | G203: $dollars | K203: =IFERROR(K188*10^6/'Calc | Exit Fees'!K33,0) -> 105.1541358 | L203: =IFERROR(L188*10^6/'Calc | Exit Fees'!L33,0) -> 119.6934881 | M203: =IFERROR(M188*10^6/'Calc | Exit Fees'!M33,0) -> 149.8713473 | N203: =IFERROR(N188*10^6/'Calc | Exit Fees'!N33,0) -> 188.4474289 | O203: =IFERROR(O188*10^6/'Calc | Exit Fees'!O33,0) -> 235.4621095
F204: ='Input | Exit Fees'!$D32 -> Three Phase CT | G204: $dollars | K204: =IFERROR(K189*10^6/'Calc | Exit Fees'!K34,0) -> 136.6619636 | L204: =IFERROR(L189*10^6/'Calc | Exit Fees'!L34,0) -> 155.5578103 | M204: =IFERROR(M189*10^6/'Calc | Exit Fees'!M34,0) -> 194.7780031 | N204: =IFERROR(N189*10^6/'Calc | Exit Fees'!N34,0) -> 244.9128174 | O204: =IFERROR(O189*10^6/'Calc | Exit Fees'!O34,0) -> 306.0147275
F205: ='Input | Exit Fees'!$D33 -> 0 | G205: $dollars | K205: =IFERROR(K190*10^6/'Calc | Exit Fees'!K35,0) -> 0 | L205: =IFERROR(L190*10^6/'Calc | Exit Fees'!L35,0) -> 0 | M205: =IFERROR(M190*10^6/'Calc | Exit Fees'!M35,0) -> 0 | N205: =IFERROR(N190*10^6/'Calc | Exit Fees'!N35,0) -> 0 | O205: =IFERROR(O190*10^6/'Calc | Exit Fees'!O35,0) -> 0
F206: ='Input | Exit Fees'!$D34 -> 0 | G206: $dollars | K206: =IFERROR(K191*10^6/'Calc | Exit Fees'!K36,0) -> 0 | L206: =IFERROR(L191*10^6/'Calc | Exit Fees'!L36,0) -> 0 | M206: =IFERROR(M191*10^6/'Calc | Exit Fees'!M36,0) -> 0 | N206: =IFERROR(N191*10^6/'Calc | Exit Fees'!N36,0) -> 0 | O206: =IFERROR(O191*10^6/'Calc | Exit Fees'!O36,0) -> 0
F207: ='Input | Exit Fees'!$D35 -> 0 | G207: $dollars | K207: =IFERROR(K192*10^6/'Calc | Exit Fees'!K37,0) -> 0 | L207: =IFERROR(L192*10^6/'Calc | Exit Fees'!L37,0) -> 0 | M207: =IFERROR(M192*10^6/'Calc | Exit Fees'!M37,0) -> 0 | N207: =IFERROR(N192*10^6/'Calc | Exit Fees'!N37,0) -> 0 | O207: =IFERROR(O192*10^6/'Calc | Exit Fees'!O37,0) -> 0
F208: ='Input | Exit Fees'!$D36 -> 0 | G208: $dollars | K208: =IFERROR(K193*10^6/'Calc | Exit Fees'!K38,0) -> 0 | L208: =IFERROR(L193*10^6/'Calc | Exit Fees'!L38,0) -> 0 | M208: =IFERROR(M193*10^6/'Calc | Exit Fees'!M38,0) -> 0 | N208: =IFERROR(N193*10^6/'Calc | Exit Fees'!N38,0) -> 0 | O208: =IFERROR(O193*10^6/'Calc | Exit Fees'!O38,0) -> 0
F209: ='Input | Exit Fees'!$D37 -> 0 | G209: $dollars | K209: =IFERROR(K194*10^6/'Calc | Exit Fees'!K39,0) -> 0 | L209: =IFERROR(L194*10^6/'Calc | Exit Fees'!L39,0) -> 0 | M209: =IFERROR(M194*10^6/'Calc | Exit Fees'!M39,0) -> 0 | N209: =IFERROR(N194*10^6/'Calc | Exit Fees'!N39,0) -> 0 | O209: =IFERROR(O194*10^6/'Calc | Exit Fees'!O39,0) -> 0
F210: ='Input | Exit Fees'!$D38 -> 0 | G210: $dollars | K210: =IFERROR(K195*10^6/'Calc | Exit Fees'!K40,0) -> 0 | L210: =IFERROR(L195*10^6/'Calc | Exit Fees'!L40,0) -> 0 | M210: =IFERROR(M195*10^6/'Calc | Exit Fees'!M40,0) -> 0 | N210: =IFERROR(N195*10^6/'Calc | Exit Fees'!N40,0) -> 0 | O210: =IFERROR(O195*10^6/'Calc | Exit Fees'!O40,0) -> 0
B212: Calculations | Comms & IT & Other (TAB)
C214: Calculation of Allocated Comms & IT TAB by Designated Exit Fee
K216: Regulatory period
F217: Exit Fee Component | G217: Units | K217: =FPFirstYear -> 2026-27 | L217: =LEFT(K217,4)+1&"-"&RIGHT(K217,2)+1 -> 2027-28 | M217: =LEFT(L217,4)+1&"-"&RIGHT(L217,2)+1 -> 2028-29 | N217: =LEFT(M217,4)+1&"-"&RIGHT(M217,2)+1 -> 2029-30 | O217: =LEFT(N217,4)+1&"-"&RIGHT(N217,2)+1 -> 2030-31
F218: Comms & IT & Other TAB per meter | G218: $dollars | K218: =(AVERAGE('Input | Exit Fees'!G$133:H$133)*10^6)/'Calc | Exit Fees'!K$41 -> 5.358016128 | L218: =(AVERAGE('Input | Exit Fees'!H$133:I$133)*10^6)/'Calc | Exit Fees'!L$41 -> 14.41100036 | M218: =(AVERAGE('Input | Exit Fees'!I$133:J$133)*10^6)/'Calc | Exit Fees'!M$41 -> 26.34756722 | N218: =(AVERAGE('Input | Exit Fees'!J$133:K$133)*10^6)/'Calc | Exit Fees'!N$41 -> 28.45682062 | O218: =(AVERAGE('Input | Exit Fees'!K$133:L$133)*10^6)/'Calc | Exit Fees'!O$41 -> 27.83008687
B222: Calculations | Exit Fees with Component Detail (TAB)
F224: Base Year | G224: Regulatory period
G225: Tariff ($/year)
C226: No. | D226: Exit Fee Name | E226: Component | F226: 2025-26 | G226: 2026-27 | H226: 2027-28 | I226: 2028-29 | J226: 2029-30 | K226: 2030-31
C227: 1 | D227: ='Input | Exit Fees'!D29 -> Single Phase
E228: WDV - Meter RAB | G228: =IF($D227=0,0,SUMIFS('Calc | Exit Fees'!K$201:K$210,'Input | Exit Fees'!$D$29:$D$38,$D227)) -> 60.92240603 | H228: =IF($D227=0,0,SUMIFS('Calc | Exit Fees'!L$201:L$210,'Input | Exit Fees'!$D$29:$D$38,$D227)) -> 69.34596747 | I228: =IF($D227=0,0,SUMIFS('Calc | Exit Fees'!M$201:M$210,'Input | Exit Fees'!$D$29:$D$38,$D227)) -> 86.82989974 | J228: =IF($D227=0,0,SUMIFS('Calc | Exit Fees'!N$201:N$210,'Input | Exit Fees'!$D$29:$D$38,$D227)) -> 109.1794506 | K228: =IF($D227=0,0,SUMIFS('Calc | Exit Fees'!O$201:O$210,'Input | Exit Fees'!$D$29:$D$38,$D227)) -> 136.4180127
E229: WDV - Comms & IT & Other | G229: =IF($D227=0,0,'Calc | Exit Fees'!K$218) -> 5.358016128 | H229: =IF($D227=0,0,'Calc | Exit Fees'!L$218) -> 14.41100036 | I229: =IF($D227=0,0,'Calc | Exit Fees'!M$218) -> 26.34756722 | J229: =IF($D227=0,0,'Calc | Exit Fees'!N$218) -> 28.45682062 | K229: =IF($D227=0,0,'Calc | Exit Fees'!O$218) -> 27.83008687
E232: TOTAL WDV | G232: =SUM(G228:G231) -> 66.28042216 | H232: =SUM(H228:H231) -> 83.75696784 | I232: =SUM(I228:I231) -> 113.177467 | J232: =SUM(J228:J231) -> 137.6362713 | K232: =SUM(K228:K231) -> 164.2480996
C233: 2 | D233: ='Input | Exit Fees'!D30 -> Single Phase, Two Element
E234: =IF($D233=0,"",E$228) -> WDV - Meter RAB | G234: =IF($D233=0,0,SUMIFS('Calc | Exit Fees'!K$201:K$210,'Input | Exit Fees'!$D$29:$D$38,$D233)) -> 71.01835367 | H234: =IF($D233=0,0,SUMIFS('Calc | Exit Fees'!L$201:L$210,'Input | Exit Fees'!$D$29:$D$38,$D233)) -> 80.83785202 | I234: =IF($D233=0,0,SUMIFS('Calc | Exit Fees'!M$201:M$210,'Input | Exit Fees'!$D$29:$D$38,$D233)) -> 101.219189 | J234: =IF($D233=0,0,SUMIFS('Calc | Exit Fees'!N$201:N$210,'Input | Exit Fees'!$D$29:$D$38,$D233)) -> 127.2724658 | K234: =IF($D233=0,0,SUMIFS('Calc | Exit Fees'!O$201:O$210,'Input | Exit Fees'!$D$29:$D$38,$D233)) -> 159.0249517
... 46 more rows

Sheet Calc | Tax Allowance
B1: ='Title Page'!B8&" v"&'Title Page'!$C$10 -> JEN 2027-31 - ACS Standardised Metering Pricing Model v1.02 | M1: DNSP: | N1: =IF('Inputs | General'!$G$16="Price Cap","NOT USED",NSP) -> JEN - ACS
B2: =MID(CELL("filename",A1),FIND("]",CELL("filename",A1))+1,255) -> Calc | Tax Allowance | H2: Key: | I2: Input | J2: External Link | K2: Internal Link | L2: Jemena added sheet
B5: CALCULATION | Tax Allowance
F7: Base Year | G7: Regulatory period
G8: Tariff ($/year)
D9: Exit Fee Name | E9: Component | F9: 2025-26 | G9: 2026-27 | H9: 2027-28 | I9: 2028-29 | J9: 2029-30 | K9: 2030-31
D10: Single Phase
E11: Revenue excluding tax allowance
E12: Meter RAB | G12: =+'Calc | Exit Fees'!G119 -> 93.8799713 | H12: =+'Calc | Exit Fees'!H119 -> 102.76629 | I12: =+'Calc | Exit Fees'!I119 -> 121.4000235 | J12: =+'Calc | Exit Fees'!J119 -> 146.0406607 | K12: =+'Calc | Exit Fees'!K119 -> 174.7856657
E13: Comms & IT & Other | G13: =+'Calc | Exit Fees'!G120 -> 15.54114982 | H13: =+'Calc | Exit Fees'!H120 -> 24.93922069 | I13: =+'Calc | Exit Fees'!I120 -> 38.63419702 | J13: =+'Calc | Exit Fees'!J120 -> 44.4985178 | K13: =+'Calc | Exit Fees'!K120 -> 48.09813051
E14: Admin cost | G14: =+'Calc | Exit Fees'!G121 -> 76.12635694 | H14: =+'Calc | Exit Fees'!H121 -> 79.34868539 | I14: =+'Calc | Exit Fees'!I121 -> 82.46024409 | J14: =+'Calc | Exit Fees'!J121 -> 85.46339354 | K14: =+'Calc | Exit Fees'!K121 -> 88.58309004
E15: Revenue for Tax Assessment Subtotal | G15: =SUM(G12:G14) -> 185.5474781 | H15: =SUM(H12:H14) -> 207.0541961 | I15: =SUM(I12:I14) -> 242.4944646 | J15: =SUM(J12:J14) -> 276.002572 | K15: =SUM(K12:K14) -> 311.4668862
E17: Tax expenses
E18: WDV - Meter TAB | G18: =+'Calc | Exit Fees'!G228 -> 60.92240603 | H18: =+'Calc | Exit Fees'!H228 -> 69.34596747 | I18: =+'Calc | Exit Fees'!I228 -> 86.82989974 | J18: =+'Calc | Exit Fees'!J228 -> 109.1794506 | K18: =+'Calc | Exit Fees'!K228 -> 136.4180127
E19: WDV - Comms & IT & Other TAB | G19: =+'Calc | Exit Fees'!G229 -> 5.358016128 | H19: =+'Calc | Exit Fees'!H229 -> 14.41100036 | I19: =+'Calc | Exit Fees'!I229 -> 26.34756722 | J19: =+'Calc | Exit Fees'!J229 -> 28.45682062 | K19: =+'Calc | Exit Fees'!K229 -> 27.83008687
E20: Admin cost | G20: =+'Calc | Exit Fees'!G121 -> 76.12635694 | H20: =+'Calc | Exit Fees'!H121 -> 79.34868539 | I20: =+'Calc | Exit Fees'!I121 -> 82.46024409 | J20: =+'Calc | Exit Fees'!J121 -> 85.46339354 | K20: =+'Calc | Exit Fees'!K121 -> 88.58309004
E21: Interest expense | G21: 0 | H21: 0 | I21: 0 | J21: 0 | K21: 0
E22: Tax expenses | G22: =SUM(G18:G21) -> 142.4067791 | H22: =SUM(H18:H21) -> 163.1056532 | I22: =SUM(I18:I21) -> 195.6377111 | J22: =SUM(J18:J21) -> 223.0996648 | K22: =SUM(K18:K21) -> 252.8311896
E24: Corporate tax rate | G24: =+'Inputs | General'!H$42 -> 0.3 | H24: =+'Inputs | General'!I$42 -> 0.3 | I24: =+'Inputs | General'!J$42 -> 0.3 | J24: =+'Inputs | General'!K$42 -> 0.3 | K24: =+'Inputs | General'!L$42 -> 0.3
E25: Imputation credits rate | G25: =+'Inputs | General'!H$41 -> 0.57 | H25: =+'Inputs | General'!I$41 -> 0.57 | I25: =+'Inputs | General'!J$41 -> 0.57 | J25: =+'Inputs | General'!K$41 -> 0.57 | K25: =+'Inputs | General'!L$41 -> 0.57
E26: Taxable income | G26: =+G15-G22 -> 43.14069897 | H26: =+H15-H22 -> 43.94854286 | I26: =+I15-I22 -> 46.85675359 | J26: =+J15-J22 -> 52.90290723 | K26: =+K15-K22 -> 58.6356966
E27: Tax payable | G27: =+G26*G24/(1-G24*(1-G25)) -> 14.85902375 | H27: =+H26*H24/(1-H24*(1-H25)) -> 15.13727079 | I27: =+I26*I24/(1-I24*(1-I25)) -> 16.13895072 | J27: =+J26*J24/(1-J24*(1-J25)) -> 18.22143762 | K27: =+K26*K24/(1-K24*(1-K25)) -> 20.19599194
E28: Imputation credits | G28: =+G27*G25 -> 8.46964354 | H28: =+H27*H25 -> 8.62824435 | I28: =+I27*I25 -> 9.19920191 | J28: =+J27*J25 -> 10.38621945 | K28: =+K27*K25 -> 11.51171541
E29: Tax allowance | G29: =+G27-G28 -> 6.389380215 | H29: =+H27-H28 -> 6.509026439 | I29: =+I27-I28 -> 6.939748809 | J29: =+J27-J28 -> 7.835218178 | K29: =+K27-K28 -> 8.684276535
D31: ='Input | Exit Fees'!D30 -> Single Phase, Two Element
E32: Revenue for Tax Assessment Subtotal
E33: Meter RAB | G33: =+'Calc | Exit Fees'!G125 -> 109.4375853 | H33: =+'Calc | Exit Fees'!H125 -> 119.7965281 | I33: =+'Calc | Exit Fees'!I125 -> 141.5182093 | J33: =+'Calc | Exit Fees'!J125 -> 170.2422469 | K33: =+'Calc | Exit Fees'!K125 -> 203.7508206
E34: Comms & IT & Other | G34: =+'Calc | Exit Fees'!G126 -> 15.54114982 | H34: =+'Calc | Exit Fees'!H126 -> 24.93922069 | I34: =+'Calc | Exit Fees'!I126 -> 38.63419702 | J34: =+'Calc | Exit Fees'!J126 -> 44.4985178 | K34: =+'Calc | Exit Fees'!K126 -> 48.09813051
E35: Admin cost | G35: =+'Calc | Exit Fees'!G127 -> 76.12635694 | H35: =+'Calc | Exit Fees'!H127 -> 79.34868539 | I35: =+'Calc | Exit Fees'!I127 -> 82.46024409 | J35: =+'Calc | Exit Fees'!J127 -> 85.46339354 | K35: =+'Calc | Exit Fees'!K127 -> 88.58309004
E36: Revenue for Tax Assessment Subtotal | G36: =SUM(G33:G35) -> 201.105092 | H36: =SUM(H33:H35) -> 224.0844342 | I36: =SUM(I33:I35) -> 262.6126504 | J36: =SUM(J33:J35) -> 300.2041583 | K36: =SUM(K33:K35) -> 340.4320411
E38: Tax expenses
E39: Meter TAB | G39: =+'Calc | Exit Fees'!G234 -> 71.01835367 | H39: =+'Calc | Exit Fees'!H234 -> 80.83785202 | I39: =+'Calc | Exit Fees'!I234 -> 101.219189 | J39: =+'Calc | Exit Fees'!J234 -> 127.2724658 | K39: =+'Calc | Exit Fees'!K234 -> 159.0249517
E40: Comms & IT & Other TAB | G40: =+'Calc | Exit Fees'!G235 -> 5.358016128 | H40: =+'Calc | Exit Fees'!H235 -> 14.41100036 | I40: =+'Calc | Exit Fees'!I235 -> 26.34756722 | J40: =+'Calc | Exit Fees'!J235 -> 28.45682062 | K40: =+'Calc | Exit Fees'!K235 -> 27.83008687
E41: Admin cost | G41: =+'Calc | Exit Fees'!G127 -> 76.12635694 | H41: =+'Calc | Exit Fees'!H127 -> 79.34868539 | I41: =+'Calc | Exit Fees'!I127 -> 82.46024409 | J41: =+'Calc | Exit Fees'!J127 -> 85.46339354 | K41: =+'Calc | Exit Fees'!K127 -> 88.58309004
E42: Interest expense | G42: 0 | H42: 0 | I42: 0 | J42: 0 | K42: 0
E43: Tax expenses | G43: =SUM(G39:G42) -> 152.5027267 | H43: =SUM(H39:H42) -> 174.5975378 | I43: =SUM(I39:I42) -> 210.0270003 | J43: =SUM(J39:J42) -> 241.19268 | K43: =SUM(K39:K42) -> 275.4381286
E45: Corporate tax rate | G45: =+'Inputs | General'!H$42 -> 0.3 | H45: =+'Inputs | General'!I$42 -> 0.3 | I45: =+'Inputs | General'!J$42 -> 0.3 | J45: =+'Inputs | General'!K$42 -> 0.3 | K45: =+'Inputs | General'!L$42 -> 0.3
E46: Imputation credits rate | G46: =+'Inputs | General'!H$41 -> 0.57 | H46: =+'Inputs | General'!I$41 -> 0.57 | I46: =+'Inputs | General'!J$41 -> 0.57 | J46: =+'Inputs | General'!K$41 -> 0.57 | K46: =+'Inputs | General'!L$41 -> 0.57
E47: Taxable income | G47: =+G36-G43 -> 48.60236529 | H47: =+H36-H43 -> 49.48689645 | I47: =+I36-I43 -> 52.5856501 | J47: =+J36-J43 -> 59.01147829 | K47: =+K36-K43 -> 64.99391258
E48: Tax payable | G48: =+G47*G45/(1-G45*(1-G46)) -> 16.7401947 | H48: =+H47*H45/(1-H45*(1-H46)) -> 17.04485526 | I48: =+I47*I45/(1-I45*(1-I46)) -> 18.11216422 | J48: =+J47*J45/(1-J45*(1-J46)) -> 20.32542306 | K48: =+K47*K45/(1-K45*(1-K46)) -> 22.385963
E49: Imputation credits | G49: =+G48*G46 -> 9.541910981 | H49: =+H48*H46 -> 9.715567501 | I49: =+I48*I46 -> 10.3239336 | J49: =+J48*J46 -> 11.58549115 | K49: =+K48*K46 -> 12.75999891
E50: Tax allowance | G50: =+G48-G49 -> 7.198283723 | H50: =+H48-H49 -> 7.329287764 | I50: =+I48-I49 -> 7.788230612 | J50: =+J48-J49 -> 8.739931917 | K50: =+K48-K49 -> 9.62596409
D52: ='Input | Exit Fees'!D31 -> Three Phase DC
E53: Revenue for Tax Assessment Subtotal
E54: Meter RAB | G54: =+'Calc | Exit Fees'!G131 -> 162.0400095 | H54: =+'Calc | Exit Fees'!H131 -> 177.3780965 | I54: =+'Calc | Exit Fees'!I131 -> 209.5405516 | J54: =+'Calc | Exit Fees'!J131 -> 252.0711257 | K54: =+'Calc | Exit Fees'!K131 -> 301.6859777
E55: Comms & IT & Other | G55: =+'Calc | Exit Fees'!G132 -> 15.54114982 | H55: =+'Calc | Exit Fees'!H132 -> 24.93922069 | I55: =+'Calc | Exit Fees'!I132 -> 38.63419702 | J55: =+'Calc | Exit Fees'!J132 -> 44.4985178 | K55: =+'Calc | Exit Fees'!K132 -> 48.09813051
E56: Admin cost | G56: =+'Calc | Exit Fees'!G133 -> 76.12635694 | H56: =+'Calc | Exit Fees'!H133 -> 79.34868539 | I56: =+'Calc | Exit Fees'!I133 -> 82.46024409 | J56: =+'Calc | Exit Fees'!J133 -> 85.46339354 | K56: =+'Calc | Exit Fees'!K133 -> 88.58309004
E57: Revenue for Tax Assessment Subtotal | G57: =SUM(G54:G56) -> 253.7075163 | H57: =SUM(H54:H56) -> 281.6660026 | I57: =SUM(I54:I56) -> 330.6349927 | J57: =SUM(J54:J56) -> 382.0330371 | K57: =SUM(K54:K56) -> 438.3671983
E59: Tax expenses
E60: Meter TAB | G60: =+'Calc | Exit Fees'!G240 -> 105.1541358 | H60: =+'Calc | Exit Fees'!H240 -> 119.6934881 | I60: =+'Calc | Exit Fees'!I240 -> 149.8713473 | J60: =+'Calc | Exit Fees'!J240 -> 188.4474289 | K60: =+'Calc | Exit Fees'!K240 -> 235.4621095
E61: Comms & IT & Other TAB | G61: =+'Calc | Exit Fees'!G241 -> 5.358016128 | H61: =+'Calc | Exit Fees'!H241 -> 14.41100036 | I61: =+'Calc | Exit Fees'!I241 -> 26.34756722 | J61: =+'Calc | Exit Fees'!J241 -> 28.45682062 | K61: =+'Calc | Exit Fees'!K241 -> 27.83008687
E62: Admin cost | G62: =+'Calc | Exit Fees'!G133 -> 76.12635694 | H62: =+'Calc | Exit Fees'!H133 -> 79.34868539 | I62: =+'Calc | Exit Fees'!I133 -> 82.46024409 | J62: =+'Calc | Exit Fees'!J133 -> 85.46339354 | K62: =+'Calc | Exit Fees'!K133 -> 88.58309004
E63: Interest expense | G63: 0 | H63: 0 | I63: 0 | J63: 0 | K63: 0
E64: Tax expenses | G64: =SUM(G60:G63) -> 186.6385089 | H64: =SUM(H60:H63) -> 213.4531739 | I64: =SUM(I60:I63) -> 258.6791586 | J64: =SUM(J60:J63) -> 302.3676431 | K64: =SUM(K60:K63) -> 351.8752864
E66: Corporate tax rate | G66: =+'Inputs | General'!H$42 -> 0.3 | H66: =+'Inputs | General'!I$42 -> 0.3 | I66: =+'Inputs | General'!J$42 -> 0.3 | J66: =+'Inputs | General'!K$42 -> 0.3 | K66: =+'Inputs | General'!L$42 -> 0.3
E67: Imputation credits rate | G67: =+'Inputs | General'!H$41 -> 0.57 | H67: =+'Inputs | General'!I$41 -> 0.57 | I67: =+'Inputs | General'!J$41 -> 0.57 | J67: =+'Inputs | General'!K$41 -> 0.57 | K67: =+'Inputs | General'!L$41 -> 0.57
E68: Taxable income | G68: =+G57-G64 -> 67.06900739 | H68: =+H57-H64 -> 68.21282873 | I68: =+I57-I64 -> 71.9558341 | J68: =+J57-J64 -> 79.66539396 | K68: =+K57-K64 -> 86.4919119
E69: Tax payable | G69: =+G68*G66/(1-G66*(1-G67)) -> 23.10069141 | H69: =+H68*H66/(1-H66*(1-H67)) -> 23.49465972 | I69: =+I68*I66/(1-I66*(1-I67)) -> 24.78386938 | J69: =+J68*J66/(1-J66*(1-J67)) -> 27.43928609 | K69: =+K68*K66/(1-K66*(1-K67)) -> 29.79055519
E70: Imputation credits | G70: =+G69*G67 -> 13.1673941 | H70: =+H69*H67 -> 13.39195604 | I70: =+I69*I67 -> 14.12680555 | J70: =+J69*J67 -> 15.64039307 | K70: =+K69*K67 -> 16.98061646
E71: Tax allowance | G71: =+G69-G70 -> 9.933297306 | H71: =+H69-H70 -> 10.10270368 | I71: =+I69-I70 -> 10.65706383 | J71: =+J69-J70 -> 11.79889302 | K71: =+K69-K70 -> 12.80993873
D73: ='Input | Exit Fees'!D32 -> Three Phase CT
E74: Revenue for Tax Assessment Subtotal
E75: Meter RAB | G75: =+'Calc | Exit Fees'!G137 -> 210.5928188 | H75: =+'Calc | Exit Fees'!H137 -> 230.5267289 | I75: =+'Calc | Exit Fees'!I137 -> 272.3261715 | J75: =+'Calc | Exit Fees'!J137 -> 327.6003814 | K75: =+'Calc | Exit Fees'!K137 -> 392.0815646
E76: Comms & IT & Other | G76: =+'Calc | Exit Fees'!G138 -> 15.54114982 | H76: =+'Calc | Exit Fees'!H138 -> 24.93922069 | I76: =+'Calc | Exit Fees'!I138 -> 38.63419702 | J76: =+'Calc | Exit Fees'!J138 -> 44.4985178 | K76: =+'Calc | Exit Fees'!K138 -> 48.09813051
E77: Admin cost | G77: =+'Calc | Exit Fees'!G139 -> 76.12635694 | H77: =+'Calc | Exit Fees'!H139 -> 79.34868539 | I77: =+'Calc | Exit Fees'!I139 -> 82.46024409 | J77: =+'Calc | Exit Fees'!J139 -> 85.46339354 | K77: =+'Calc | Exit Fees'!K139 -> 88.58309004
E78: Revenue for Tax Assessment Subtotal | G78: =SUM(G75:G77) -> 302.2603256 | H78: =SUM(H75:H77) -> 334.814635 | I78: =SUM(I75:I77) -> 393.4206126 | J78: =SUM(J75:J77) -> 457.5622927 | K78: =SUM(K75:K77) -> 528.7627851
E80: Tax expenses
E81: Meter TAB | G81: =+'Calc | Exit Fees'!G246 -> 136.6619636 | H81: =+'Calc | Exit Fees'!H246 -> 155.5578103 | I81: =+'Calc | Exit Fees'!I246 -> 194.7780031 | J81: =+'Calc | Exit Fees'!J246 -> 244.9128174 | K81: =+'Calc | Exit Fees'!K246 -> 306.0147275
E82: Comms & IT & Other TAB | G82: =+'Calc | Exit Fees'!G247 -> 5.358016128 | H82: =+'Calc | Exit Fees'!H247 -> 14.41100036 | I82: =+'Calc | Exit Fees'!I247 -> 26.34756722 | J82: =+'Calc | Exit Fees'!J247 -> 28.45682062 | K82: =+'Calc | Exit Fees'!K247 -> 27.83008687
E83: Admin cost | G83: =+'Calc | Exit Fees'!G139 -> 76.12635694 | H83: =+'Calc | Exit Fees'!H139 -> 79.34868539 | I83: =+'Calc | Exit Fees'!I139 -> 82.46024409 | J83: =+'Calc | Exit Fees'!J139 -> 85.46339354 | K83: =+'Calc | Exit Fees'!K139 -> 88.58309004
E84: Interest expense | G84: 0 | H84: 0 | I84: 0 | J84: 0 | K84: 0
E85: Tax expenses | G85: =SUM(G81:G84) -> 218.1463366 | H85: =SUM(H81:H84) -> 249.317496 | I85: =SUM(I81:I84) -> 303.5858145 | J85: =SUM(J81:J84) -> 358.8330316 | K85: =SUM(K81:K84) -> 422.4279044
E87: Corporate tax rate | G87: =+'Inputs | General'!H$42 -> 0.3 | H87: =+'Inputs | General'!I$42 -> 0.3 | I87: =+'Inputs | General'!J$42 -> 0.3 | J87: =+'Inputs | General'!K$42 -> 0.3 | K87: =+'Inputs | General'!L$42 -> 0.3
E88: Imputation credits rate | G88: =+'Inputs | General'!H$41 -> 0.57 | H88: =+'Inputs | General'!I$41 -> 0.57 | I88: =+'Inputs | General'!J$41 -> 0.57 | J88: =+'Inputs | General'!K$41 -> 0.57 | K88: =+'Inputs | General'!L$41 -> 0.57
E89: Taxable income | G89: =+G78-G85 -> 84.11398898 | H89: =+H78-H85 -> 85.49713895 | I89: =+I78-I85 -> 89.83479812 | J89: =+J78-J85 -> 98.72926113 | K89: =+K78-K85 -> 106.3348807
E90: Tax payable | G90: =+G89*G87/(1-G87*(1-G88)) -> 28.97152319 | H90: =+H89*H87/(1-H87*(1-H88)) -> 29.44792386 | I90: =+I89*I87/(1-I87*(1-I88)) -> 30.94195113 | J90: =+J89*J87/(1-J87*(1-J88)) -> 34.00548604 | K90: =+K89*K87/(1-K87*(1-K88)) -> 36.62510241
E91: Imputation credits | G91: =+G90*G88 -> 16.51376822 | H91: =+H90*H88 -> 16.7853166 | I91: =+I90*I88 -> 17.63691215 | J91: =+J90*J88 -> 19.38312704 | K91: =+K90*K88 -> 20.87630837
E92: Tax allowance | G92: =+G90-G91 -> 12.45775497 | H92: =+H90-H91 -> 12.66260726 | I92: =+I90-I91 -> 13.30503899 | J92: =+J90-J91 -> 14.622359 | K92: =+K90-K91 -> 15.74879404

Sheet Output | Exit Fee price caps
B1: ='Title Page'!B8&" v"&'Title Page'!$C$10 -> JEN 2027-31 - ACS Standardised Metering Pricing Model v1.02 | M1: DNSP: | N1: D
B2: =MID(CELL("filename",A1),FIND("]",CELL("filename",A1))+1,255) -> Output | Exit Fee price caps | H2: Key: | I2: Input | J2: External Link | K2: Internal Link
C5: Applicable Exit Fees Price Caps
H7: Base Year | I7: Regulatory Period
D8: Exit Fee Name | F8: Units | G8: Basis | H8: =LEFT(I8,4)-1&"-"&RIGHT(I8,2)-1 -> 2025-26 | I8: =FPFirstYear -> 2026-27 | J8: =LEFT(I8,4)+1&"-"&RIGHT(I8,2)+1 -> 2027-28 | K8: =LEFT(J8,4)+1&"-"&RIGHT(J8,2)+1 -> 2028-29 | L8: =LEFT(K8,4)+1&"-"&RIGHT(K8,2)+1 -> 2029-30 | M8: =LEFT(L8,4)+1&"-"&RIGHT(L8,2)+1 -> 2030-31
D9: =D25 -> Single Phase | F9: $dollars | G9: nominal | H9: =ROUND(H25,2) -> 191.96 | I9: =IF(I25=0,0,ROUND(H9*(1-I45)*(1+I$41),2)) -> 191.94 | J9: =IF(J25=0,0,ROUND(I9*(1-J45)*(1+J$41),2)) -> 213.57 | K9: 249.44 | L9: 283.84 | M9: 320.15
D10: =D26 -> Single Phase, Two Element | F10: $dollars | G10: nominal | H10: 191.96 | I10: 208.3 | J10: 231.41 | K10: 270.4 | L10: 308.94 | M10: 350.05
D11: Three Phase DC | F11: $dollars | G11: nominal | H11: =ROUND(H27,2) -> 191.96 | I11: =IF(I27=0,0,ROUND(H11*(1-I47)*(1+I$41),2)) -> 263.64 | J11: =IF(J27=0,0,ROUND(I11*(1-J47)*(1+J$41),2)) -> 291.77 | K11: =IF(K27=0,0,ROUND(J11*(1-K47)*(1+K$41),2)) -> 341.29 | L11: =IF(L27=0,0,ROUND(K11*(1-L47)*(1+L$41),2)) -> 393.83 | M11: =IF(M27=0,0,ROUND(L11*(1-M47)*(1+M$41),2)) -> 451.17
D12: Three Phase CT | F12: $dollars | G12: nominal | H12: 191.96 | I12: 314.72 | J12: 347.48 | K12: 406.73 | L12: 472.19 | M12: 544.52
D13: 0 | F13: $dollars | G13: nominal | H13: 0 | I13: 0 | J13: 0 | K13: 0 | L13: 0 | M13: 0
D14: 0 | F14: $dollars | G14: nominal | H14: 0 | I14: 0 | J14: 0 | K14: 0 | L14: 0 | M14: 0
D15: 0 | F15: $dollars | G15: nominal | H15: 0 | I15: 0 | J15: 0 | K15: 0 | L15: 0 | M15: 0
D16: 0 | F16: $dollars | G16: nominal | H16: 0 | I16: 0 | J16: 0 | K16: 0 | L16: 0 | M16: 0
D17: 0 | F17: $dollars | G17: nominal | H17: 0 | I17: 0 | J17: 0 | K17: 0 | L17: 0 | M17: 0
D18: 0 | F18: $dollars | G18: nominal | H18: 0 | I18: 0 | J18: 0 | K18: 0 | L18: 0 | M18: 0
C21: Exit Fees Per Meter
H23: Base Year | I23: Regulatory Period
D24: Exit Fee Name | F24: Units | G24: Basis | H24: =LEFT(I24,4)-1&"-"&RIGHT(I24,2)-1 -> 2025-26 | I24: =FPFirstYear -> 2026-27 | J24: =LEFT(I24,4)+1&"-"&RIGHT(I24,2)+1 -> 2027-28 | K24: =LEFT(J24,4)+1&"-"&RIGHT(J24,2)+1 -> 2028-29 | L24: =LEFT(K24,4)+1&"-"&RIGHT(K24,2)+1 -> 2029-30 | M24: =LEFT(L24,4)+1&"-"&RIGHT(L24,2)+1 -> 2030-31
D25: ='Input | Exit Fees'!$D29 -> Single Phase | F25: $dollars | G25: nominal | H25: =INDEX(Table3[2025-26],MATCH('Output | Exit Fee price caps'!$D25,Table3[[Exit Fee Name]:[Exit Fee Name]],0)+5) -> 191.96 | I25: =INDEX(Table3[2026-27],MATCH('Output | Exit Fee price caps'!$D25,Table3[[Exit Fee Name]:[Exit Fee Name]],0)+5) -> 191.9368583 | J25: =INDEX(Table3[2027-28],MATCH('Output | Exit Fee price caps'!$D25,Table3[[Exit Fee Name]:[Exit Fee Name]],0)+5) -> 213.5632225 | K25: =INDEX(Table3[2028-29],MATCH('Output | Exit Fee price caps'!$D25,Table3[[Exit Fee Name]:[Exit Fee Name]],0)+5) -> 249.4342135 | L25: =INDEX(Table3[2029-30],MATCH('Output | Exit Fee price caps'!$D25,Table3[[Exit Fee Name]:[Exit Fee Name]],0)+5) -> 283.8377902 | M25: =INDEX(Table3[2030-31],MATCH('Output | Exit Fee price caps'!$D25,Table3[[Exit Fee Name]:[Exit Fee Name]],0)+5) -> 320.1511628
D26: ='Input | Exit Fees'!$D30 -> Single Phase, Two Element | F26: $dollars | G26: nominal | H26: =INDEX(Table3[2025-26],MATCH('Output | Exit Fee price caps'!$D26,Table3[[Exit Fee Name]:[Exit Fee Name]],0)+5) -> 191.96 | I26: =INDEX(Table3[2026-27],MATCH('Output | Exit Fee price caps'!$D26,Table3[[Exit Fee Name]:[Exit Fee Name]],0)+5) -> 208.3033757 | J26: =INDEX(Table3[2027-28],MATCH('Output | Exit Fee price caps'!$D26,Table3[[Exit Fee Name]:[Exit Fee Name]],0)+5) -> 231.413722 | K26: =INDEX(Table3[2028-29],MATCH('Output | Exit Fee price caps'!$D26,Table3[[Exit Fee Name]:[Exit Fee Name]],0)+5) -> 270.400881 | L26: =INDEX(Table3[2029-30],MATCH('Output | Exit Fee price caps'!$D26,Table3[[Exit Fee Name]:[Exit Fee Name]],0)+5) -> 308.9440902 | M26: =INDEX(Table3[2030-31],MATCH('Output | Exit Fee price caps'!$D26,Table3[[Exit Fee Name]:[Exit Fee Name]],0)+5) -> 350.0580052
D27: ='Input | Exit Fees'!$D31 -> Three Phase DC | F27: $dollars | G27: nominal | H27: =INDEX(Table3[2025-26],MATCH('Output | Exit Fee price caps'!$D27,Table3[[Exit Fee Name]:[Exit Fee Name]],0)+5) -> 191.96 | I27: =INDEX(Table3[2026-27],MATCH('Output | Exit Fee price caps'!$D27,Table3[[Exit Fee Name]:[Exit Fee Name]],0)+5) -> 263.6408136 | J27: =INDEX(Table3[2027-28],MATCH('Output | Exit Fee price caps'!$D27,Table3[[Exit Fee Name]:[Exit Fee Name]],0)+5) -> 291.7687063 | K27: =INDEX(Table3[2028-29],MATCH('Output | Exit Fee price caps'!$D27,Table3[[Exit Fee Name]:[Exit Fee Name]],0)+5) -> 341.2920565 | L27: =INDEX(Table3[2029-30],MATCH('Output | Exit Fee price caps'!$D27,Table3[[Exit Fee Name]:[Exit Fee Name]],0)+5) -> 393.8319301 | M27: =INDEX(Table3[2030-31],MATCH('Output | Exit Fee price caps'!$D27,Table3[[Exit Fee Name]:[Exit Fee Name]],0)+5) -> 451.177137
D28: ='Input | Exit Fees'!$D32 -> Three Phase CT | F28: $dollars | G28: nominal | H28: =INDEX(Table3[2025-26],MATCH('Output | Exit Fee price caps'!$D28,Table3[[Exit Fee Name]:[Exit Fee Name]],0)+5) -> 191.96 | I28: =INDEX(Table3[2026-27],MATCH('Output | Exit Fee price caps'!$D28,Table3[[Exit Fee Name]:[Exit Fee Name]],0)+5) -> 314.7180806 | J28: =INDEX(Table3[2027-28],MATCH('Output | Exit Fee price caps'!$D28,Table3[[Exit Fee Name]:[Exit Fee Name]],0)+5) -> 347.4772422 | K28: =INDEX(Table3[2028-29],MATCH('Output | Exit Fee price caps'!$D28,Table3[[Exit Fee Name]:[Exit Fee Name]],0)+5) -> 406.7256516 | L28: =INDEX(Table3[2029-30],MATCH('Output | Exit Fee price caps'!$D28,Table3[[Exit Fee Name]:[Exit Fee Name]],0)+5) -> 472.1846517 | M28: =INDEX(Table3[2030-31],MATCH('Output | Exit Fee price caps'!$D28,Table3[[Exit Fee Name]:[Exit Fee Name]],0)+5) -> 544.5115791
D29: ='Input | Exit Fees'!$D33 -> 0 | F29: $dollars | G29: nominal | H29: =INDEX(Table3[2025-26],MATCH('Output | Exit Fee price caps'!$D29,Table3[[Exit Fee Name]:[Exit Fee Name]],0)+5) -> 0 | I29: =INDEX(Table3[2026-27],MATCH('Output | Exit Fee price caps'!$D29,Table3[[Exit Fee Name]:[Exit Fee Name]],0)+5) -> 0 | J29: =INDEX(Table3[2027-28],MATCH('Output | Exit Fee price caps'!$D29,Table3[[Exit Fee Name]:[Exit Fee Name]],0)+5) -> 0 | K29: =INDEX(Table3[2028-29],MATCH('Output | Exit Fee price caps'!$D29,Table3[[Exit Fee Name]:[Exit Fee Name]],0)+5) -> 0 | L29: =INDEX(Table3[2029-30],MATCH('Output | Exit Fee price caps'!$D29,Table3[[Exit Fee Name]:[Exit Fee Name]],0)+5) -> 0 | M29: =INDEX(Table3[2030-31],MATCH('Output | Exit Fee price caps'!$D29,Table3[[Exit Fee Name]:[Exit Fee Name]],0)+5) -> 0
D30: ='Input | Exit Fees'!$D34 -> 0 | F30: $dollars | G30: nominal | H30: =INDEX(Table3[2025-26],MATCH('Output | Exit Fee price caps'!$D30,Table3[[Exit Fee Name]:[Exit Fee Name]],0)+5) -> 0 | I30: =INDEX(Table3[2026-27],MATCH('Output | Exit Fee price caps'!$D30,Table3[[Exit Fee Name]:[Exit Fee Name]],0)+5) -> 0 | J30: =INDEX(Table3[2027-28],MATCH('Output | Exit Fee price caps'!$D30,Table3[[Exit Fee Name]:[Exit Fee Name]],0)+5) -> 0 | K30: =INDEX(Table3[2028-29],MATCH('Output | Exit Fee price caps'!$D30,Table3[[Exit Fee Name]:[Exit Fee Name]],0)+5) -> 0 | L30: =INDEX(Table3[2029-30],MATCH('Output | Exit Fee price caps'!$D30,Table3[[Exit Fee Name]:[Exit Fee Name]],0)+5) -> 0 | M30: =INDEX(Table3[2030-31],MATCH('Output | Exit Fee price caps'!$D30,Table3[[Exit Fee Name]:[Exit Fee Name]],0)+5) -> 0
D31: ='Input | Exit Fees'!$D35 -> 0 | F31: $dollars | G31: nominal | H31: =INDEX(Table3[2025-26],MATCH('Output | Exit Fee price caps'!$D31,Table3[[Exit Fee Name]:[Exit Fee Name]],0)+5) -> 0 | I31: =INDEX(Table3[2026-27],MATCH('Output | Exit Fee price caps'!$D31,Table3[[Exit Fee Name]:[Exit Fee Name]],0)+5) -> 0 | J31: =INDEX(Table3[2027-28],MATCH('Output | Exit Fee price caps'!$D31,Table3[[Exit Fee Name]:[Exit Fee Name]],0)+5) -> 0 | K31: =INDEX(Table3[2028-29],MATCH('Output | Exit Fee price caps'!$D31,Table3[[Exit Fee Name]:[Exit Fee Name]],0)+5) -> 0 | L31: =INDEX(Table3[2029-30],MATCH('Output | Exit Fee price caps'!$D31,Table3[[Exit Fee Name]:[Exit Fee Name]],0)+5) -> 0 | M31: =INDEX(Table3[2030-31],MATCH('Output | Exit Fee price caps'!$D31,Table3[[Exit Fee Name]:[Exit Fee Name]],0)+5) -> 0
D32: ='Input | Exit Fees'!$D36 -> 0 | F32: $dollars | G32: nominal | H32: =INDEX(Table3[2025-26],MATCH('Output | Exit Fee price caps'!$D32,Table3[[Exit Fee Name]:[Exit Fee Name]],0)+5) -> 0 | I32: =INDEX(Table3[2026-27],MATCH('Output | Exit Fee price caps'!$D32,Table3[[Exit Fee Name]:[Exit Fee Name]],0)+5) -> 0 | J32: =INDEX(Table3[2027-28],MATCH('Output | Exit Fee price caps'!$D32,Table3[[Exit Fee Name]:[Exit Fee Name]],0)+5) -> 0 | K32: =INDEX(Table3[2028-29],MATCH('Output | Exit Fee price caps'!$D32,Table3[[Exit Fee Name]:[Exit Fee Name]],0)+5) -> 0 | L32: =INDEX(Table3[2029-30],MATCH('Output | Exit Fee price caps'!$D32,Table3[[Exit Fee Name]:[Exit Fee Name]],0)+5) -> 0 | M32: =INDEX(Table3[2030-31],MATCH('Output | Exit Fee price caps'!$D32,Table3[[Exit Fee Name]:[Exit Fee Name]],0)+5) -> 0
D33: ='Input | Exit Fees'!$D37 -> 0 | F33: $dollars | G33: nominal | H33: =INDEX(Table3[2025-26],MATCH('Output | Exit Fee price caps'!$D33,Table3[[Exit Fee Name]:[Exit Fee Name]],0)+5) -> 0 | I33: =INDEX(Table3[2026-27],MATCH('Output | Exit Fee price caps'!$D33,Table3[[Exit Fee Name]:[Exit Fee Name]],0)+5) -> 0 | J33: =INDEX(Table3[2027-28],MATCH('Output | Exit Fee price caps'!$D33,Table3[[Exit Fee Name]:[Exit Fee Name]],0)+5) -> 0 | K33: =INDEX(Table3[2028-29],MATCH('Output | Exit Fee price caps'!$D33,Table3[[Exit Fee Name]:[Exit Fee Name]],0)+5) -> 0 | L33: =INDEX(Table3[2029-30],MATCH('Output | Exit Fee price caps'!$D33,Table3[[Exit Fee Name]:[Exit Fee Name]],0)+5) -> 0 | M33: =INDEX(Table3[2030-31],MATCH('Output | Exit Fee price caps'!$D33,Table3[[Exit Fee Name]:[Exit Fee Name]],0)+5) -> 0
D34: ='Input | Exit Fees'!$D38 -> 0 | F34: $dollars | G34: nominal | H34: =INDEX(Table3[2025-26],MATCH('Output | Exit Fee price caps'!$D34,Table3[[Exit Fee Name]:[Exit Fee Name]],0)+5) -> 0 | I34: =INDEX(Table3[2026-27],MATCH('Output | Exit Fee price caps'!$D34,Table3[[Exit Fee Name]:[Exit Fee Name]],0)+5) -> 0 | J34: =INDEX(Table3[2027-28],MATCH('Output | Exit Fee price caps'!$D34,Table3[[Exit Fee Name]:[Exit Fee Name]],0)+5) -> 0 | K34: =INDEX(Table3[2028-29],MATCH('Output | Exit Fee price caps'!$D34,Table3[[Exit Fee Name]:[Exit Fee Name]],0)+5) -> 0 | L34: =INDEX(Table3[2029-30],MATCH('Output | Exit Fee price caps'!$D34,Table3[[Exit Fee Name]:[Exit Fee Name]],0)+5) -> 0 | M34: =INDEX(Table3[2030-31],MATCH('Output | Exit Fee price caps'!$D34,Table3[[Exit Fee Name]:[Exit Fee Name]],0)+5) -> 0
C39: Xfactors
D41: CPI | F41: % | I41: ='Inputs | General'!H26 -> 0.025 | J41: ='Inputs | General'!I26 -> 0.025 | K41: ='Inputs | General'!J26 -> 0.025 | L41: ='Inputs | General'!K26 -> 0.025 | M41: ='Inputs | General'!L26 -> 0.025
I43: =FPFirstYear -> 2026-27 | J43: =LEFT(I43,4)+1&"-"&RIGHT(I43,2)+1 -> 2027-28 | K43: =LEFT(J43,4)+1&"-"&RIGHT(J43,2)+1 -> 2028-29 | L43: =LEFT(K43,4)+1&"-"&RIGHT(K43,2)+1 -> 2029-30 | M43: =LEFT(L43,4)+1&"-"&RIGHT(L43,2)+1 -> 2030-31
D44: Exit Fee Name | F44: Units | I44: P_0 | J44: X_02 | K44: X_03 | L44: X_04 | M44: X_05
D45: ='Input | Exit Fees'!$D29 -> Single Phase | F45: % | I45: =IFERROR(-1*(((I25/H25)/(1+I$41)-1)),"") -> 0.02450785846 | J45: -0.08553596899 | K45: -0.1394773373 | L45: -0.110172151 | M45: -0.1004264005
D46: ='Input | Exit Fees'!$D30 -> Single Phase, Two Element | F46: % | I46: -0.05867266933 | J46: -0.08384938101 | K46: -0.1399744808 | L46: -0.1146741363 | M46: -0.1054427515
D47: ='Input | Exit Fees'!$D31 -> Three Phase DC | F47: % | I47: -0.3399174299 | J47: -0.07969776187 | K47: -0.1412048409 | L47: -0.1257990507 | M47: -0.1176666567
D48: ='Input | Exit Fees'!$D32 -> Three Phase CT | F48: % | I48: -0.59951047 | J48: -0.07716146127 | K48: -0.1419611574 | L48: -0.1326257665 | M48: -0.1250488702
D49: ='Input | Exit Fees'!$D33 -> 0 | F49: %
D50: ='Input | Exit Fees'!$D34 -> 0 | F50: %
D51: ='Input | Exit Fees'!$D35 -> 0 | F51: %
D52: ='Input | Exit Fees'!$D36 -> 0 | F52: %
D53: ='Input | Exit Fees'!$D37 -> 0 | F53: %
D54: ='Input | Exit Fees'!$D38 -> 0 | F54: %
C58: Cost Metric
H60: Base Year | I60: Regulatory Period
D61: Exit Fee Per Meter | F61: Units | G61: Basis | H61: =LEFT(I61,4)-1&"-"&RIGHT(I61,2)-1 -> 2025-26 | I61: =FPFirstYear -> 2026-27 | J61: =LEFT(I61,4)+1&"-"&RIGHT(I61,2)+1 -> 2027-28 | K61: =LEFT(J61,4)+1&"-"&RIGHT(J61,2)+1 -> 2028-29 | L61: =LEFT(K61,4)+1&"-"&RIGHT(K61,2)+1 -> 2029-30 | M61: =LEFT(L61,4)+1&"-"&RIGHT(L61,2)+1 -> 2030-31
D62: Volume Weighted Average Exit Fee - Per Meter | F62: $dollars | G62: nominal | H62: =SUMPRODUCT(H$25:H$34,'Calc | Exit Fees'!J$31:J$40)/'Calc | Exit Fees'!J$41 -> 191.96 | I62: =SUMPRODUCT(I$25:I$34,'Calc | Exit Fees'!K$31:K$40)/'Calc | Exit Fees'!K$41 -> 205.9550779 | J62: =SUMPRODUCT(J$25:J$34,'Calc | Exit Fees'!L$31:L$40)/'Calc | Exit Fees'!L$41 -> 230.2622977 | K62: =SUMPRODUCT(K$25:K$34,'Calc | Exit Fees'!M$31:M$40)/'Calc | Exit Fees'!M$41 -> 270.747415 | L62: =SUMPRODUCT(L$25:L$34,'Calc | Exit Fees'!N$31:N$40)/'Calc | Exit Fees'!N$41 -> 311.3603742 | M62: =SUMPRODUCT(M$25:M$34,'Calc | Exit Fees'!O$31:O$40)/'Calc | Exit Fees'!O$41 -> 355.2808153

Sheet LUTs and Dropdowns
B1: ='Title Page'!B8&" v"&'Title Page'!$C$10 -> JEN 2027-31 - ACS Standardised Metering Pricing Model v1.02
B2: =MID(CELL("filename",A1),FIND("]",CELL("filename",A1))+1,255) -> LUTs and Dropdowns
B14: Model Use
B15: Price Cap
B16: Exit Fees (Vic)
B17: Show All Sheets
B20: Admin Charges
B21: Entered
B22: Calc-Fixed
B23: Calc-Hourly
